{"text_format":"1","workbook":"xlsx","n_sheets":11,"sheets":["Раздел 0","Раздел I","Раздел II","Раздел III","Раздел IV","Раздел V","Раздел VI","Раздел VII","Раздел VIII","Раздел IX","Раздел X"],"not_rendered":{"charts":0,"images":0,"macros":1,"external_links":0,"defined_names":7,"comments":0,"pivot_tables":0},"unopened":[],"bounds":{"document_bytes":16777216,"sheet_cells":100000,"rows_first":2000,"rows_last":500,"rows_between":2000,"halvings":0,"cell_chars":16384,"cell_head_chars":4096},"cells_cut":0,"cells_raw":0,"read":"whole","date_system":"1900"}

{"sheet":"Раздел 0","index":0,"n_rows":23,"n_cols":10,"rows_kept":23,"cut":false,"hidden":false,"merged":[[3,0,3,10],[5,0,5,10],[7,0,7,10],[9,0,9,10],[10,0,10,10],[19,0,20,2],[19,3,19,10],[20,3,20,4],[20,5,20,7],[20,8,20,10],[21,0,21,2],[21,3,21,4],[21,5,21,7],[21,8,21,10],[22,0,22,2],[22,3,22,4],[22,5,22,7],[22,8,22,10],[0,0,0,10],[17,4,17,10],[18,2,18,10],[8,0,8,10],[6,0,6,10],[4,0,4,10],[2,0,2,10],[16,0,16,10],[17,0,17,3],[18,0,18,1],[13,9,14,9],[12,10,15,10],[12,0,15,5],[12,6,15,6],[11,0,11,5],[1,0,1,10]]}
[]
["ФЕДЕРАЛЬНОЕ СТАТИСТИЧЕСКОЕ НАБЛЮДЕНИЕ"]
[]
["КОНФИДЕНЦИАЛЬНОСТЬ ГАРАНТИРУЕТСЯ ПОЛУЧАТЕЛЕМ ИНФОРМАЦИИ"]
[]
["Нарушение порядка предоставления первичных статистических данных или несвоевременное предоставление этих данных, либо предоставление недостоверных первичных\nстатистических данных влечет ответственность, установленную Кодексом Российской Федерации об административных правонарушениях"]
[]
["Обязанность предоставления административных данных предусмотрена статьей 8 Федерального закона от 29 ноября 2007 г.\n№ 282-ФЗ \"Об официальном статистическом учете и системе государственной статистики в Российской Федерации\""]
[]
["СВЕДЕНИЯ ОБ АДАПТИВНОЙ ФИЗИЧЕСКОЙ КУЛЬТУРЕ И СПОРТЕ\nпо состоянию на 31 декабря 2025 г."]
[]
["Предоставляют:",null,null,null,null,null,"Сроки предоставления"]
["юридические лица, включая общественные организации, независимо от видов их экономической деятельности, организационно-правовых форм и форм собственности, осуществляющие деятельность по адаптивной физической культуре и спорту (полный перечень респондентов приведен в указаниях по заполнению формы федерального статистического наблюдения): \n    – органу местного самоуправления в области физической культуры и спорта;\n\nорганы местного самоуправления в области физической культуры и спорта:\n     – органу исполнительной власти субъекта Российской Федерации в области физической культуры и спорта;\t\n\nорганы исполнительной власти субъектов Российской Федерации в области физической культуры и спорта:\n     – Министерству спорта Российской Федерации.",null,null,null,null,null,"до 16 января после \nотчетного периода\n\n\n\n\nдо 19 января после\nотчетного периода\n\n\nдо 26 января после\nотчетного периода",null,null,"Форма № 3-АФК"]
[null,null,null,null,null,null,null,null,null,"Приказ Росстата: \nОб утверждении формы \nот 01.11.2025 г. № 611\nО внесении изменений (при наличии)  \nот  __________ № ___\nот  __________ № ___"]
[]
[null,null,null,null,null,null,null,null,null,"Годовая"]
[]
["Наименование отчитывающейся организации",null,null,null,"Муниципальное автономное учреждение дополнительного образования города Нижневартовска \"Спортивная школа\" (МАУДО г.Нижневартовска \"СШ\")"]
["Почтовый адрес",null,"628611, Ханты-Мансийский автономный округ-Югра, г.Нижневартовск, ул.Чапаева,22"]
["Код формы\nпо ОКУД",null,null,"Код"]
[null,null,null,"отчитывающейся организации по ОКПО\n(для обособленного подразделения и головного\nподразделения юридического лица -\nидентификационный номер)"]
[1,null,null,2,null,3,null,null,4]
["0609405",null,null,"23795686"]

{"sheet":"Раздел I","index":1,"n_rows":34,"n_cols":34,"rows_kept":34,"cut":false,"hidden":false,"merged":[[0,0,0,33],[2,6,2,7],[1,2,3,2],[1,1,3,1],[1,0,3,0],[2,5,3,5],[2,4,3,4],[1,3,3,3],[2,11,2,16],[2,17,2,26],[1,4,1,9],[36,6,36,14],[34,6,34,14],[2,10,3,10],[2,27,2,33],[1,10,1,33],[2,8,2,9]]}
["Раздел I. Физкультурно-оздоровительная и спортивная работа"]
["Учреждения, объединения, организации,\nосуществляющие работу с инвалидами","№ строки","Количество учреждений, объединений, организаций, всего, ед","Реализующих дополнительные общеобразовательные программы в области адаптивной физической культуры и спорта \n(из гр. 3)    ","Численность работников, чел",null,null,null,null,null,"Численность систематически занимающихся адаптивной физической культурой и спортом лиц с ОВЗ и лиц с инвалидностью, чел"]
[null,null,null,null,"Всего","по основному месту работы (из гр.5)","из них имеют образование по специальности \"Адаптивная физическая культура и спорт\" (из гр. 5)",null,"(из гр.5) ",null,"Всего","Численность лиц с ОВЗ, систематически занимающихся адаптивной физической культурой и спортом (из гр.11)",null,null,null,null,null,"Численность лиц с инвалидностью, систематически занимающихся адаптивной физической культурой (из гр.18)",null,null,null,null,null,null,null,null,null,"по нозологическим группам (из гр.11,18)"]
[null,null,null,null,null,null,"высшее","среднее","прошедшие профессиональную переподготовку\n(за отчетный период)","прошедшие повышение квалификации\n(за отчетный период)",null,"от 0 до 3 лет","от 4 до 7 лет","от 8 до 14 лет","от 15 до 17 лет","18 лет и старше","в возрасте от 6 до 17 лет ","Всего","от 0 до 3\nлет","от 4 до 7 лет","от 8 до 14 лет","от 15 до 17 лет","от 18 до 29 лет","от 30 до 59 лет","от 60 до 79 лет","от 80 лет и старше"," от 6 до 17 лет ","лица с нарушением языковых и речевых функций","лица с задержкой психического развития","лица с нарушением интеллекта","лица с нарушением зрения","лица с нарушением слуха","лица с нарушением ОДА","иные нарушения"]
[1,2,3,4,5,6,7,8,9,10,11,12,13,14,15,16,17,18,19,20,21,22,23,24,25,26,27,28,29,30,31,32,33,34]
["Всего учреждений, объединений, организаций (сумма строк 02, 09, 16, 20, 23)","01",{"$f":"SUM(C7,C14,C21,C25,C28)","v":1},{"$f":"SUM(D7,D14,D21,D25,D28)","v":1},7,6,6,0,0,4,{"$f":"SUM(K7,K14,K21,K25,K28)","v":7},{"$f":"SUM(L7,L14,L21,L25,L28)","v":0},0,1,0,6,1,231,0,5,98,28,50,42,8,0,131,0,0,145,14,9,63,7]
["Всего в сфере физической культуры и спорта","02",{"$f":"SUM(C8:C13)","v":1},1,7,6,6,0,0,4,{"$f":"SUM(K8:K13)","v":7},{"$f":"SUM(L8:L13)","v":0},0,1,0,6,1,231,0,5,98,28,50,42,8,0,131,0,0,145,14,9,63,7]
["в том числе:\nспортивно-адаптивные школы","03",null,null,null,null,null,null,null,null,{"$f":"SUM(L8:P8)","v":0},null,null,null,null,null,null,{"$f":"SUM(S8:Z8)","v":0}]
["спортивно-адаптивные школы паралимпийского и (или) сурдлимпийского резерва","04",null,null,null,null,null,null,null,null,{"$f":"SUM(L9:P9)","v":0},null,null,null,null,null,null,{"$f":"SUM(S9:Z9)","v":0}]
["региональные центры спортивной подготовки по адаптивным видам спорта","05",null,null,null,null,null,null,null,null,0,null,null,null,null,null,null,0]
["СШ, СШОР, УОР ","06",1,1,7,6,6,null,null,4,7,null,null,1,null,6,1,231,null,5,98,28,50,42,8,null,131,null,null,145,14,9,63,7]
["другие организации, реализующие дополнительные общеобразовательные программы в области адаптивной физической культуры и спорта","07",null,null,null,null,null,null,null,null,0,null,null,null,null,null,null,0]
["иные организации в ведении органов управления физической культуры и спорта","08",null,null,null,null,null,null,null,null,0,null,null,null,null,null,null,0]
["Всего в сфере образования","09",{"$f":"SUM(C15:C20)","v":0},{"$f":"SUM(D15:D20)","v":0},0,0,0,0,0,0,0,{"$f":"SUM(L15:L20)","v":0},0,0,0,0,0,0,0,0,0,0,0,0,0,0,0,0,0,0,0,0,0,0]
["в том числе:\nдошкольные образовательные организации",10,null,null,null,null,null,null,null,null,0,null,null,null,null,null,null,0]
["общеобразовательные организации",11,null,null,null,null,null,null,null,null,0,null,null,null,null,null,null,0]
["профессиональные образовательные организации",12,null,null,null,null,null,null,null,null,0,null,null,null,null,null,null,0]
["образовательные организации высшего образования",13,null,null,null,null,null,null,null,null,0,null,null,null,null,null,null,0]
["организации дополнительного образования",14,null,null,null,null,null,null,null,null,0,null,null,null,null,null,null,0]
["иные организации",15,null,null,null,null,null,null,null,null,0,null,null,null,null,null,null,0]
["Всего в сфере труда и социальной защиты",16,{"$f":"SUM(C22:C24)","v":0},0,0,0,0,0,0,0,0,{"$f":"SUM(L22:L24)","v":0},0,0,0,0,0,0,0,0,0,0,0,0,0,0,0,0,0,0,0,0,0,0]
["в том числе:\nцентры реабилитации инвалидов",17,null,null,null,null,null,null,null,null,0,null,null,null,null,null,null,0]
["стационарные учреждения социального обслуживания",18,null,null,null,null,null,null,null,null,0,null,null,null,null,null,null,0]
["иные организации",19,null,null,null,null,null,null,null,null,0,null,null,null,null,null,null,0]
["Всего в сфере здравоохранения",20,{"$f":"SUM(C26:C27)","v":0},{"$f":"SUM(D26:D27)","v":0},0,0,0,0,0,0,0,0,0,0,0,0,0,0,0,0,0,0,0,0,0,0,0,0,0,0,0,0,0,0]
["в том числе:\nлечебно-профилактические медицинские\nорганизации",21,null,null,null,null,null,null,null,null,0,null,null,null,null,null,null,0]
["иные организации",22,null,null,null,null,null,null,null,null,0,null,null,null,null,null,null,0]
["Всего иных организаций",23,{"$f":"SUM(C29:C33)","v":0},{"$f":"SUM(D29:D33)","v":0},0,0,0,0,0,0,0,0,0,0,0,0,0,0,0,0,0,0,0,0,0,0,0,0,0,0,0,0,0,0]
["в том числе:\nрегиональные (муниципальные) организации ВОГ ",24,null,null,null,null,null,null,null,null,0,null,null,null,null,null,null,0]
["региональные (муниципальные) организации ВОИ",25,null,null,null,null,null,null,null,null,0,null,null,null,null,null,null,0]
["региональные (муниципальные) организации ВОС",26,null,null,null,null,null,null,null,null,0,null,null,null,null,null,null,0]
["региональные спортивные федерации ",27,null,null,null,null,null,null,null,null,0,null,null,null,null,null,null,0]
["другие организации",28,null,null,null,null,null,null,null,null,{"$f":"SUM(L33:P33)","v":0},null,null,null,null,null,null,0]
["Из строки 01 - всего в сельской местности",29]

{"sheet":"Раздел II","index":2,"n_rows":42,"n_cols":21,"rows_kept":42,"cut":false,"hidden":false,"merged":[[0,0,0,20],[1,0,3,0],[1,1,3,1],[1,2,3,2],[1,3,3,3],[2,5,3,5],[1,4,1,16],[1,17,2,20],[2,4,3,4],[2,10,3,10],[2,11,2,12],[2,13,2,16],[2,6,3,6],[2,7,3,7],[2,8,3,8],[2,9,3,9]]}
["Раздел II. Объекты спортивной инфраструктуры, доступные для инвалидов"]
["Наименование спортивного\nсооружения","№\n строки","Всего объектов, доступных для инвалидов,\nед","Всего \nпредоставляющих \nуслуги инвалидам \nи лицам с ОВЗ \n(из гр. 3)","Доступность объектов и предоставляемых услуг, ед (из гр. 4):",null,null,null,null,null,null,null,null,null,null,null,null,"Численность штатных сотрудников, чел"]
[null,null,null,null,"Имеющие утвержденные паспорта доступности объектов и предоставляющие услуги инвалидам","оснащенные\n","Вновь введенные в эксплуатацию спортивные сооружения, полностью соответствующие требованиям доступности объектов и предоставляющих услуги инвалидам (за отчетный период) ","Спортивные сооружения, которые в результате проведения капитального ремонта, реконструкции, модернизации полностью соответствуют требованиям доступности объектов и предоставляющих услуги инвалидам (за отчетный период)","На которых обеспечиваются условия индивидуальной мобильности инвалидов и возможность для самостоятельного их передвижения по зданию и (при необходимости) по территории объекта","На которых обеспечено сопровождение инвалидов, имеющих стойкие расстройства функции зрения и самостоятельного передвижения, оказание им помощи на объектах","На которых\nпредоставляются услуги\nинвалидам по слуху\nс использованием русского жестового языка, включая\nобеспечение допуска на\nобъект сурдопереводчика,\nтифлопереводчика\n","по типу",null,"по форме собственности"]
[null,null,null,null,null,null,null,null,null,null,null,"капитальные спортивные сооружения"," некапитальные спортивные сооружения","федеральная собственность","собственность субъектов Российской Федерации","муниципальная собственность","другой вид собственности","Всего","проводящих занятия с инвалидами и лицами с ОВЗ (тренер по АФК и АС, тренер-преподаватель по АФКиС, инструктор-методист по АФК и АС)","прошедших инструктирование или обучение по вопросам, связанным с обеспечением доступности объекта и услуг"," на которых возложено оказание инвалидам помощи при предоставлении им услуг"]
[1,2,3,4,5,6,7,8,9,10,11,12,13,14,15,16,17,18,19,20,21]
["Всего спортивных сооружений с учетом объектов городской и рекреационной инфраструктуры, приспособленных для занятий физической культурой и спортом (сумма строк 02, 31)","01",{"$f":"SUM(C7,C36)","v":5},{"$f":"SUM(D7,D36)","v":5},5,5,0,0,5,2,2,5,0,0,0,5,0,6,6,0,0]
["Всего спортивных сооружений (сумма строк 03, 04, 06, 11, 12, 16, 17, 23, 24, 25, 29, 30)","02",{"$f":"SUM(C8:C9,C11,C16:C17,C21:C22,C28:C30,C34:C35)","v":5},{"$f":"SUM(D8:D9,D11,D16:D17,D21:D22,D28:D30,D34:D35)","v":5},5,5,0,0,5,2,2,5,0,0,0,5,0,6,6,0,0]
["в том числе:\nСтадионы с трибунами на 1500 мест и более","03"]
["Плоскостные спортивные сооружения – всего ","04"]
["из них:\nфутбольные поля","05"]
["Спортивные залы - всего","06",{"$f":"SUM(C12:C15)","v":3},{"$f":"SUM(D12:D15)","v":3},3,3,0,0,3,1,1,3,0,0,0,3,0,3,3,0,0]
["из них размером:\n(42 х 24 м)","07",1,1,1,1,null,null,1,1,1,1,null,null,null,1,null,1,1]
["(36 х 18 м), (30 х 18 м),\n(30 х 15 м)","08"]
["(24 х 12 м) и (18 х 9 м)","09"]
["иных размеров",10,2,2,2,2,null,null,2,null,null,2,null,null,null,2,null,2,2]
["Крытые спортивные объекты с искусственным льдом",11]
["Манежи - всего ",12,{"$f":"SUM(C18:C20)","v":0},{"$f":"SUM(D18:D20)","v":0},0,0,0,{"$f":"SUM(H18:H20)","v":0},0,0,0,0,0,0,0,0,0,0,0,0,0]
["из них:\nлегкоатлетические",13]
["футбольные",14]
["конные",15]
["Велотреки, велодромы",16]
["Плавательные бассейны - всего",17,{"$f":"SUM(C23:C26)","v":2},{"$f":"SUM(D23:D26)","v":2},2,2,0,0,2,1,1,2,0,0,0,2,0,3,3,0,{"$f":"SUM(U23:U26)","v":0}]
["из них:\n50 - метровые",18]
["25 - метровые",19,2,2,2,2,null,null,2,1,1,2,null,null,null,2,null,3,3]
["для прыжков в воду",20]
["нестандартных размеров",21]
["из общего числа бассейнов \n(строка 17) - крытые",22]
["Лыжные базы",23]
["Биатлонные комплексы",24]
["Сооружения для стрелковых видов спорта – всего ",25,{"$f":"SUM(C31:C33)","v":0},{"$f":"SUM(D31:D33)","v":0},0,0,0,0,0,0,0,0,0,0,0,0,0,0,0,0,0]
["в том числе:\nтиры",26]
["стрельбища",27]
["стенды",28]
["Гребные базы и каналы",29]
["Другие спортивные сооружения",30]
["Объекты городской и рекреационной инфраструктуры, приспособленные для занятий физической культурой и спортом - всего ",31,{"$f":"SUM(C37:C41)","v":0},{"$f":"SUM(D37:D41)","v":0},0,0,0,0,0,0,0,0,0,0,0,0,0,0,0,0,0]
["в том числе:\nуниверсальные игровые площадки",32]
["дистанция (велодорожка)",33]
["споты (плаза начального уровня)",34]
["площадки с тренажерами",35]
["катки (сезонные)",36]
["Из строки 01 - всего в сельской местности ",37]

{"sheet":"Раздел III","index":3,"n_rows":142,"n_cols":20,"rows_kept":142,"cut":false,"hidden":false,"merged":[[1,3,5,3],[3,9,3,12],[3,13,5,13],[3,14,5,14],[3,15,5,15],[3,8,5,8],[1,4,5,4],[2,18,2,19],[3,18,5,18],[3,19,5,19],[1,7,1,19],[0,0,0,17],[3,16,5,16],[3,17,5,17],[2,16,2,17],[2,8,2,15],[2,7,5,7],[1,6,5,6],[1,5,5,5],[1,1,5,1],[1,0,5,0],[4,9,4,12],[1,2,5,2]]}
["Раздел III. Сведения о численности обучающихся и занимающихся"]
["Наименование вида спорта,\nспортивной дисциплины","№ строки","Количество учреждений, объединений, организаций, всего, ед","Реализующие дополнительные общеобразовательные программам в области адаптивной физической культуры и спорта\n (из гр. 3)    ","Количество отделений по видам спорта,\nед\n","Количество групп по спортивным дисциплинам, \nед","Базовый вид спорта, ед","Численность обучающихся и занимающихся на 31 декабря отчетного периода, чел"]
[null,null,null,null,null,null,null,"Итого обучающихся и занимающихся","Обучающиеся по дополнительным общеобразовательным программам в области адаптивной физической культуры и спорта",null,null,null,null,null,null,null,"Занимающиеся на спортивно-оздоровительном этапе в рамках работ",null,"Спортсмены,\nспортсмены-инструкторы"]
[null,null,null,null,null,null,null,null,"Всего обучающихся по дополнительным образовательным программам спортивной подготовки","по дополнительным образовательным программам спортивной подготовки",null,null,null,"в возрасте\nот 6 до 17 лет\n(из гр. 9)","по дополнительным\nобщеразвивающим\nпрограммам\n(спортивно-\nоздоровительный\nэтап)","в возрасте\nот 6 до 17 лет\n(из гр.15)","Всего занимающихся","в возрасте\nот 6 до 17 лет\n(из гр.17)","Всего","трудоустроены\nв РЦСП\n(из гр.19)"]
[null,null,null,null,null,null,null,null,null,"в том числе по этапам подготовки (из гр. 9)"]
[null,null,null,null,null,null,null,null,null,"начальной\nподготовки","учебно-\nтренировочный\n(этап спортивной специализации)","совершенствова-ния спортивного\nмастерства","высшего\nспортивного\nмастерства"]
[1,2,3,4,5,6,7,8,9,10,11,12,13,14,15,16,17,18,19,20]
["Всего (сумма строк 07, 39, 61, 94, 118, 120)","01",{"$f":"SUM(C9:C13)","v":1},{"$f":"SUM(D9:D13)","v":1},{"$f":"SUM(E14,E46,E68,E101,E125,E127)","v":1},13,null,169,55,38,15,2,0,24,114,83,0,{"$f":"SUM(R14,R46,R68,R101,R125,R127)","v":0},{"$f":"SUM(S9:S13)","v":0},{"$f":"SUM(T9:T13)","v":0}]
["в том числе по виду организации: \nспортивно-адаптивные школы","02",null,null,null,null,null,{"$f":"SUM(I9,O9,Q9)","v":0},{"$f":"SUM(J9:M9)","v":0}]
["спортивно-адаптивные школы паралимпийского и (или) сурдлимпийского резерва","03",null,null,null,null,null,{"$f":"SUM(I10,O10,Q10)","v":0},{"$f":"SUM(J10:M10)","v":0}]
["региональные центры спортивной подготовки по адаптивным видам спорта","04",null,null,null,null,null,0,0]
["СШ, СШОР, УОР ","05",1,1,1,13,null,169,55,38,15,2,null,24,114,83]
["другие организации","06",null,null,null,null,null,0,0]
["Всего по виду спорта \n\"Спорт глухих\"","07",null,null,null,{"$f":"SUM(F15:F45)","v":1},null,3,3,{"$f":"SUM(J15:J45)","v":3},0,0,0,3,0,0,0,0,0,0]
["в том числе по дисциплинам:\nармрестлинг","08",null,null,null,null,null,0,0]
["бадминтон","09",null,null,null,null,null,0,0]
["баскетбол",10,null,null,null,null,null,0,0]
["боулинг",11,null,null,null,null,null,0,0]
["велосипедный спорт - маунтинбайк",12,null,null,null,null,null,0,0]
["велосипедный спорт - шоссе",13,null,null,null,null,null,0,0]
["волейбол",14,null,null,null,null,null,0,0]
["волейбол - пляжный",15,null,null,null,null,null,0,0]
["вольная борьба",16,null,null,null,null,null,0,0]
["гандбол",17,null,null,null,null,null,0,0]
["гольф",18,null,null,null,null,null,0,0]
["горнолыжный спорт",19,null,null,null,null,null,0,0]
["греко-римская борьба",20,null,null,null,null,null,0,0]
["дзюдо",21,null,null,null,null,null,0,0]
["каратэ",22,null,null,null,null,null,0,0]
["кёрлинг",23,null,null,null,null,null,0,0]
["легкая атлетика",24,null,null,null,null,null,0,0]
["лыжные гонки",25,null,null,null,null,null,0,0]
["настольный теннис",26,null,null,null,null,null,0,0]
["плавание",27,null,null,1,1,null,3,3,3,null,null,null,3]
["пулевая стрельба",28,null,null,null,null,null,0,0]
["самбо",29,null,null,null,null,null,0,0]
["сноуборд",30,null,null,null,null,null,0,0]
["спортивное ориентирование",31,null,null,null,null,null,0,0]
["теннис",32,null,null,null,null,null,0,0]
["тхэквондо",33,null,null,null,null,null,0,0]
["футбол",34,null,null,null,null,null,0,0]
["футзал",35,null,null,null,null,null,0,0]
["хоккей",36,null,null,null,null,null,0,0]
["шахматы",37,null,null,null,null,null,0,0]
["шашки",38,null,null,null,null,null,0,0]
["Всего по виду спорта\n\"Спорт лиц с интеллектуальными нарушениями\"",39,null,null,null,{"$f":"SUM(F47:F67)","v":4},null,114,19,{"$f":"SUM(J47:J67)","v":19},0,0,0,10,95,68,0,0,0,0]
["в том числе по дисциплинам:\nакадемическая гребля ",40,null,null,null,null,null,0,0]
["академическая гребля - индор",41,null,null,null,null,null,0,0]
["бадминтон",42,null,null,null,1,null,29,9,9,null,null,null,7,20,20]
["баскетбол",43,null,null,null,null,null,0,0]
["баскетбол 3х3",44,null,null,null,null,null,0,0]
["велоспорт-трек",45,null,null,null,null,null,0,0]
["велоспорт-шоссе",46,null,null,null,null,null,0,0]
["гандбол",47,null,null,null,null,null,0,0]
["горнолыжный спорт",48,null,null,null,null,null,0,0]
["дзюдо",49,null,null,null,null,null,0,0]
["конный спорт",50,null,null,null,null,null,0,0]
["легкая атлетика",51,null,null,null,null,null,0,0]
["лыжные гонки",52,null,null,null,null,null,0,0]
["мини-футбол (футзал)",53,null,null,null,null,null,0,0]
["настольный теннис",54,null,null,null,null,null,0,0]
["пауэрлифтинг (троеборье)",55,null,null,null,1,null,10,10,10,null,null,null,3]
["плавание",56,null,null,null,2,null,75,0,null,null,null,null,null,75,48]
["спортивная гимнастика",57,null,null,null,null,null,0,0]
["теннис",58,null,null,null,null,null,0,0]
["тхэквондо (пхумсэ)",59,null,null,null,null,null,0,0]
["футбол",60,null,null,null,null,null,0,0]
["Всего по виду спорта \n\"Спорт лиц с поражением ОДА\"",61,null,null,1,{"$f":"SUM(F69:F100)","v":7},null,48,29,{"$f":"SUM(J69:J100)","v":12},15,2,0,11,19,15,0,0,0,0]
["в том числе по дисциплинам:\nакадемическая гребля ",62,null,null,null,null,null,0,0]
["академическая гребля - эргометр",63,null,null,null,null,null,0,0]
["бадминтон",64,null,null,null,2,null,11,11,5,6,null,null,6]
["баскетбол на колясках",65,null,null,null,null,null,0,0]
["биатлон",66,null,null,null,null,null,0,0]
["бочча",67,null,null,null,1,null,{"$f":"SUM(I74,O74,Q74)","v":21},{"$f":"SUM(J74:M74)","v":2},null,2,null,null,null,19,15]
["велоспорт - трек",68,null,null,null,null,null,0,0]
["велоспорт - шоссе",69,null,null,null,null,null,0,0]
["волейбол сидя",70,null,null,null,null,null,0,0]
["горнолыжный спорт",71,null,null,null,null,null,0,0]
["гребля на байдарках и каноэ",72,null,null,null,null,null,0,0]
["дартс",73,null,null,null,null,null,0,0]
["конный спорт",74,null,null,null,null,null,0,0]
["легкая атлетика",75,null,null,null,null,null,0,0]
["лыжные гонки",76,null,null,null,null,null,0,0]
["настольный теннис",77,null,null,null,null,null,0,0]
["парусный спорт",78,null,null,null,null,null,0,0]
["пауэрлифтинг",79,null,null,1,3,null,13,13,4,7,2,null,2]
["плавание",80,null,null,null,1,null,3,3,3,null,null,null,3]
["пулевая стрельба",81,null,null,null,null,null,0,0]
["регби на колясках",82,null,null,null,null,null,0,0]
["сноуборд",83,null,null,null,null,null,0,0]
["спортивное ориентирование",84,null,null,null,null,null,0,0]
["стендовая стрельба",85,null,null,null,null,null,0,0]
["стрельба из лука",86,null,null,null,null,null,0,0]
["танцы на колясках",87,null,null,null,null,null,0,0]
["теннис на колясках",88,null,null,null,null,null,0,0]
["фехтование",89,null,null,null,null,null,0,0]
["футбол ампутантов",90,null,null,null,null,null,0,0]
["хоккей - следж",91,null,null,null,null,null,0,0]
["шахматы",92,null,null,null,null,null,0,0]
["шашки",93,null,null,null,null,null,0,0]
["Всего по виду спорта\n\"Спорт слепых\"",94,null,null,null,{"$f":"SUM(F102:F124)","v":1},null,4,4,{"$f":"SUM(J102:J124)","v":4},0,0,0,0,0,0,0,0,0,{"$f":"SUM(T102:T124)","v":0}]
["в том числе по дисциплинам:\nармрестлинг",95,null,null,null,null,null,0,0]
["биатлон",96,null,null,null,null,null,0,0]
["борьба",97,null,null,null,null,null,0,0]
["боулинг",98,null,null,null,null,null,0,0]
["велоспорт-тандем - трек",99,null,null,null,null,null,0,0]
["велоспорт-тандем - шоссе",100,null,null,null,null,null,0,0]
["голбол",101,null,null,null,null,null,0,0]
["горнолыжный спорт",102,null,null,null,null,null,0,0]
["дзюдо",103,null,null,null,null,null,0,0]
["легкая атлетика",104,null,null,null,null,null,0,0]
["лыжные гонки",105,null,null,null,null,null,0,0]
["настольный теннис",106,null,null,null,null,null,0,0]
["пауэрлифтинг",107,null,null,null,1,null,4,4,4]
["плавание",108,null,null,null,null,null,0,0]
["пулевая стрельба",109,null,null,null,null,null,0,0]
["самбо",110,null,null,null,null,null,0,0]
["спортивный туризм - многоборье",111,null,null,null,null,null,0,0]
["торбол",112,null,null,null,null,null,0,0]
["триатлон",113,null,null,null,null,null,0,0]
["футбол - мини-футбол 5х5 (B1)",114,null,null,null,null,null,0,0]
["футбол - футзал 5х5 (B2, B3)",115,null,null,null,null,null,0,0]
["шахматы",116,null,null,null,null,null,0,0]
["шашки",117,null,null,null,null,null,0,0]
["Всего по виду спорта\n\"Футбол лиц с заболеванием ЦП\"",118,null,null,null,{"$f":"SUM(F126)","v":0},null,0,0,{"$f":"SUM(J126)","v":0},0,0,0,0,0,0,0,0,0,0]
["футбол лиц с заболеванием ЦП",119,null,null,null,null,null,0,0]
["Всего по другим видам спорта, спортивным дисциплинам",120,null,null,null,{"$f":"SUM(F128:F135)","v":0},null,0,0,{"$f":"SUM(J128:J135)","v":0},0,0,0,0,0,0,0,0,0,0]
["в том числе по дисциплинам:\nармрестлинг (ПОДА)",121,null,null,null,null,null,0,0]
["водно-моторный спорт (ПОДА - мотолодка)",122,null,null,null,null,null,0,0]
["каратэ (ПОДА - ката)",123,null,null,null,null,null,0,0]
["кёрлинг (ПОДА - кёрлинг на колясках)",124,null,null,null,null,null,0,0]
["скалолазание (ПОДА - лазание на трудность)",125,null,null,null,null,null,0,0]
["триатлон (ПОДА - триатлон)",126,null,null,null,null,null,0,0]
["тхэквондо (ВТФ - ПОДА)",127,null,null,null,null,null,0,0]
["футбол (ПОДА - футбол на электроколясках)",128,null,null,null,null,null,0,0]
["Всего по базовым видам спорта (из строки 01)",129]
["Всего по видам спорта и (или) спортивным дисциплинам, включенным в Паралимпийскую программу",130,null,null,null,null,null,{"$f":"SUM(H58,H61,H63,H69,H71:H79,H81:H84,H86:H90,H93,H95:H96,H98,H103,H106:H112,H115,H120:H121,H131,H133:H134)","v":123},{"$f":"SUM(I58,I61,I63,I69,I71:I79,I81:I84,I86:I90,I93,I95:I96,I98,I103,I106:I112,I115,I120:I121,I131,I133:I134)","v":29},12,15,2,0,11,94,63,0,0,0,0]
["Всего по видам спорта и (или) спортивным дисциплинам, включенным в Сурдлимпийскую программу",131,null,null,null,null,null,{"$f":"SUM(H16:H35,H37:H44)","v":3},{"$f":"SUM(I16:I35,I37:I44)","v":3},3,0,0,0,3,0,0,0,0,0,0]
["Ведомственная принадлежность организаций",132,{"$f":"SUM(C140:C142)","v":1},{"$f":"SUM(D140:D142)","v":1},1,13,null,169,55,38,15,2,0,24,114,83,0,0,0,0]
["в том числе:\nв сфере физической культуры и спорта",133,1,1,1,13,null,{"$f":"SUM(I140,O140,Q140)","v":169},{"$f":"SUM(J140:M140)","v":55},38,15,2,null,24,114,83]
["в сфере образования",134,null,null,null,null,null,0,0]
["в сфере труда и социальной защиты",135,null,null,null,null,null,0,0]

{"sheet":"Раздел IV","index":4,"n_rows":141,"n_cols":23,"rows_kept":141,"cut":false,"hidden":false,"merged":[[1,0,4,0],[1,2,1,11],[0,0,0,21],[3,3,4,3],[3,4,3,5],[2,2,4,2],[2,3,2,5],[1,1,4,1],[3,6,4,6],[3,7,3,8],[2,6,2,8],[3,9,4,9],[3,10,3,11],[2,9,2,11],[1,12,1,21],[2,13,2,15],[2,12,4,12],[2,16,2,18],[2,19,2,21],[3,13,4,13],[3,14,3,15],[3,16,4,16],[3,17,3,18],[3,19,4,19],[3,20,3,21]]}
["Раздел IV. Сведения о кандидатах в спортивные сборные команды Российской Федерации, человек"]
["Наименование вида спорта,\nспортивной дисциплины","№\n строки","Кандидаты, состоящие в списках спортивных сборных команд Российской Федерации (из гр. 8  раздела III):",null,null,null,null,null,null,null,null,null,"Кандидаты, подготовленные в отчетном периоде"]
[null,null,"Всего кандидатов","Юношеский состав",null,null,"Юниорский состав",null,null,"Основной состав",null,null,"Всего кандидатов","Юношеский состав",null,null,"Юниорский состав",null,null,"Основной состав"]
[null,null,null,"Всего по юношескому составу","в том числе:",null,"Всего по юниорскому составу","в том числе:",null,"Всего по основному\nсоставу","в том числе:",null,null,"Всего по юношескому составу","в том числе:",null,"Всего по юниорскому составу","в том числе:",null,"Всего по основному составу","в том числе:"]
[null,null,null,null,"основной","резервный",null,"основной","резервный",null,"основной","резервный",null,null,"основной","резервный",null,"основной","резервный",null,"основной","резервный"]
[1,2,3,4,5,6,7,8,9,10,11,12,13,14,15,16,17,18,19,20,21,22]
["Всего (сумма строк 07, 39, 61, 94, 118, 120)","01",{"$f":"SUM(D7,G7,J7)","v":6},{"$f":"SUM(D13,D45,D67,D100,D124,D126)","v":1},{"$f":"SUM(E13,E45,E67,E100,E124,E126)","v":1},{"$f":"SUM(F13,F45,F67,F100,F124,F126)","v":0},0,0,0,5,3,2,3,1,1,0,0,0,0,2,2,0]
["в том числе по виду организации:\nспортивно-адаптивные школы","02",{"$f":"SUM(D8,G8,J8)","v":0},{"$f":"SUM(E8:F8)","v":0},null,null,{"$f":"SUM(H8:I8)","v":0},null,null,{"$f":"SUM(K8:L8)","v":0},null,null,{"$f":"SUM(N8,Q8,T8)","v":0},{"$f":"SUM(O8:P8)","v":0},null,null,{"$f":"SUM(R8:S8)","v":0},null,null,{"$f":"SUM(U8:V8)","v":0}]
["спортивно-адаптивные школы паралимпийского и (или) сурдлимпийского резерва","03",0,0,null,null,0,null,null,0,null,null,0,0,null,null,0,null,null,0]
["региональные центры спортивной подготовки по адаптивным видам спорта","04",0,0,null,null,0,null,null,0,null,null,0,0,null,null,0,null,null,0]
["СШ, СШОР, УОР ","05",6,1,1,null,0,null,null,5,3,2,3,1,1,null,0,null,null,2,2]
["другие организации","06",0,0,null,null,0,null,null,0,null,null,0,0,null,null,0,null,null,0]
["Всего по виду спорта\n\"Спорт глухих\"","07",0,{"$f":"SUM(D14:D44)","v":0},{"$f":"SUM(E14:E44)","v":0},0,0,0,0,0,0,0,0,0,0,0,0,0,0,0,0,0,{"$f":"'Раздел III'!H14","v":3}]
["в том числе по дисциплинам:\nармрестлинг","08",0,0,null,null,0,null,null,0,null,null,0,0,null,null,0,null,null,0,null,null,{"$f":"'Раздел III'!H15","v":0}]
["бадминтон","09",0,0,null,null,0,null,null,0,null,null,0,0,null,null,0,null,null,0,null,null,{"$f":"'Раздел III'!H16","v":0}]
["баскетбол",10,0,0,null,null,0,null,null,0,null,null,0,0,null,null,0,null,null,0,null,null,{"$f":"'Раздел III'!H17","v":0}]
["боулинг",11,0,0,null,null,0,null,null,0,null,null,0,0,null,null,0,null,null,0,null,null,{"$f":"'Раздел III'!H18","v":0}]
["велосипедный спорт - маунтинбайк",12,0,0,null,null,0,null,null,0,null,null,0,0,null,null,0,null,null,0,null,null,{"$f":"'Раздел III'!H19","v":0}]
["велосипедный спорт - шоссе",13,0,0,null,null,0,null,null,0,null,null,0,0,null,null,0,null,null,0,null,null,{"$f":"'Раздел III'!H20","v":0}]
["волейбол",14,0,0,null,null,0,null,null,0,null,null,0,0,null,null,0,null,null,0,null,null,{"$f":"'Раздел III'!H21","v":0}]
["волейбол - пляжный",15,0,0,null,null,0,null,null,0,null,null,0,0,null,null,0,null,null,0,null,null,{"$f":"'Раздел III'!H22","v":0}]
["вольная борьба",16,0,0,null,null,0,null,null,0,null,null,0,0,null,null,0,null,null,0,null,null,{"$f":"'Раздел III'!H23","v":0}]
["гандбол",17,0,0,null,null,0,null,null,0,null,null,0,0,null,null,0,null,null,0,null,null,{"$f":"'Раздел III'!H24","v":0}]
["гольф",18,0,0,null,null,0,null,null,0,null,null,0,0,null,null,0,null,null,0,null,null,{"$f":"'Раздел III'!H25","v":0}]
["горнолыжный спорт",19,0,0,null,null,0,null,null,0,null,null,0,0,null,null,0,null,null,0,null,null,{"$f":"'Раздел III'!H26","v":0}]
["греко-римская борьба",20,0,0,null,null,0,null,null,0,null,null,0,0,null,null,0,null,null,0,null,null,{"$f":"'Раздел III'!H27","v":0}]
["дзюдо",21,0,0,null,null,0,null,null,0,null,null,0,0,null,null,0,null,null,0,null,null,{"$f":"'Раздел III'!H28","v":0}]
["каратэ",22,0,0,null,null,0,null,null,0,null,null,0,0,null,null,0,null,null,0,null,null,{"$f":"'Раздел III'!H29","v":0}]
["кёрлинг",23,0,0,null,null,0,null,null,0,null,null,0,0,null,null,0,null,null,0,null,null,{"$f":"'Раздел III'!H30","v":0}]
["легкая атлетика",24,0,0,null,null,0,null,null,0,null,null,0,0,null,null,0,null,null,0,null,null,{"$f":"'Раздел III'!H31","v":0}]
["лыжные гонки",25,0,0,null,null,0,null,null,0,null,null,0,0,null,null,0,null,null,0,null,null,{"$f":"'Раздел III'!H32","v":0}]
["настольный теннис",26,0,0,null,null,0,null,null,0,null,null,0,0,null,null,0,null,null,0,null,null,{"$f":"'Раздел III'!H33","v":0}]
["плавание",27,0,0,null,null,0,null,null,0,null,null,0,0,null,null,0,null,null,0,null,null,{"$f":"'Раздел III'!H34","v":3}]
["пулевая стрельба",28,0,0,null,null,0,null,null,0,null,null,0,0,null,null,0,null,null,0,null,null,{"$f":"'Раздел III'!H35","v":0}]
["самбо",29,0,0,null,null,0,null,null,0,null,null,0,0,null,null,0,null,null,0,null,null,{"$f":"'Раздел III'!H36","v":0}]
["сноуборд",30,0,0,null,null,0,null,null,0,null,null,0,0,null,null,0,null,null,0,null,null,{"$f":"'Раздел III'!H37","v":0}]
["спортивное ориентирование",31,0,0,null,null,0,null,null,0,null,null,0,0,null,null,0,null,null,0,null,null,{"$f":"'Раздел III'!H38","v":0}]
["теннис",32,0,0,null,null,0,null,null,0,null,null,0,0,null,null,0,null,null,0,null,null,{"$f":"'Раздел III'!H39","v":0}]
["тхэквондо",33,0,0,null,null,0,null,null,0,null,null,0,0,null,null,0,null,null,0,null,null,{"$f":"'Раздел III'!H40","v":0}]
["футбол",34,0,0,null,null,0,null,null,0,null,null,0,0,null,null,0,null,null,0,null,null,{"$f":"'Раздел III'!H41","v":0}]
["футзал",35,0,0,null,null,0,null,null,0,null,null,0,0,null,null,0,null,null,0,null,null,{"$f":"'Раздел III'!H42","v":0}]
["хоккей",36,0,0,null,null,0,null,null,0,null,null,0,0,null,null,0,null,null,0,null,null,{"$f":"'Раздел III'!H43","v":0}]
["шахматы",37,0,0,null,null,0,null,null,0,null,null,0,0,null,null,0,null,null,0,null,null,{"$f":"'Раздел III'!H44","v":0}]
["шашки",38,0,0,null,null,0,null,null,0,null,null,0,0,null,null,0,null,null,0,null,null,{"$f":"'Раздел III'!H45","v":0}]
["Всего по виду спорта \n\"Спорт лиц с интеллектуальными нарушениями\"",39,2,{"$f":"SUM(D46:D66)","v":1},{"$f":"SUM(E46:E66)","v":1},0,0,0,0,1,1,0,1,1,1,0,0,0,0,0,0,0,{"$f":"'Раздел III'!H46","v":114}]
["в том числе по дисциплинам:\nакадемическая гребля ",40,0,0,null,null,0,null,null,0,null,null,0,0,null,null,0,null,null,0,null,null,{"$f":"'Раздел III'!H47","v":0}]
["академическая гребля - индор",41,0,0,null,null,0,null,null,0,null,null,0,0,null,null,0,null,null,0,null,null,{"$f":"'Раздел III'!H48","v":0}]
["бадминтон",42,0,0,null,null,0,null,null,0,null,null,0,0,null,null,0,null,null,0,null,null,{"$f":"'Раздел III'!H49","v":29}]
["баскетбол",43,0,0,null,null,0,null,null,0,null,null,0,0,null,null,0,null,null,0,null,null,{"$f":"'Раздел III'!H50","v":0}]
["баскетбол 3х3",44,0,0,null,null,0,null,null,0,null,null,0,0,null,null,0,null,null,0,null,null,{"$f":"'Раздел III'!H51","v":0}]
["велоспорт-трек",45,0,0,null,null,0,null,null,0,null,null,0,0,null,null,0,null,null,0,null,null,{"$f":"'Раздел III'!H52","v":0}]
["велоспорт-шоссе",46,0,0,null,null,0,null,null,0,null,null,0,0,null,null,0,null,null,0,null,null,{"$f":"'Раздел III'!H53","v":0}]
["гандбол",47,0,0,null,null,0,null,null,0,null,null,0,0,null,null,0,null,null,0,null,null,{"$f":"'Раздел III'!H54","v":0}]
["горнолыжный спорт",48,0,0,null,null,0,null,null,0,null,null,0,0,null,null,0,null,null,0,null,null,{"$f":"'Раздел III'!H55","v":0}]
["дзюдо",49,0,0,null,null,0,null,null,0,null,null,0,0,null,null,0,null,null,0,null,null,{"$f":"'Раздел III'!H56","v":0}]
["конный спорт",50,0,0,null,null,0,null,null,0,null,null,0,0,null,null,0,null,null,0,null,null,{"$f":"'Раздел III'!H57","v":0}]
["легкая атлетика",51,0,0,null,null,0,null,null,0,null,null,0,0,null,null,0,null,null,0,null,null,{"$f":"'Раздел III'!H58","v":0}]
["лыжные гонки",52,0,0,null,null,0,null,null,0,null,null,0,0,null,null,0,null,null,0,null,null,{"$f":"'Раздел III'!H59","v":0}]
["мини-футбол (футзал)",53,0,0,null,null,0,null,null,0,null,null,0,0,null,null,0,null,null,0,null,null,{"$f":"'Раздел III'!H60","v":0}]
["настольный теннис",54,0,0,null,null,0,null,null,0,null,null,0,0,null,null,0,null,null,0,null,null,{"$f":"'Раздел III'!H61","v":0}]
["пауэрлифтинг (троеборье)",55,2,1,1,null,0,null,null,1,1,null,1,1,1,null,0,null,null,0,null,null,{"$f":"'Раздел III'!H62","v":10}]
["плавание",56,0,0,null,null,0,null,null,0,null,null,0,0,null,null,0,null,null,0,null,null,{"$f":"'Раздел III'!H63","v":75}]
["спортивная гимнастика",57,0,0,null,null,0,null,null,0,null,null,0,0,null,null,0,null,null,0,null,null,{"$f":"'Раздел III'!H64","v":0}]
["теннис",58,0,0,null,null,0,null,null,0,null,null,0,0,null,null,0,null,null,0,null,null,{"$f":"'Раздел III'!H65","v":0}]
["тхэквондо (пхумсэ)",59,0,0,null,null,0,null,null,0,null,null,0,0,null,null,0,null,null,0,null,null,{"$f":"'Раздел III'!H66","v":0}]
["футбол",60,0,0,null,null,0,null,null,0,null,null,0,0,null,null,0,null,null,0,null,null,{"$f":"'Раздел III'!H67","v":0}]
["Всего по виду спорта \n\"Спорт лиц с поражением ОДА\"",61,2,{"$f":"SUM(D68:D99)","v":0},{"$f":"SUM(E68:E99)","v":0},0,0,0,0,2,2,0,1,0,0,0,0,0,0,1,1,0,{"$f":"'Раздел III'!H68","v":48}]
[" в том числе по дисциплинам:\nакадемическая гребля ",62,0,0,null,null,0,null,null,0,null,null,0,0,null,null,0,null,null,0,null,null,{"$f":"'Раздел III'!H69","v":0}]
["академическая гребля - эргометр",63,0,0,null,null,0,null,null,0,null,null,0,0,null,null,0,null,null,0,null,null,{"$f":"'Раздел III'!H70","v":0}]
["бадминтон",64,0,0,null,null,0,null,null,0,null,null,0,0,null,null,0,null,null,0,null,null,{"$f":"'Раздел III'!H71","v":11}]
["баскетбол на колясках",65,0,0,null,null,0,null,null,0,null,null,0,0,null,null,0,null,null,0,null,null,{"$f":"'Раздел III'!H72","v":0}]
["биатлон",66,{"$f":"SUM(D72,G72,J72)","v":0},{"$f":"SUM(E72:F72)","v":0},null,null,{"$f":"SUM(H72:I72)","v":0},null,null,{"$f":"SUM(K72:L72)","v":0},null,null,{"$f":"SUM(N72,Q72,T72)","v":0},{"$f":"SUM(O72:P72)","v":0},null,null,{"$f":"SUM(R72:S72)","v":0},null,null,{"$f":"SUM(U72:V72)","v":0},null,null,{"$f":"'Раздел III'!H73","v":0}]
["бочча",67,1,0,null,null,0,null,null,1,1,null,1,0,null,null,0,null,null,1,1,null,{"$f":"'Раздел III'!H74","v":21}]
["велоспорт - трек",68,0,0,null,null,0,null,null,0,null,null,0,0,null,null,0,null,null,0,null,null,{"$f":"'Раздел III'!H75","v":0}]
["велоспорт - шоссе",69,0,0,null,null,0,null,null,0,null,null,0,0,null,null,0,null,null,0,null,null,{"$f":"'Раздел III'!H76","v":0}]
["волейбол сидя",70,0,0,null,null,0,null,null,0,null,null,0,0,null,null,0,null,null,0,null,null,{"$f":"'Раздел III'!H77","v":0}]
["горнолыжный спорт",71,0,0,null,null,0,null,null,0,null,null,0,0,null,null,0,null,null,0,null,null,{"$f":"'Раздел III'!H78","v":0}]
["гребля на байдарках и каноэ",72,0,0,null,null,0,null,null,0,null,null,0,0,null,null,0,null,null,0,null,null,{"$f":"'Раздел III'!H79","v":0}]
["дартс",73,0,0,null,null,0,null,null,0,null,null,0,0,null,null,0,null,null,0,null,null,{"$f":"'Раздел III'!H80","v":0}]
["конный спорт",74,0,0,null,null,0,null,null,0,null,null,0,0,null,null,0,null,null,0,null,null,{"$f":"'Раздел III'!H81","v":0}]
["легкая атлетика",75,0,0,null,null,0,null,null,0,null,null,0,0,null,null,0,null,null,0,null,null,{"$f":"'Раздел III'!H82","v":0}]
["лыжные гонки",76,0,0,null,null,0,null,null,0,null,null,0,0,null,null,0,null,null,0,null,null,{"$f":"'Раздел III'!H83","v":0}]
["настольный теннис",77,0,0,null,null,0,null,null,0,null,null,0,0,null,null,0,null,null,0,null,null,{"$f":"'Раздел III'!H84","v":0}]
["парусный спорт",78,0,0,null,null,0,null,null,0,null,null,0,0,null,null,0,null,null,0,null,null,{"$f":"'Раздел III'!H85","v":0}]
["пауэрлифтинг",79,1,0,null,null,0,null,null,1,1,null,0,0,null,null,0,null,null,0,null,null,{"$f":"'Раздел III'!H86","v":13}]
["плавание",80,0,0,null,null,0,null,null,0,null,null,0,0,null,null,0,null,null,0,null,null,{"$f":"'Раздел III'!H87","v":3}]
["пулевая стрельба",81,0,0,null,null,0,null,null,0,null,null,0,0,null,null,0,null,null,0,null,null,{"$f":"'Раздел III'!H88","v":0}]
["регби на колясках",82,0,0,null,null,0,null,null,0,null,null,0,0,null,null,0,null,null,0,null,null,{"$f":"'Раздел III'!H89","v":0}]
["сноуборд",83,0,0,null,null,0,null,null,0,null,null,0,0,null,null,0,null,null,0,null,null,{"$f":"'Раздел III'!H90","v":0}]
["спортивное ориентирование",84,0,0,null,null,0,null,null,0,null,null,0,0,null,null,0,null,null,0,null,null,{"$f":"'Раздел III'!H91","v":0}]
["стендовая стрельба",85,0,0,null,null,0,null,null,0,null,null,0,0,null,null,0,null,null,0,null,null,{"$f":"'Раздел III'!H92","v":0}]
["стрельба из лука",86,0,0,null,null,0,null,null,0,null,null,0,0,null,null,0,null,null,0,null,null,{"$f":"'Раздел III'!H93","v":0}]
["танцы на колясках",87,0,0,null,null,0,null,null,0,null,null,0,0,null,null,0,null,null,0,null,null,{"$f":"'Раздел III'!H94","v":0}]
["теннис на колясках",88,0,0,null,null,0,null,null,0,null,null,0,0,null,null,0,null,null,0,null,null,{"$f":"'Раздел III'!H95","v":0}]
["фехтование",89,0,0,null,null,0,null,null,0,null,null,0,0,null,null,0,null,null,0,null,null,{"$f":"'Раздел III'!H96","v":0}]
["футбол ампутантов",90,0,0,null,null,0,null,null,0,null,null,0,0,null,null,0,null,null,0,null,null,{"$f":"'Раздел III'!H97","v":0}]
["хоккей - следж",91,0,0,null,null,0,null,null,0,null,null,0,0,null,null,0,null,null,0,null,null,{"$f":"'Раздел III'!H98","v":0}]
["шахматы",92,0,0,null,null,0,null,null,0,null,null,0,0,null,null,0,null,null,0,null,null,{"$f":"'Раздел III'!H99","v":0}]
["шашки",93,0,0,null,null,0,null,null,0,null,null,0,0,null,null,0,null,null,0,null,null,{"$f":"'Раздел III'!H100","v":0}]
["Всего по виду спорта\n \"Спорт слепых\"",94,2,{"$f":"SUM(D101:D123)","v":0},{"$f":"SUM(E101:E123)","v":0},0,0,0,0,2,0,2,1,0,0,0,0,0,0,1,1,{"$f":"SUM(V101:V123)","v":0},{"$f":"'Раздел III'!H101","v":4}]
["в том числе по дисциплинам:\nармрестлинг",95,0,0,null,null,0,null,null,0,null,null,0,0,null,null,0,null,null,0,null,null,{"$f":"'Раздел III'!H102","v":0}]
["биатлон",96,0,0,null,null,0,null,null,0,null,null,0,0,null,null,0,null,null,0,null,null,{"$f":"'Раздел III'!H103","v":0}]
["борьба",97,0,0,null,null,0,null,null,0,null,null,0,0,null,null,0,null,null,0,null,null,{"$f":"'Раздел III'!H104","v":0}]
["боулинг",98,0,0,null,null,0,null,null,0,null,null,0,0,null,null,0,null,null,0,null,null,{"$f":"'Раздел III'!H105","v":0}]
["велоспорт-тандем - трек",99,0,0,null,null,0,null,null,0,null,null,0,0,null,null,0,null,null,0,null,null,{"$f":"'Раздел III'!H106","v":0}]
["велоспорт-тандем - шоссе",100,0,0,null,null,0,null,null,0,null,null,0,0,null,null,0,null,null,0,null,null,{"$f":"'Раздел III'!H107","v":0}]
["голбол",101,0,0,null,null,0,null,null,0,null,null,0,0,null,null,0,null,null,0,null,null,{"$f":"'Раздел III'!H108","v":0}]
["горнолыжный спорт",102,0,0,null,null,0,null,null,0,null,null,0,0,null,null,0,null,null,0,null,null,{"$f":"'Раздел III'!H109","v":0}]
["дзюдо",103,0,0,null,null,0,null,null,0,null,null,0,0,null,null,0,null,null,0,null,null,{"$f":"'Раздел III'!H110","v":0}]
["легкая атлетика",104,0,0,null,null,0,null,null,0,null,null,0,0,null,null,0,null,null,0,null,null,{"$f":"'Раздел III'!H111","v":0}]
["лыжные гонки",105,0,0,null,null,0,null,null,0,null,null,0,0,null,null,0,null,null,0,null,null,{"$f":"'Раздел III'!H112","v":0}]
["настольный теннис",106,0,0,null,null,0,null,null,0,null,null,0,0,null,null,0,null,null,0,null,null,{"$f":"'Раздел III'!H113","v":0}]
["пауэрлифтинг",107,2,0,null,null,0,null,null,2,null,2,1,0,null,null,0,null,null,1,1,null,{"$f":"'Раздел III'!H114","v":4}]
["плавание",108,0,0,null,null,0,null,null,0,null,null,0,0,null,null,0,null,null,0,null,null,{"$f":"'Раздел III'!H115","v":0}]
["пулевая стрельба",109,0,0,null,null,0,null,null,0,null,null,0,0,null,null,0,null,null,0,null,null,{"$f":"'Раздел III'!H116","v":0}]
["самбо",110,0,0,null,null,0,null,null,0,null,null,0,0,null,null,0,null,null,0,null,null,{"$f":"'Раздел III'!H117","v":0}]
["спортивный туризм - многоборье",111,0,0,null,null,0,null,null,0,null,null,0,0,null,null,0,null,null,0,null,null,{"$f":"'Раздел III'!H118","v":0}]
["торбол",112,0,0,null,null,0,null,null,0,null,null,0,0,null,null,0,null,null,0,null,null,{"$f":"'Раздел III'!H119","v":0}]
["триатлон",113,0,0,null,null,0,null,null,0,null,null,0,0,null,null,0,null,null,0,null,null,{"$f":"'Раздел III'!H120","v":0}]
["футбол - мини-футбол 5х5 (B1)",114,0,0,null,null,0,null,null,0,null,null,0,0,null,null,0,null,null,0,null,null,{"$f":"'Раздел III'!H121","v":0}]
["футбол - футзал 5х5 (B2, B3)",115,0,0,null,null,0,null,null,0,null,null,0,0,null,null,0,null,null,0,null,null,{"$f":"'Раздел III'!H122","v":0}]
["шахматы",116,0,0,null,null,0,null,null,0,null,null,0,0,null,null,0,null,null,0,null,null,{"$f":"'Раздел III'!H123","v":0}]
["шашки",117,0,0,null,null,0,null,null,0,null,null,0,0,null,null,0,null,null,0,null,null,{"$f":"'Раздел III'!H124","v":0}]
["Всего по виду спорта\n\"Футбол лиц с заболеванием ЦП\"",118,0,{"$f":"SUM(D125)","v":0},{"$f":"SUM(E125)","v":0},0,0,0,0,0,0,0,0,0,0,0,0,0,0,0,0,{"$f":"SUM(V125)","v":0},{"$f":"'Раздел III'!H125","v":0}]
["футбол лиц с заболеванием ЦП",119,0,0,null,null,0,null,null,0,null,null,0,0,null,null,0,null,null,0,null,null,{"$f":"'Раздел III'!H126","v":0}]
["Всего по другим видам спорта, спортивным\nдисциплинам",120,0,{"$f":"SUM(D127:D134)","v":0},{"$f":"SUM(E127:E134)","v":0},0,0,0,0,0,0,0,0,0,0,0,0,0,0,0,0,{"$f":"SUM(V127:V134)","v":0},{"$f":"'Раздел III'!H127","v":0}]
["в том числе по дисциплинам:\nармрестлинг (ПОДА)",121,0,0,null,null,0,null,null,0,null,null,0,0,null,null,0,null,null,0,null,null,{"$f":"'Раздел III'!H128","v":0}]
["водно-моторный спорт (ПОДА - мотолодка)",122,0,0,null,null,0,null,null,0,null,null,0,0,null,null,0,null,null,0,null,null,{"$f":"'Раздел III'!H129","v":0}]
["каратэ (ПОДА - ката)",123,0,0,null,null,0,null,null,0,null,null,0,0,null,null,0,null,null,0,null,null,{"$f":"'Раздел III'!H130","v":0}]
["кёрлинг (ПОДА - кёрлинг на колясках)",124,0,0,null,null,0,null,null,0,null,null,0,0,null,null,0,null,null,0,null,null,{"$f":"'Раздел III'!H131","v":0}]
["скалолазание (ПОДА - лазание на трудность)",125,0,0,null,null,0,null,null,0,null,null,0,0,null,null,0,null,null,0,null,null,{"$f":"'Раздел III'!H132","v":0}]
["триатлон (ПОДА - триатлон)",126,0,0,null,null,0,null,null,0,null,null,0,0,null,null,0,null,null,0,null,null,{"$f":"'Раздел III'!H133","v":0}]
["тхэквондо (ВТФ - ПОДА)",127,0,0,null,null,0,null,null,0,null,null,0,0,null,null,0,null,null,0,null,null,{"$f":"'Раздел III'!H134","v":0}]
["футбол (ПОДА - футбол на электроколясках)",128,0,0,null,null,0,null,null,0,null,null,0,0,null,null,0,null,null,0,null,null,{"$f":"'Раздел III'!H135","v":0}]
["Всего по базовым видам спорта (из строки 01)",129,null,null,null,null,null,null,null,null,null,null,null,null,null,null,null,null,null,null,null,null,{"$f":"'Раздел III'!H136","v":0}]
["Всего по видам спорта и (или) спортивным дисциплинам, включенным в Паралимпийскую программу",130,{"$f":"SUM(C57,C60,C62,C68,C70:C78,C80:C83,C85:C89,C92,C94:C95,C97,C102,C105:C111,C114,C119:C120,C130,C132:C133)","v":2},{"$f":"SUM(D57,D60,D62,D68,D70:D78,D80:D83,D85:D89,D92,D94:D95,D97,D102,D105:D111,D114,D119:D120,D130,D132:D133)","v":0},{"$f":"SUM(E57,E60,E62,E68,E70:E78,E80:E83,E85:E89,E92,E94:E95,E97,E102,E105:E111,E114,E119:E120,E130,E132:E133)","v":0},0,0,0,0,2,2,0,1,0,0,0,0,0,0,1,1,0,{"$f":"'Раздел III'!H137","v":123}]
["Всего по видам спорта и (или) спортивным\nдисциплинам, включенным в Сурдлимпийскую программу",131,{"$f":"SUM(C15:C34,C36:C43)","v":0},{"$f":"SUM(D15:D34,D36:D43)","v":0},{"$f":"SUM(E15:E34,E36:E43)","v":0},0,0,0,0,0,0,0,0,0,0,0,0,0,0,0,0,0,{"$f":"'Раздел III'!H138","v":3}]
["Ведомственная принадлежность\nорганизаций",132,{"$f":"SUM(D138,G138,J138)","v":6},{"$f":"SUM(D139:D141)","v":1},{"$f":"SUM(E139:E141)","v":1},0,0,0,0,5,3,2,3,1,1,0,0,0,0,2,2,0,{"$f":"'Раздел III'!H139","v":169}]
["в том числе:\nв сфере физической культуры и спорта",133,6,{"$f":"SUM(E139:F139)","v":1},1,null,{"$f":"SUM(H139:I139)","v":0},null,null,{"$f":"SUM(K139:L139)","v":5},3,2,{"$f":"SUM(N139,Q139,T139)","v":3},{"$f":"SUM(O139:P139)","v":1},1,null,{"$f":"SUM(R139:S139)","v":0},null,null,{"$f":"SUM(U139:V139)","v":2},2,null,{"$f":"'Раздел III'!H140","v":169}]
["в сфере образования",134,0,0,null,null,0,null,null,0,null,null,0,0,null,null,0,null,null,0,null,null,{"$f":"'Раздел III'!H141","v":0}]
["в сфере труда и социальной защиты",135,0,0,null,null,0,null,null,0,null,null,0,0,null,null,0,null,null,0,null,null,{"$f":"'Раздел III'!H142","v":0}]

{"sheet":"Раздел V","index":5,"n_rows":142,"n_cols":31,"rows_kept":142,"cut":false,"hidden":false,"merged":[[3,4,5,4],[4,28,5,28],[4,8,4,9],[4,18,4,19],[4,23,5,23],[4,24,5,24],[4,25,5,25],[0,0,0,29],[3,21,5,21],[3,23,3,25],[2,16,2,25],[3,26,3,28],[3,29,5,29],[2,26,2,29],[3,10,5,10],[3,11,5,11],[3,13,3,15],[2,6,2,15],[3,20,5,20],[3,3,5,3],[3,2,5,2],[1,0,5,0],[1,1,5,1],[1,2,1,29],[2,2,2,5],[3,5,5,5],[3,12,5,12],[3,22,5,22],[3,6,3,9],[3,16,3,19],[4,6,5,6],[4,7,5,7],[4,13,5,13],[4,14,5,14],[4,15,5,15],[4,16,5,16],[4,17,5,17],[4,26,5,26],[4,27,5,27]]}
["Раздел V. Сведения о тренерско-преподавательском и тренерском составах, человек"]
["Наименование вида спорта,\nспортивной дисциплины","№\nстроки","Тренерско-преподавательский и тренерский составы"]
[null,null,"Численность тренеров-преподавателей по адаптивной физической культуре и спорту и тренеров по адаптивной физической культуре и спорту",null,null,null,"по основному месту работы (из гр. 4):",null,null,null,null,null,null,null,null,null,"внешние совместители (из гр. 6):",null,null,null,null,null,null,null,null,null,"(из гр. 4):"]
[null,null,"Всего","по основному месту работы \n(из гр. 3) ","внутреннее совмещение/\nсовместительство ","внешние совместители\n(из гр.3)","Имеют профессиональное образование",null,null,null,"Прошедшие\nпрофессиональную\nпереподготовку\n(за отчетный\nпериод)","Прошедшие\nповышение\nквалификации\n(за отчетный\nпериод)","Впервые приступившие к работе в области адаптивной физической культуры и спорта в отчетном периоде ","квалификационные категории",null,null,"Имеют профессиональное образование",null,null,null,"Прошедшие\nпрофессиональную\nпереподготовку\n(за отчетный\nпериод)","Прошедшие\nповышение\nквалификации\n(за отчетный\nпериод)","Впервые приступившие к работе в области адаптивной физической культуры и спорта в отчетном периоде ","квалификационные\nкатегории:",null,null,"в возрасте:",null,null,"Звание\n\"Заслуженный\nтренер России\""]
[null,null,null,null,null,null,"высшее","среднее","в том числе имеют образование по специальности\n\"Адаптивная физическая культура\nи спорт\" ",null,null,null,null,"высшая","первая","вторая","высшее","среднее","в том числе имеют образование по специальности\n\"Адаптивная физическая культура\nи спорт\" ",null,null,null,null,"высшая","первая","вторая","до 35 лет","от 36 до 64\nлет","старше 64\nлет"]
[null,null,null,null,null,null,null,null,"высшее","среднее",null,null,null,null,null,null,null,null,"высшее","среднее"]
[1,2,3,4,5,6,7,8,9,10,11,12,13,14,15,16,17,18,19,20,21,22,23,24,25,26,27,28,29,30]
["Всего (сумма строк 07, 39, 61, 94, 118, 120)","01",{"$f":"SUM(C14,C46,C68,C101,C125,C127)","v":7},{"$f":"SUM(D14,D46,D68,D101,D125,D127)","v":6},{"$f":"SUM(E9:E13)","v":0},1,6,0,6,0,0,4,0,0,0,0,1,0,1,0,0,1,0,0,0,0,3,3,0,0,{"$f":"'Раздел III'!H8","v":169}]
["в том числе по виду организации:\nспортивно-адаптивные школы","02",{"$f":"SUM(D9,F9)","v":0},null,null,null,null,null,null,null,null,null,null,null,null,null,null,null,null,null,null,null,null,null,null,null,null,null,null,null,{"$f":"'Раздел III'!H9","v":0}]
["спортивно-адаптивные школы паралимпийского и (или) сурдлимпийского резерва","03",0,null,null,null,null,null,null,null,null,null,null,null,null,null,null,null,null,null,null,null,null,null,null,null,null,null,null,null,{"$f":"'Раздел III'!H10","v":0}]
["региональные центры спортивной подготовки по адаптивным видам спорта","04",0,null,null,null,null,null,null,null,null,null,null,null,null,null,null,null,null,null,null,null,null,null,null,null,null,null,null,null,{"$f":"'Раздел III'!H11","v":0}]
["СШ, СШОР, УОР ","05",7,6,null,1,6,null,6,null,null,4,null,null,null,null,1,null,1,null,null,1,null,null,null,null,3,3,null,null,{"$f":"'Раздел III'!H12","v":169}]
["другие организации","06",0,null,null,null,null,null,null,null,null,null,null,null,null,null,null,null,null,null,null,null,null,null,null,null,null,null,null,null,{"$f":"'Раздел III'!H13","v":0}]
["Всего по виду спорта\n\"Спорт глухих\"","07",{"$f":"SUM(C15:C45)","v":1},{"$f":"SUM(D15:D45)","v":1},0,0,1,0,1,0,0,1,0,0,0,0,0,0,0,0,0,0,0,0,0,0,1,0,0,0,{"$f":"'Раздел III'!H14","v":3}]
["в том числе по дисциплинам:\nармрестлинг","08",0,null,null,null,null,null,null,null,null,null,null,null,null,null,null,null,null,null,null,null,null,null,null,null,null,null,null,null,{"$f":"'Раздел III'!H15","v":0}]
["бадминтон","09",0,null,null,null,null,null,null,null,null,null,null,null,null,null,null,null,null,null,null,null,null,null,null,null,null,null,null,null,{"$f":"'Раздел III'!H16","v":0}]
["баскетбол",10,0,null,null,null,null,null,null,null,null,null,null,null,null,null,null,null,null,null,null,null,null,null,null,null,null,null,null,null,{"$f":"'Раздел III'!H17","v":0}]
["боулинг",11,0,null,null,null,null,null,null,null,null,null,null,null,null,null,null,null,null,null,null,null,null,null,null,null,null,null,null,null,{"$f":"'Раздел III'!H18","v":0}]
["велосипедный спорт - маунтинбайк",12,0,null,null,null,null,null,null,null,null,null,null,null,null,null,null,null,null,null,null,null,null,null,null,null,null,null,null,null,{"$f":"'Раздел III'!H19","v":0}]
["велосипедный спорт - шоссе",13,0,null,null,null,null,null,null,null,null,null,null,null,null,null,null,null,null,null,null,null,null,null,null,null,null,null,null,null,{"$f":"'Раздел III'!H20","v":0}]
["волейбол",14,0,null,null,null,null,null,null,null,null,null,null,null,null,null,null,null,null,null,null,null,null,null,null,null,null,null,null,null,{"$f":"'Раздел III'!H21","v":0}]
["волейбол - пляжный",15,0,null,null,null,null,null,null,null,null,null,null,null,null,null,null,null,null,null,null,null,null,null,null,null,null,null,null,null,{"$f":"'Раздел III'!H22","v":0}]
["вольная борьба",16,0,null,null,null,null,null,null,null,null,null,null,null,null,null,null,null,null,null,null,null,null,null,null,null,null,null,null,null,{"$f":"'Раздел III'!H23","v":0}]
["гандбол",17,0,null,null,null,null,null,null,null,null,null,null,null,null,null,null,null,null,null,null,null,null,null,null,null,null,null,null,null,{"$f":"'Раздел III'!H24","v":0}]
["гольф",18,0,null,null,null,null,null,null,null,null,null,null,null,null,null,null,null,null,null,null,null,null,null,null,null,null,null,null,null,{"$f":"'Раздел III'!H25","v":0}]
["горнолыжный спорт",19,0,null,null,null,null,null,null,null,null,null,null,null,null,null,null,null,null,null,null,null,null,null,null,null,null,null,null,null,{"$f":"'Раздел III'!H26","v":0}]
["греко-римская борьба",20,0,null,null,null,null,null,null,null,null,null,null,null,null,null,null,null,null,null,null,null,null,null,null,null,null,null,null,null,{"$f":"'Раздел III'!H27","v":0}]
["дзюдо",21,0,null,null,null,null,null,null,null,null,null,null,null,null,null,null,null,null,null,null,null,null,null,null,null,null,null,null,null,{"$f":"'Раздел III'!H28","v":0}]
["каратэ",22,0,null,null,null,null,null,null,null,null,null,null,null,null,null,null,null,null,null,null,null,null,null,null,null,null,null,null,null,{"$f":"'Раздел III'!H29","v":0}]
["кёрлинг",23,0,null,null,null,null,null,null,null,null,null,null,null,null,null,null,null,null,null,null,null,null,null,null,null,null,null,null,null,{"$f":"'Раздел III'!H30","v":0}]
["легкая атлетика",24,0,null,null,null,null,null,null,null,null,null,null,null,null,null,null,null,null,null,null,null,null,null,null,null,null,null,null,null,{"$f":"'Раздел III'!H31","v":0}]
["лыжные гонки",25,0,null,null,null,null,null,null,null,null,null,null,null,null,null,null,null,null,null,null,null,null,null,null,null,null,null,null,null,{"$f":"'Раздел III'!H32","v":0}]
["настольный теннис",26,0,null,null,null,null,null,null,null,null,null,null,null,null,null,null,null,null,null,null,null,null,null,null,null,null,null,null,null,{"$f":"'Раздел III'!H33","v":0}]
["плавание",27,1,1,null,null,1,null,1,null,null,1,null,null,null,null,null,null,null,null,null,null,null,null,null,null,1,null,null,null,{"$f":"'Раздел III'!H34","v":3}]
["пулевая стрельба",28,0,null,null,null,null,null,null,null,null,null,null,null,null,null,null,null,null,null,null,null,null,null,null,null,null,null,null,null,{"$f":"'Раздел III'!H35","v":0}]
["самбо",29,0,null,null,null,null,null,null,null,null,null,null,null,null,null,null,null,null,null,null,null,null,null,null,null,null,null,null,null,{"$f":"'Раздел III'!H36","v":0}]
["сноуборд",30,0,null,null,null,null,null,null,null,null,null,null,null,null,null,null,null,null,null,null,null,null,null,null,null,null,null,null,null,{"$f":"'Раздел III'!H37","v":0}]
["спортивное ориентирование",31,0,null,null,null,null,null,null,null,null,null,null,null,null,null,null,null,null,null,null,null,null,null,null,null,null,null,null,null,{"$f":"'Раздел III'!H38","v":0}]
["теннис",32,0,null,null,null,null,null,null,null,null,null,null,null,null,null,null,null,null,null,null,null,null,null,null,null,null,null,null,null,{"$f":"'Раздел III'!H39","v":0}]
["тхэквондо",33,0,null,null,null,null,null,null,null,null,null,null,null,null,null,null,null,null,null,null,null,null,null,null,null,null,null,null,null,{"$f":"'Раздел III'!H40","v":0}]
["футбол",34,0,null,null,null,null,null,null,null,null,null,null,null,null,null,null,null,null,null,null,null,null,null,null,null,null,null,null,null,{"$f":"'Раздел III'!H41","v":0}]
["футзал",35,0,null,null,null,null,null,null,null,null,null,null,null,null,null,null,null,null,null,null,null,null,null,null,null,null,null,null,null,{"$f":"'Раздел III'!H42","v":0}]
["хоккей",36,0,null,null,null,null,null,null,null,null,null,null,null,null,null,null,null,null,null,null,null,null,null,null,null,null,null,null,null,{"$f":"'Раздел III'!H43","v":0}]
["шахматы",37,0,null,null,null,null,null,null,null,null,null,null,null,null,null,null,null,null,null,null,null,null,null,null,null,null,null,null,null,{"$f":"'Раздел III'!H44","v":0}]
["шашки",38,0,null,null,null,null,null,null,null,null,null,null,null,null,null,null,null,null,null,null,null,null,null,null,null,null,null,null,null,{"$f":"'Раздел III'!H45","v":0}]
["Всего по виду спорта \n\"Спорт лиц с интеллектуальными нарушениями\"",39,{"$f":"SUM(C47:C67)","v":2},{"$f":"SUM(D47:D67)","v":2},1,0,2,0,2,0,0,2,0,0,0,0,0,0,0,0,0,0,0,0,0,0,0,2,0,0,{"$f":"'Раздел III'!H46","v":114}]
["в том числе по дисциплинам:\nакадемическая гребля ",40,0,null,null,null,null,null,null,null,null,null,null,null,null,null,null,null,null,null,null,null,null,null,null,null,null,null,null,null,{"$f":"'Раздел III'!H47","v":0}]
["академическая гребля - индор",41,0,null,null,null,null,null,null,null,null,null,null,null,null,null,null,null,null,null,null,null,null,null,null,null,null,null,null,null,{"$f":"'Раздел III'!H48","v":0}]
["бадминтон",42,1,1,null,null,1,null,1,null,null,1,null,null,null,null,null,null,null,null,null,null,null,null,null,null,null,1,null,null,{"$f":"'Раздел III'!H49","v":29}]
["баскетбол",43,0,null,null,null,null,null,null,null,null,null,null,null,null,null,null,null,null,null,null,null,null,null,null,null,null,null,null,null,{"$f":"'Раздел III'!H50","v":0}]
["баскетбол 3х3",44,0,null,null,null,null,null,null,null,null,null,null,null,null,null,null,null,null,null,null,null,null,null,null,null,null,null,null,null,{"$f":"'Раздел III'!H51","v":0}]
["велоспорт-трек",45,0,null,null,null,null,null,null,null,null,null,null,null,null,null,null,null,null,null,null,null,null,null,null,null,null,null,null,null,{"$f":"'Раздел III'!H52","v":0}]
["велоспорт-шоссе",46,0,null,null,null,null,null,null,null,null,null,null,null,null,null,null,null,null,null,null,null,null,null,null,null,null,null,null,null,{"$f":"'Раздел III'!H53","v":0}]
["гандбол",47,0,null,null,null,null,null,null,null,null,null,null,null,null,null,null,null,null,null,null,null,null,null,null,null,null,null,null,null,{"$f":"'Раздел III'!H54","v":0}]
["горнолыжный спорт",48,0,null,null,null,null,null,null,null,null,null,null,null,null,null,null,null,null,null,null,null,null,null,null,null,null,null,null,null,{"$f":"'Раздел III'!H55","v":0}]
["дзюдо",49,0,null,null,null,null,null,null,null,null,null,null,null,null,null,null,null,null,null,null,null,null,null,null,null,null,null,null,null,{"$f":"'Раздел III'!H56","v":0}]
["конный спорт",50,0,null,null,null,null,null,null,null,null,null,null,null,null,null,null,null,null,null,null,null,null,null,null,null,null,null,null,null,{"$f":"'Раздел III'!H57","v":0}]
["легкая атлетика",51,0,null,null,null,null,null,null,null,null,null,null,null,null,null,null,null,null,null,null,null,null,null,null,null,null,null,null,null,{"$f":"'Раздел III'!H58","v":0}]
["лыжные гонки",52,0,null,null,null,null,null,null,null,null,null,null,null,null,null,null,null,null,null,null,null,null,null,null,null,null,null,null,null,{"$f":"'Раздел III'!H59","v":0}]
["мини-футбол (футзал)",53,0,null,null,null,null,null,null,null,null,null,null,null,null,null,null,null,null,null,null,null,null,null,null,null,null,null,null,null,{"$f":"'Раздел III'!H60","v":0}]
["настольный теннис",54,0,null,null,null,null,null,null,null,null,null,null,null,null,null,null,null,null,null,null,null,null,null,null,null,null,null,null,null,{"$f":"'Раздел III'!H61","v":0}]
["пауэрлифтинг (троеборье)",55,0,null,1,null,null,null,null,null,null,null,null,null,null,null,null,null,null,null,null,null,null,null,null,null,null,null,null,null,{"$f":"'Раздел III'!H62","v":10}]
["плавание",56,1,1,null,null,1,null,1,null,null,1,null,null,null,null,null,null,null,null,null,null,null,null,null,null,null,1,null,null,{"$f":"'Раздел III'!H63","v":75}]
["спортивная гимнастика",57,0,null,null,null,null,null,null,null,null,null,null,null,null,null,null,null,null,null,null,null,null,null,null,null,null,null,null,null,{"$f":"'Раздел III'!H64","v":0}]
["теннис",58,0,null,null,null,null,null,null,null,null,null,null,null,null,null,null,null,null,null,null,null,null,null,null,null,null,null,null,null,{"$f":"'Раздел III'!H65","v":0}]
["тхэквондо (пхумсэ)",59,0,null,null,null,null,null,null,null,null,null,null,null,null,null,null,null,null,null,null,null,null,null,null,null,null,null,null,null,{"$f":"'Раздел III'!H66","v":0}]
["футбол",60,0,null,null,null,null,null,null,null,null,null,null,null,null,null,null,null,null,null,null,null,null,null,null,null,null,null,null,null,{"$f":"'Раздел III'!H67","v":0}]
["Всего по виду спорта\n\"Спорт лиц с поражением ОДА\"",61,{"$f":"SUM(C69:C100)","v":3},{"$f":"SUM(D69:D100)","v":3},1,0,3,0,3,0,0,1,0,0,0,0,0,0,0,0,0,0,0,0,0,0,2,1,0,0,{"$f":"'Раздел III'!H68","v":48}]
["в том числе по дисциплинам:\nакадемическая гребля ",62,0,null,null,null,null,null,null,null,null,null,null,null,null,null,null,null,null,null,null,null,null,null,null,null,null,null,null,null,{"$f":"'Раздел III'!H69","v":0}]
["академическая гребля - эргометр",63,0,null,null,null,null,null,null,null,null,null,null,null,null,null,null,null,null,null,null,null,null,null,null,null,null,null,null,null,{"$f":"'Раздел III'!H70","v":0}]
["бадминтон",64,0,null,1,null,null,null,null,null,null,null,null,null,null,null,null,null,null,null,null,null,null,null,null,null,null,null,null,null,{"$f":"'Раздел III'!H71","v":11}]
["баскетбол на колясках",65,0,null,null,null,null,null,null,null,null,null,null,null,null,null,null,null,null,null,null,null,null,null,null,null,null,null,null,null,{"$f":"'Раздел III'!H72","v":0}]
["биатлон",66,{"$f":"SUM(D73,F73)","v":0},null,null,null,null,null,null,null,null,null,null,null,null,null,null,null,null,null,null,null,null,null,null,null,null,null,null,null,{"$f":"'Раздел III'!H73","v":0}]
["бочча",67,1,1,null,null,1,null,1,null,null,null,null,null,null,null,null,null,null,null,null,null,null,null,null,null,1,null,null,null,{"$f":"'Раздел III'!H74","v":21}]
["велоспорт - трек",68,0,null,null,null,null,null,null,null,null,null,null,null,null,null,null,null,null,null,null,null,null,null,null,null,null,null,null,null,{"$f":"'Раздел III'!H75","v":0}]
["велоспорт - шоссе",69,0,null,null,null,null,null,null,null,null,null,null,null,null,null,null,null,null,null,null,null,null,null,null,null,null,null,null,null,{"$f":"'Раздел III'!H76","v":0}]
["волейбол сидя",70,0,null,null,null,null,null,null,null,null,null,null,null,null,null,null,null,null,null,null,null,null,null,null,null,null,null,null,null,{"$f":"'Раздел III'!H77","v":0}]
["горнолыжный спорт",71,0,null,null,null,null,null,null,null,null,null,null,null,null,null,null,null,null,null,null,null,null,null,null,null,null,null,null,null,{"$f":"'Раздел III'!H78","v":0}]
["гребля на байдарках и каноэ",72,0,null,null,null,null,null,null,null,null,null,null,null,null,null,null,null,null,null,null,null,null,null,null,null,null,null,null,null,{"$f":"'Раздел III'!H79","v":0}]
["дартс",73,0,null,null,null,null,null,null,null,null,null,null,null,null,null,null,null,null,null,null,null,null,null,null,null,null,null,null,null,{"$f":"'Раздел III'!H80","v":0}]
["конный спорт",74,0,null,null,null,null,null,null,null,null,null,null,null,null,null,null,null,null,null,null,null,null,null,null,null,null,null,null,null,{"$f":"'Раздел III'!H81","v":0}]
["легкая атлетика",75,0,null,null,null,null,null,null,null,null,null,null,null,null,null,null,null,null,null,null,null,null,null,null,null,null,null,null,null,{"$f":"'Раздел III'!H82","v":0}]
["лыжные гонки",76,0,null,null,null,null,null,null,null,null,null,null,null,null,null,null,null,null,null,null,null,null,null,null,null,null,null,null,null,{"$f":"'Раздел III'!H83","v":0}]
["настольный теннис",77,0,null,null,null,null,null,null,null,null,null,null,null,null,null,null,null,null,null,null,null,null,null,null,null,null,null,null,null,{"$f":"'Раздел III'!H84","v":0}]
["парусный спорт",78,0,null,null,null,null,null,null,null,null,null,null,null,null,null,null,null,null,null,null,null,null,null,null,null,null,null,null,null,{"$f":"'Раздел III'!H85","v":0}]
["пауэрлифтинг",79,1,1,null,null,1,null,1,null,null,1,null,null,null,null,null,null,null,null,null,null,null,null,null,null,null,1,null,null,{"$f":"'Раздел III'!H86","v":13}]
["плавание",80,1,1,null,null,1,null,1,null,null,null,null,null,null,null,null,null,null,null,null,null,null,null,null,null,1,null,null,null,{"$f":"'Раздел III'!H87","v":3}]
["пулевая стрельба",81,0,null,null,null,null,null,null,null,null,null,null,null,null,null,null,null,null,null,null,null,null,null,null,null,null,null,null,null,{"$f":"'Раздел III'!H88","v":0}]
["регби на колясках",82,0,null,null,null,null,null,null,null,null,null,null,null,null,null,null,null,null,null,null,null,null,null,null,null,null,null,null,null,{"$f":"'Раздел III'!H89","v":0}]
["сноуборд",83,0,null,null,null,null,null,null,null,null,null,null,null,null,null,null,null,null,null,null,null,null,null,null,null,null,null,null,null,{"$f":"'Раздел III'!H90","v":0}]
["спортивное ориентирование",84,0,null,null,null,null,null,null,null,null,null,null,null,null,null,null,null,null,null,null,null,null,null,null,null,null,null,null,null,{"$f":"'Раздел III'!H91","v":0}]
["стендовая стрельба",85,0,null,null,null,null,null,null,null,null,null,null,null,null,null,null,null,null,null,null,null,null,null,null,null,null,null,null,null,{"$f":"'Раздел III'!H92","v":0}]
["стрельба из лука",86,0,null,null,null,null,null,null,null,null,null,null,null,null,null,null,null,null,null,null,null,null,null,null,null,null,null,null,null,{"$f":"'Раздел III'!H93","v":0}]
["танцы на колясках",87,0,null,null,null,null,null,null,null,null,null,null,null,null,null,null,null,null,null,null,null,null,null,null,null,null,null,null,null,{"$f":"'Раздел III'!H94","v":0}]
["теннис на колясках",88,0,null,null,null,null,null,null,null,null,null,null,null,null,null,null,null,null,null,null,null,null,null,null,null,null,null,null,null,{"$f":"'Раздел III'!H95","v":0}]
["фехтование",89,0,null,null,null,null,null,null,null,null,null,null,null,null,null,null,null,null,null,null,null,null,null,null,null,null,null,null,null,{"$f":"'Раздел III'!H96","v":0}]
["футбол ампутантов",90,0,null,null,null,null,null,null,null,null,null,null,null,null,null,null,null,null,null,null,null,null,null,null,null,null,null,null,null,{"$f":"'Раздел III'!H97","v":0}]
["хоккей - следж",91,0,null,null,null,null,null,null,null,null,null,null,null,null,null,null,null,null,null,null,null,null,null,null,null,null,null,null,null,{"$f":"'Раздел III'!H98","v":0}]
["шахматы",92,0,null,null,null,null,null,null,null,null,null,null,null,null,null,null,null,null,null,null,null,null,null,null,null,null,null,null,null,{"$f":"'Раздел III'!H99","v":0}]
["шашки",93,0,null,null,null,null,null,null,null,null,null,null,null,null,null,null,null,null,null,null,null,null,null,null,null,null,null,null,null,{"$f":"'Раздел III'!H100","v":0}]
["Всего по виду спорта \n\"Спорт слепых\"",94,{"$f":"SUM(C102:C124)","v":1},{"$f":"SUM(D102:D124)","v":0},0,1,0,0,0,0,0,0,0,0,0,0,1,0,1,0,0,1,0,0,0,0,0,0,0,0,{"$f":"'Раздел III'!H101","v":4}]
["в том числе по дисциплинам:\nармрестлинг",95,0,null,null,null,null,null,null,null,null,null,null,null,null,null,null,null,null,null,null,null,null,null,null,null,null,null,null,null,{"$f":"'Раздел III'!H102","v":0}]
["биатлон",96,0,null,null,null,null,null,null,null,null,null,null,null,null,null,null,null,null,null,null,null,null,null,null,null,null,null,null,null,{"$f":"'Раздел III'!H103","v":0}]
["борьба",97,0,null,null,null,null,null,null,null,null,null,null,null,null,null,null,null,null,null,null,null,null,null,null,null,null,null,null,null,{"$f":"'Раздел III'!H104","v":0}]
["боулинг",98,0,null,null,null,null,null,null,null,null,null,null,null,null,null,null,null,null,null,null,null,null,null,null,null,null,null,null,null,{"$f":"'Раздел III'!H105","v":0}]
["велоспорт-тандем - трек",99,0,null,null,null,null,null,null,null,null,null,null,null,null,null,null,null,null,null,null,null,null,null,null,null,null,null,null,null,{"$f":"'Раздел III'!H106","v":0}]
["велоспорт-тандем - шоссе",100,0,null,null,null,null,null,null,null,null,null,null,null,null,null,null,null,null,null,null,null,null,null,null,null,null,null,null,null,{"$f":"'Раздел III'!H107","v":0}]
["голбол",101,0,null,null,null,null,null,null,null,null,null,null,null,null,null,null,null,null,null,null,null,null,null,null,null,null,null,null,null,{"$f":"'Раздел III'!H108","v":0}]
["горнолыжный спорт",102,0,null,null,null,null,null,null,null,null,null,null,null,null,null,null,null,null,null,null,null,null,null,null,null,null,null,null,null,{"$f":"'Раздел III'!H109","v":0}]
["дзюдо",103,0,null,null,null,null,null,null,null,null,null,null,null,null,null,null,null,null,null,null,null,null,null,null,null,null,null,null,null,{"$f":"'Раздел III'!H110","v":0}]
["легкая атлетика",104,0,null,null,null,null,null,null,null,null,null,null,null,null,null,null,null,null,null,null,null,null,null,null,null,null,null,null,null,{"$f":"'Раздел III'!H111","v":0}]
["лыжные гонки",105,0,null,null,null,null,null,null,null,null,null,null,null,null,null,null,null,null,null,null,null,null,null,null,null,null,null,null,null,{"$f":"'Раздел III'!H112","v":0}]
["настольный теннис",106,0,null,null,null,null,null,null,null,null,null,null,null,null,null,null,null,null,null,null,null,null,null,null,null,null,null,null,null,{"$f":"'Раздел III'!H113","v":0}]
["пауэрлифтинг",107,1,null,null,1,null,null,null,null,null,null,null,null,null,null,1,null,1,null,null,1,null,null,null,null,null,null,null,null,{"$f":"'Раздел III'!H114","v":4}]
["плавание",108,0,null,null,null,null,null,null,null,null,null,null,null,null,null,null,null,null,null,null,null,null,null,null,null,null,null,null,null,{"$f":"'Раздел III'!H115","v":0}]
["пулевая стрельба",109,0,null,null,null,null,null,null,null,null,null,null,null,null,null,null,null,null,null,null,null,null,null,null,null,null,null,null,null,{"$f":"'Раздел III'!H116","v":0}]
["самбо",110,0,null,null,null,null,null,null,null,null,null,null,null,null,null,null,null,null,null,null,null,null,null,null,null,null,null,null,null,{"$f":"'Раздел III'!H117","v":0}]
["спортивный туризм - многоборье",111,0,null,null,null,null,null,null,null,null,null,null,null,null,null,null,null,null,null,null,null,null,null,null,null,null,null,null,null,{"$f":"'Раздел III'!H118","v":0}]
["торбол",112,0,null,null,null,null,null,null,null,null,null,null,null,null,null,null,null,null,null,null,null,null,null,null,null,null,null,null,null,{"$f":"'Раздел III'!H119","v":0}]
["триатлон",113,0,null,null,null,null,null,null,null,null,null,null,null,null,null,null,null,null,null,null,null,null,null,null,null,null,null,null,null,{"$f":"'Раздел III'!H120","v":0}]
["футбол - мини-футбол 5х5 (B1)",114,0,null,null,null,null,null,null,null,null,null,null,null,null,null,null,null,null,null,null,null,null,null,null,null,null,null,null,null,{"$f":"'Раздел III'!H121","v":0}]
["футбол - футзал 5х5 (B2, B3)",115,0,null,null,null,null,null,null,null,null,null,null,null,null,null,null,null,null,null,null,null,null,null,null,null,null,null,null,null,{"$f":"'Раздел III'!H122","v":0}]
["шахматы",116,0,null,null,null,null,null,null,null,null,null,null,null,null,null,null,null,null,null,null,null,null,null,null,null,null,null,null,null,{"$f":"'Раздел III'!H123","v":0}]
["шашки",117,0,null,null,null,null,null,null,null,null,null,null,null,null,null,null,null,null,null,null,null,null,null,null,null,null,null,null,null,{"$f":"'Раздел III'!H124","v":0}]
["Всего по виду спорта\n\"Футбол лиц с заболеванием ЦП\"",118,{"$f":"SUM(C126)","v":0},{"$f":"SUM(D126)","v":0},0,0,0,0,0,0,0,0,0,0,0,0,0,0,0,0,0,0,0,0,0,0,0,0,0,0,{"$f":"'Раздел III'!H125","v":0}]
["футбол лиц с заболеванием ЦП",119,0,null,null,null,null,null,null,null,null,null,null,null,null,null,null,null,null,null,null,null,null,null,null,null,null,null,null,null,{"$f":"'Раздел III'!H126","v":0}]
["Всего по другим видам спорта, спортивным\nдисциплинам",120,{"$f":"SUM(C128:C135)","v":0},{"$f":"SUM(D128:D135)","v":0},0,0,0,0,0,0,0,0,0,0,0,0,0,0,0,0,0,0,0,0,0,0,0,0,0,0,{"$f":"'Раздел III'!H127","v":0}]
["в том числе:\nармрестлинг (ПОДА)",121,0,null,null,null,null,null,null,null,null,null,null,null,null,null,null,null,null,null,null,null,null,null,null,null,null,null,null,null,{"$f":"'Раздел III'!H128","v":0}]
["водно-моторный спорт (ПОДА - мотолодка)",122,0,null,null,null,null,null,null,null,null,null,null,null,null,null,null,null,null,null,null,null,null,null,null,null,null,null,null,null,{"$f":"'Раздел III'!H129","v":0}]
["каратэ (ПОДА - ката)",123,0,null,null,null,null,null,null,null,null,null,null,null,null,null,null,null,null,null,null,null,null,null,null,null,null,null,null,null,{"$f":"'Раздел III'!H130","v":0}]
["кёрлинг (ПОДА - кёрлинг на колясках)",124,0,null,null,null,null,null,null,null,null,null,null,null,null,null,null,null,null,null,null,null,null,null,null,null,null,null,null,null,{"$f":"'Раздел III'!H131","v":0}]
["скалолазание (ПОДА - лазание на трудность)",125,0,null,null,null,null,null,null,null,null,null,null,null,null,null,null,null,null,null,null,null,null,null,null,null,null,null,null,null,{"$f":"'Раздел III'!H132","v":0}]
["триатлон (ПОДА - триатлон)",126,0,null,null,null,null,null,null,null,null,null,null,null,null,null,null,null,null,null,null,null,null,null,null,null,null,null,null,null,{"$f":"'Раздел III'!H133","v":0}]
["тхэквондо (ВТФ - ПОДА)",127,0,null,null,null,null,null,null,null,null,null,null,null,null,null,null,null,null,null,null,null,null,null,null,null,null,null,null,null,{"$f":"'Раздел III'!H134","v":0}]
["футбол (ПОДА - футбол на электроколясках)",128,0,null,null,null,null,null,null,null,null,null,null,null,null,null,null,null,null,null,null,null,null,null,null,null,null,null,null,null,{"$f":"'Раздел III'!H135","v":0}]
["Всего по базовым видам спорта (из строки 01)",129,null,null,null,null,null,null,null,null,null,null,null,null,null,null,null,null,null,null,null,null,null,null,null,null,null,null,null,null,{"$f":"'Раздел III'!H136","v":0}]
["Всего по видам спорта и (или) спортивным дисциплинам, включенным в Паралимпийскую программу",130,{"$f":"SUM(C58,C61,C63,C69,C71:C79,C81:C84,C86:C90,C93,C95:C96,C98,C103,C106:C112,C115,C120:C121,C131,C133:C134)","v":4},{"$f":"SUM(D58,D61,D63,D69,D71:D79,D81:D84,D86:D90,D93,D95:D96,D98,D103,D106:D112,D115,D120:D121,D131,D133:D134)","v":4},{"$f":"SUM(E58,E61,E63,E69,E71:E79,E81:E84,E86:E90,E93,E95:E96,E98,E103,E106:E112,E115,E120:E121,E131,E133:E134)","v":1},0,4,0,4,0,0,2,0,0,0,0,0,0,0,0,0,0,0,0,0,0,2,2,0,0,{"$f":"'Раздел III'!H137","v":123}]
["Всего по видам спорта и (или) спортивным\nдисциплинам, включенным в Сурдлимпийскую программу",131,{"$f":"SUM(C16:C35,C37:C44)","v":1},{"$f":"SUM(D16:D35,D37:D44)","v":1},{"$f":"SUM(E16:E35,E37:E44)","v":0},{"$f":"SUM(F16:F35,F37:F44)","v":0},{"$f":"SUM(G16:G35,G37:G44)","v":1},0,1,0,0,1,0,0,0,0,0,0,0,0,0,0,0,0,0,0,1,0,0,0,{"$f":"'Раздел III'!H138","v":3}]
["Ведомственная принадлежность\nорганизаций",132,{"$f":"SUM(C140:C142)","v":7},{"$f":"SUM(D140:D142)","v":6},0,1,6,0,6,0,0,4,0,0,0,0,1,0,0,0,0,1,0,0,0,0,3,3,0,0,{"$f":"'Раздел III'!H139","v":169}]
["в том числе:\nв сфере физической культуры и спорта",133,{"$f":"SUM(D140,F140)","v":7},6,null,1,6,null,6,null,null,4,null,null,null,null,1,null,null,null,null,1,null,null,null,null,3,3,null,null,{"$f":"'Раздел III'!H140","v":169}]
["в сфере образования",134,0,null,null,null,null,null,null,null,null,null,null,null,null,null,null,null,null,null,null,null,null,null,null,null,null,null,null,null,{"$f":"'Раздел III'!H141","v":0}]
["в сфере труда и социальной защиты",135,0,null,null,null,null,null,null,null,null,null,null,null,null,null,null,null,null,null,null,null,null,null,null,null,null,null,null,null,{"$f":"'Раздел III'!H142","v":0}]

{"sheet":"Раздел VI","index":6,"n_rows":141,"n_cols":26,"rows_kept":141,"cut":false,"hidden":false,"merged":[[2,12,2,15],[2,16,2,19],[3,21,3,24],[2,20,2,24],[3,3,4,3],[0,0,0,24],[3,4,3,6],[3,7,4,7],[3,8,3,11],[3,12,4,12],[3,13,3,15],[1,0,4,0],[3,16,4,16],[3,17,3,19],[3,20,4,20],[1,1,4,1],[1,2,1,11],[1,12,1,24],[2,2,4,2],[2,3,2,6],[2,7,2,11]]}
["Раздел VI. Спортивные разряды, звания"]
["Наименование вида спорта,\nспортивной дисциплины","№\nстроки","Спортсменов, имеющих разряды, звания, чел (из гр.8 раздела III):",null,null,null,null,null,null,null,null,null,"Разряды, звания, присвоенные и подтвержденные в отчетном периоде, ед"]
[null,null,"Итого","спортивные разряды",null,null,null,"спортивные звания",null,null,null,null,"спортивные разряды присвоенные",null,null,null,"спортивные разряды подтвержденные",null,null,null,"спортивные звания присвоенные"]
[null,null,null,"Всего","в том числе:",null,null,"Всего","в том числе:",null,null,null,"Всего","в том числе:",null,null,"Всего","в том числе:",null,null,"Всего","в том числе:"]
[null,null,null,null,"КМС","1 разряд","другие разряды",null,"ЗМС","МСМК","МС","гроссмейстер",null,"КМС","1 разряд","другие разряды",null,"КМС","1 разряд","другие разряды",null,"ЗМС","МСМК","МС","гроссмейстер"]
[1,2,3,4,5,6,7,8,9,10,11,12,13,14,15,16,17,18,19,20,21,22,23,24,25]
["Всего (сумма строк 07, 39, 61, 94, 118, 120)","01",{"$f":"SUM(C13,C45,C67,C100,C124,C126)","v":26},{"$f":"SUM(D13,D45,D67,D100,D124,D126)","v":22},0,3,19,4,0,0,4,0,23,0,3,20,0,0,0,0,0,0,0,0,0]
["в том числе по виду организации:\nспортивно-адаптивные школы","02",{"$f":"SUM(D8,H8)","v":0},{"$f":"SUM(E8:G8)","v":0},null,null,null,{"$f":"SUM(I8:L8)","v":0},null,null,null,null,{"$f":"SUM(N8:P8)","v":0},null,null,null,{"$f":"SUM(R8:T8)","v":0},null,null,null,{"$f":"SUM(V8:Y8)","v":0}]
["спортивно-адаптивные школы паралимпийского и (или) сурдлимпийского резерва","03",{"$f":"SUM(D9,H9)","v":0},{"$f":"SUM(E9:G9)","v":0},null,null,null,{"$f":"SUM(I9:L9)","v":0},null,null,null,null,{"$f":"SUM(N9:P9)","v":0},null,null,null,{"$f":"SUM(R9:T9)","v":0},null,null,null,{"$f":"SUM(V9:Y9)","v":0}]
["региональные центры спортивной подготовки по адаптивным видам спорта","04",0,0,null,null,null,0,null,null,null,null,0,null,null,null,0,null,null,null,0]
["СШ, СШОР, УОР ","05",26,22,null,3,19,4,null,null,4,null,23,null,3,20,0,null,null,null,0]
["другие организации","06",0,0,null,null,null,0,null,null,null,null,0,null,null,null,0,null,null,null,0]
["Всего по виду спорта \n\"Спорт глухих\"","07",2,2,{"$f":"SUM(E14:E44)","v":0},{"$f":"SUM(F14:F44)","v":0},2,0,0,0,0,0,0,0,0,0,0,0,0,0,0,0,0,0,0]
["в том числе по дисциплинам:\nармрестлинг","08",0,0,null,null,null,0,null,null,null,null,0,null,null,null,0,null,null,null,0,null,null,null,null,{"$f":"'Раздел III'!H15","v":0}]
["бадминтон","09",0,0,null,null,null,0,null,null,null,null,0,null,null,null,0,null,null,null,0,null,null,null,null,{"$f":"'Раздел III'!H16","v":0}]
["баскетбол",10,0,0,null,null,null,0,null,null,null,null,0,null,null,null,0,null,null,null,0,null,null,null,null,{"$f":"'Раздел III'!H17","v":0}]
["боулинг",11,0,0,null,null,null,0,null,null,null,null,0,null,null,null,0,null,null,null,0,null,null,null,null,{"$f":"'Раздел III'!H18","v":0}]
["велосипедный спорт - маунтинбайк",12,0,0,null,null,null,0,null,null,null,null,0,null,null,null,0,null,null,null,0,null,null,null,null,{"$f":"'Раздел III'!H19","v":0}]
["велосипедный спорт - шоссе",13,0,0,null,null,null,0,null,null,null,null,0,null,null,null,0,null,null,null,0,null,null,null,null,{"$f":"'Раздел III'!H20","v":0}]
["волейбол",14,0,0,null,null,null,0,null,null,null,null,0,null,null,null,0,null,null,null,0,null,null,null,null,{"$f":"'Раздел III'!H21","v":0}]
["волейбол - пляжный",15,0,0,null,null,null,0,null,null,null,null,0,null,null,null,0,null,null,null,0,null,null,null,null,{"$f":"'Раздел III'!H22","v":0}]
["вольная борьба",16,0,0,null,null,null,0,null,null,null,null,0,null,null,null,0,null,null,null,0,null,null,null,null,{"$f":"'Раздел III'!H23","v":0}]
["гандбол",17,0,0,null,null,null,0,null,null,null,null,0,null,null,null,0,null,null,null,0,null,null,null,null,{"$f":"'Раздел III'!H24","v":0}]
["гольф",18,0,0,null,null,null,0,null,null,null,null,0,null,null,null,0,null,null,null,0,null,null,null,null,{"$f":"'Раздел III'!H25","v":0}]
["горнолыжный спорт",19,0,0,null,null,null,0,null,null,null,null,0,null,null,null,0,null,null,null,0,null,null,null,null,{"$f":"'Раздел III'!H26","v":0}]
["греко-римская борьба",20,0,0,null,null,null,0,null,null,null,null,0,null,null,null,0,null,null,null,0,null,null,null,null,{"$f":"'Раздел III'!H27","v":0}]
["дзюдо",21,0,0,null,null,null,0,null,null,null,null,0,null,null,null,0,null,null,null,0,null,null,null,null,{"$f":"'Раздел III'!H28","v":0}]
["каратэ",22,0,0,null,null,null,0,null,null,null,null,0,null,null,null,0,null,null,null,0,null,null,null,null,{"$f":"'Раздел III'!H29","v":0}]
["кёрлинг",23,0,0,null,null,null,0,null,null,null,null,0,null,null,null,0,null,null,null,0,null,null,null,null,{"$f":"'Раздел III'!H30","v":0}]
["легкая атлетика",24,0,0,null,null,null,0,null,null,null,null,0,null,null,null,0,null,null,null,0,null,null,null,null,{"$f":"'Раздел III'!H31","v":0}]
["лыжные гонки",25,0,0,null,null,null,0,null,null,null,null,0,null,null,null,0,null,null,null,0,null,null,null,null,{"$f":"'Раздел III'!H32","v":0}]
["настольный теннис",26,0,0,null,null,null,0,null,null,null,null,0,null,null,null,0,null,null,null,0,null,null,null,null,{"$f":"'Раздел III'!H33","v":0}]
["плавание",27,2,2,null,null,2,0,null,null,null,null,0,null,null,null,0,null,null,null,0,null,null,null,null,{"$f":"'Раздел III'!H34","v":3}]
["пулевая стрельба",28,0,0,null,null,null,0,null,null,null,null,0,null,null,null,0,null,null,null,0,null,null,null,null,{"$f":"'Раздел III'!H35","v":0}]
["самбо",29,0,0,null,null,null,0,null,null,null,null,0,null,null,null,0,null,null,null,0,null,null,null,null,{"$f":"'Раздел III'!H36","v":0}]
["сноуборд",30,0,0,null,null,null,0,null,null,null,null,0,null,null,null,0,null,null,null,0,null,null,null,null,{"$f":"'Раздел III'!H37","v":0}]
["спортивное ориентирование",31,0,0,null,null,null,0,null,null,null,null,0,null,null,null,0,null,null,null,0,null,null,null,null,{"$f":"'Раздел III'!H38","v":0}]
["теннис",32,0,0,null,null,null,0,null,null,null,null,0,null,null,null,0,null,null,null,0,null,null,null,null,{"$f":"'Раздел III'!H39","v":0}]
["тхэквондо",33,0,0,null,null,null,0,null,null,null,null,0,null,null,null,0,null,null,null,0,null,null,null,null,{"$f":"'Раздел III'!H40","v":0}]
["футбол",34,0,0,null,null,null,0,null,null,null,null,0,null,null,null,0,null,null,null,0,null,null,null,null,{"$f":"'Раздел III'!H41","v":0}]
["футзал",35,0,0,null,null,null,0,null,null,null,null,0,null,null,null,0,null,null,null,0,null,null,null,null,{"$f":"'Раздел III'!H42","v":0}]
["хоккей",36,0,0,null,null,null,0,null,null,null,null,0,null,null,null,0,null,null,null,0,null,null,null,null,{"$f":"'Раздел III'!H43","v":0}]
["шахматы",37,0,0,null,null,null,0,null,null,null,null,0,null,null,null,0,null,null,null,0,null,null,null,null,{"$f":"'Раздел III'!H44","v":0}]
["шашки",38,0,0,null,null,null,0,null,null,null,null,0,null,null,null,0,null,null,null,0,null,null,null,null,{"$f":"'Раздел III'!H45","v":0}]
["Всего по виду спорта \n\"Спорт лиц с интеллектуальными нарушениями\"",39,4,4,{"$f":"SUM(E46:E66)","v":0},{"$f":"SUM(F46:F66)","v":0},4,0,0,0,0,0,6,0,0,6,0,0,0,0,0,0,0,0,0,{"$f":"'Раздел III'!H46","v":114}]
["в том числе по дисциплинам:\nакадемическая гребля ",40,0,0,null,null,null,0,null,null,null,null,0,null,null,null,0,null,null,null,0,null,null,null,null,{"$f":"'Раздел III'!H47","v":0}]
["академическая гребля - индор",41,0,0,null,null,null,0,null,null,null,null,0,null,null,null,0,null,null,null,0,null,null,null,null,{"$f":"'Раздел III'!H48","v":0}]
["бадминтон",42,0,0,null,null,null,0,null,null,null,null,0,null,null,null,0,null,null,null,0,null,null,null,null,{"$f":"'Раздел III'!H49","v":29}]
["баскетбол",43,0,0,null,null,null,0,null,null,null,null,0,null,null,null,0,null,null,null,0,null,null,null,null,{"$f":"'Раздел III'!H50","v":0}]
["баскетбол 3х3",44,0,0,null,null,null,0,null,null,null,null,0,null,null,null,0,null,null,null,0,null,null,null,null,{"$f":"'Раздел III'!H51","v":0}]
["велоспорт-трек",45,0,0,null,null,null,0,null,null,null,null,0,null,null,null,0,null,null,null,0,null,null,null,null,{"$f":"'Раздел III'!H52","v":0}]
["велоспорт-шоссе",46,0,0,null,null,null,0,null,null,null,null,0,null,null,null,0,null,null,null,0,null,null,null,null,{"$f":"'Раздел III'!H53","v":0}]
["гандбол",47,0,0,null,null,null,0,null,null,null,null,0,null,null,null,0,null,null,null,0,null,null,null,null,{"$f":"'Раздел III'!H54","v":0}]
["горнолыжный спорт",48,0,0,null,null,null,0,null,null,null,null,0,null,null,null,0,null,null,null,0,null,null,null,null,{"$f":"'Раздел III'!H55","v":0}]
["дзюдо",49,0,0,null,null,null,0,null,null,null,null,0,null,null,null,0,null,null,null,0,null,null,null,null,{"$f":"'Раздел III'!H56","v":0}]
["конный спорт",50,0,0,null,null,null,0,null,null,null,null,0,null,null,null,0,null,null,null,0,null,null,null,null,{"$f":"'Раздел III'!H57","v":0}]
["легкая атлетика",51,0,0,null,null,null,0,null,null,null,null,0,null,null,null,0,null,null,null,0,null,null,null,null,{"$f":"'Раздел III'!H58","v":0}]
["лыжные гонки",52,0,0,null,null,null,0,null,null,null,null,0,null,null,null,0,null,null,null,0,null,null,null,null,{"$f":"'Раздел III'!H59","v":0}]
["мини-футбол (футзал)",53,0,0,null,null,null,0,null,null,null,null,0,null,null,null,0,null,null,null,0,null,null,null,null,{"$f":"'Раздел III'!H60","v":0}]
["настольный теннис",54,0,0,null,null,null,0,null,null,null,null,0,null,null,null,0,null,null,null,0,null,null,null,null,{"$f":"'Раздел III'!H61","v":0}]
["пауэрлифтинг (троеборье)",55,4,4,null,null,4,0,null,null,null,null,6,null,null,6,0,null,null,null,0,null,null,null,null,{"$f":"'Раздел III'!H62","v":10}]
["плавание",56,0,0,null,null,null,0,null,null,null,null,0,null,null,null,0,null,null,null,0,null,null,null,null,{"$f":"'Раздел III'!H63","v":75}]
["спортивная гимнастика",57,0,0,null,null,null,0,null,null,null,null,0,null,null,null,0,null,null,null,0,null,null,null,null,{"$f":"'Раздел III'!H64","v":0}]
["теннис",58,0,0,null,null,null,0,null,null,null,null,0,null,null,null,0,null,null,null,0,null,null,null,null,{"$f":"'Раздел III'!H65","v":0}]
["тхэквондо (пхумсэ)",59,0,0,null,null,null,0,null,null,null,null,0,null,null,null,0,null,null,null,0,null,null,null,null,{"$f":"'Раздел III'!H66","v":0}]
["футбол",60,0,0,null,null,null,0,null,null,null,null,0,null,null,null,0,null,null,null,0,null,null,null,null,{"$f":"'Раздел III'!H67","v":0}]
["Всего по виду спорта\n\"Спорт лиц с поражением ОДА\"",61,16,13,{"$f":"SUM(E68:E99)","v":0},{"$f":"SUM(F68:F99)","v":3},10,3,0,0,3,0,15,0,3,12,0,0,0,0,0,0,0,0,0,{"$f":"'Раздел III'!H68","v":48}]
["в том числе по дисциплинам:\nакадемическая гребля ",62,0,0,null,null,null,0,null,null,null,null,0,null,null,null,0,null,null,null,0,null,null,null,null,{"$f":"'Раздел III'!H69","v":0}]
["академическая гребля -эргометр",63,0,0,null,null,null,0,null,null,null,null,0,null,null,null,0,null,null,null,0,null,null,null,null,{"$f":"'Раздел III'!H70","v":0}]
["бадминтон",64,4,4,null,3,1,0,null,null,null,null,3,null,3,null,0,null,null,null,0,null,null,null,null,{"$f":"'Раздел III'!H71","v":11}]
["баскетбол на колясках",65,0,0,null,null,null,0,null,null,null,null,0,null,null,null,0,null,null,null,0,null,null,null,null,{"$f":"'Раздел III'!H72","v":0}]
["биатлон",66,0,0,null,null,null,0,null,null,null,null,0,null,null,null,0,null,null,null,0,null,null,null,null,{"$f":"'Раздел III'!H73","v":0}]
["бочча",67,{"$f":"SUM(D73,H73)","v":2},{"$f":"SUM(E73:G73)","v":1},null,null,1,{"$f":"SUM(I73:L73)","v":1},null,null,1,null,{"$f":"SUM(N73:P73)","v":4},null,null,4,{"$f":"SUM(R73:T73)","v":0},null,null,null,{"$f":"SUM(V73:Y73)","v":0},null,null,null,null,{"$f":"'Раздел III'!H74","v":21}]
["велоспорт - трек",68,0,0,null,null,null,0,null,null,null,null,0,null,null,null,0,null,null,null,0,null,null,null,null,{"$f":"'Раздел III'!H75","v":0}]
["велоспорт - шоссе",69,0,0,null,null,null,0,null,null,null,null,0,null,null,null,0,null,null,null,0,null,null,null,null,{"$f":"'Раздел III'!H76","v":0}]
["волейбол сидя",70,0,0,null,null,null,0,null,null,null,null,0,null,null,null,0,null,null,null,0,null,null,null,null,{"$f":"'Раздел III'!H77","v":0}]
["горнолыжный спорт",71,0,0,null,null,null,0,null,null,null,null,0,null,null,null,0,null,null,null,0,null,null,null,null,{"$f":"'Раздел III'!H78","v":0}]
["гребля на байдарках и каноэ",72,0,0,null,null,null,0,null,null,null,null,0,null,null,null,0,null,null,null,0,null,null,null,null,{"$f":"'Раздел III'!H79","v":0}]
["дартс",73,0,0,null,null,null,0,null,null,null,null,0,null,null,null,0,null,null,null,0,null,null,null,null,{"$f":"'Раздел III'!H80","v":0}]
["конный спорт",74,0,0,null,null,null,0,null,null,null,null,0,null,null,null,0,null,null,null,0,null,null,null,null,{"$f":"'Раздел III'!H81","v":0}]
["легкая атлетика",75,0,0,null,null,null,0,null,null,null,null,0,null,null,null,0,null,null,null,0,null,null,null,null,{"$f":"'Раздел III'!H82","v":0}]
["лыжные гонки",76,0,0,null,null,null,0,null,null,null,null,0,null,null,null,0,null,null,null,0,null,null,null,null,{"$f":"'Раздел III'!H83","v":0}]
["настольный теннис",77,0,0,null,null,null,0,null,null,null,null,0,null,null,null,0,null,null,null,0,null,null,null,null,{"$f":"'Раздел III'!H84","v":0}]
["парусный спорт",78,0,0,null,null,null,0,null,null,null,null,0,null,null,null,0,null,null,null,0,null,null,null,null,{"$f":"'Раздел III'!H85","v":0}]
["пауэрлифтинг",79,9,7,null,null,7,2,null,null,2,null,8,null,null,8,0,null,null,null,0,null,null,null,null,{"$f":"'Раздел III'!H86","v":13}]
["плавание",80,1,1,null,null,1,0,null,null,null,null,0,null,null,null,0,null,null,null,0,null,null,null,null,{"$f":"'Раздел III'!H87","v":3}]
["пулевая стрельба",81,0,0,null,null,null,0,null,null,null,null,0,null,null,null,0,null,null,null,0,null,null,null,null,{"$f":"'Раздел III'!H88","v":0}]
["регби на колясках",82,0,0,null,null,null,0,null,null,null,null,0,null,null,null,0,null,null,null,0,null,null,null,null,{"$f":"'Раздел III'!H89","v":0}]
["сноуборд",83,0,0,null,null,null,0,null,null,null,null,0,null,null,null,0,null,null,null,0,null,null,null,null,{"$f":"'Раздел III'!H90","v":0}]
["спортивное ориентирование",84,0,0,null,null,null,0,null,null,null,null,0,null,null,null,0,null,null,null,0,null,null,null,null,{"$f":"'Раздел III'!H91","v":0}]
["стендовая стрельба",85,0,0,null,null,null,0,null,null,null,null,0,null,null,null,0,null,null,null,0,null,null,null,null,{"$f":"'Раздел III'!H92","v":0}]
["стрельба из лука",86,0,0,null,null,null,0,null,null,null,null,0,null,null,null,0,null,null,null,0,null,null,null,null,{"$f":"'Раздел III'!H93","v":0}]
["танцы на колясках",87,0,0,null,null,null,0,null,null,null,null,0,null,null,null,0,null,null,null,0,null,null,null,null,{"$f":"'Раздел III'!H94","v":0}]
["теннис на колясках",88,0,0,null,null,null,0,null,null,null,null,0,null,null,null,0,null,null,null,0,null,null,null,null,{"$f":"'Раздел III'!H95","v":0}]
["фехтование",89,0,0,null,null,null,0,null,null,null,null,0,null,null,null,0,null,null,null,0,null,null,null,null,{"$f":"'Раздел III'!H96","v":0}]
["футбол ампутантов",90,0,0,null,null,null,0,null,null,null,null,0,null,null,null,0,null,null,null,0,null,null,null,null,{"$f":"'Раздел III'!H97","v":0}]
["хоккей - следж",91,0,0,null,null,null,0,null,null,null,null,0,null,null,null,0,null,null,null,0,null,null,null,null,{"$f":"'Раздел III'!H98","v":0}]
["шахматы",92,0,0,null,null,null,0,null,null,null,null,0,null,null,null,0,null,null,null,0,null,null,null,null,{"$f":"'Раздел III'!H99","v":0}]
["шашки",93,0,0,null,null,null,0,null,null,null,null,0,null,null,null,0,null,null,null,0,null,null,null,null,{"$f":"'Раздел III'!H100","v":0}]
["Всего по виду спорта \n\"Спорт слепых\"",94,4,3,{"$f":"SUM(E101:E123)","v":0},{"$f":"SUM(F101:F123)","v":0},3,1,0,0,1,0,2,0,0,2,0,0,0,0,0,0,0,0,0,{"$f":"'Раздел III'!H101","v":4}]
["в том числе по дисциплинам:\nармрестлинг",95,0,0,null,null,null,0,null,null,null,null,0,null,null,null,0,null,null,null,0,null,null,null,null,{"$f":"'Раздел III'!H102","v":0}]
["биатлон",96,0,0,null,null,null,0,null,null,null,null,0,null,null,null,0,null,null,null,0,null,null,null,null,{"$f":"'Раздел III'!H103","v":0}]
["борьба",97,0,0,null,null,null,0,null,null,null,null,0,null,null,null,0,null,null,null,0,null,null,null,null,{"$f":"'Раздел III'!H104","v":0}]
["боулинг",98,0,0,null,null,null,0,null,null,null,null,0,null,null,null,0,null,null,null,0,null,null,null,null,{"$f":"'Раздел III'!H105","v":0}]
["велоспорт-тандем - трек",99,0,0,null,null,null,0,null,null,null,null,0,null,null,null,0,null,null,null,0,null,null,null,null,{"$f":"'Раздел III'!H106","v":0}]
["велоспорт-тандем - шоссе",100,0,0,null,null,null,0,null,null,null,null,0,null,null,null,0,null,null,null,0,null,null,null,null,{"$f":"'Раздел III'!H107","v":0}]
["голбол",101,0,0,null,null,null,0,null,null,null,null,0,null,null,null,0,null,null,null,0,null,null,null,null,{"$f":"'Раздел III'!H108","v":0}]
["горнолыжный спорт",102,0,0,null,null,null,0,null,null,null,null,0,null,null,null,0,null,null,null,0,null,null,null,null,{"$f":"'Раздел III'!H109","v":0}]
["дзюдо",103,0,0,null,null,null,0,null,null,null,null,0,null,null,null,0,null,null,null,0,null,null,null,null,{"$f":"'Раздел III'!H110","v":0}]
["легкая атлетика",104,0,0,null,null,null,0,null,null,null,null,0,null,null,null,0,null,null,null,0,null,null,null,null,{"$f":"'Раздел III'!H111","v":0}]
["лыжные гонки",105,0,0,null,null,null,0,null,null,null,null,0,null,null,null,0,null,null,null,0,null,null,null,null,{"$f":"'Раздел III'!H112","v":0}]
["настольный теннис",106,0,0,null,null,null,0,null,null,null,null,0,null,null,null,0,null,null,null,0,null,null,null,null,{"$f":"'Раздел III'!H113","v":0}]
["пауэрлифтинг",107,4,3,null,null,3,1,null,null,1,null,2,null,null,2,0,null,null,null,0,null,null,null,null,{"$f":"'Раздел III'!H114","v":4}]
["плавание",108,0,0,null,null,null,0,null,null,null,null,0,null,null,null,0,null,null,null,0,null,null,null,null,{"$f":"'Раздел III'!H115","v":0}]
["пулевая стрельба",109,0,0,null,null,null,0,null,null,null,null,0,null,null,null,0,null,null,null,0,null,null,null,null,{"$f":"'Раздел III'!H116","v":0}]
["самбо",110,0,0,null,null,null,0,null,null,null,null,0,null,null,null,0,null,null,null,0,null,null,null,null,{"$f":"'Раздел III'!H117","v":0}]
["спортивный туризм - многоборье",111,0,0,null,null,null,0,null,null,null,null,0,null,null,null,0,null,null,null,0,null,null,null,null,{"$f":"'Раздел III'!H118","v":0}]
["торбол",112,0,0,null,null,null,0,null,null,null,null,0,null,null,null,0,null,null,null,0,null,null,null,null,{"$f":"'Раздел III'!H119","v":0}]
["триатлон",113,0,0,null,null,null,0,null,null,null,null,0,null,null,null,0,null,null,null,0,null,null,null,null,{"$f":"'Раздел III'!H120","v":0}]
["футбол - мини-футбол 5х5 (B1)",114,0,0,null,null,null,0,null,null,null,null,0,null,null,null,0,null,null,null,0,null,null,null,null,{"$f":"'Раздел III'!H121","v":0}]
["футбол - футзал 5х5 (B2, B3)",115,0,0,null,null,null,0,null,null,null,null,0,null,null,null,0,null,null,null,0,null,null,null,null,{"$f":"'Раздел III'!H122","v":0}]
["шахматы",116,0,0,null,null,null,0,null,null,null,null,0,null,null,null,0,null,null,null,0,null,null,null,null,{"$f":"'Раздел III'!H123","v":0}]
["шашки",117,0,0,null,null,null,0,null,null,null,null,0,null,null,null,0,null,null,null,0,null,null,null,null,{"$f":"'Раздел III'!H124","v":0}]
["Всего по виду спорта\n\"Футбол лиц с заболеванием ЦП\"",118,0,0,{"$f":"SUM(E125)","v":0},{"$f":"SUM(F125)","v":0},0,0,0,0,0,0,0,0,0,0,0,0,0,0,0,0,0,0,0,{"$f":"'Раздел III'!H125","v":0}]
["футбол лиц с заболеванием ЦП",119,0,0,null,null,null,0,null,null,null,null,0,null,null,null,0,null,null,null,0,null,null,null,null,{"$f":"'Раздел III'!H126","v":0}]
["Всего по другим видам спорта, спортивным\nдисциплинам",120,0,0,{"$f":"SUM(E127:E134)","v":0},{"$f":"SUM(F127:F134)","v":0},0,0,0,0,0,0,0,0,0,0,0,0,0,0,0,0,0,0,0,{"$f":"'Раздел III'!H127","v":0}]
[" в том числе по дисциплинам:\nармрестлинг (ПОДА)",121,0,0,null,null,null,0,null,null,null,null,0,null,null,null,0,null,null,null,0,null,null,null,null,{"$f":"'Раздел III'!H128","v":0}]
["водно-моторный спорт (ПОДА - мотолодка)",122,0,0,null,null,null,0,null,null,null,null,0,null,null,null,0,null,null,null,0,null,null,null,null,{"$f":"'Раздел III'!H129","v":0}]
["каратэ (ПОДА - ката)",123,0,0,null,null,null,0,null,null,null,null,0,null,null,null,0,null,null,null,0,null,null,null,null,{"$f":"'Раздел III'!H130","v":0}]
["кёрлинг (ПОДА - кёрлинг на колясках)",124,0,0,null,null,null,0,null,null,null,null,0,null,null,null,0,null,null,null,0,null,null,null,null,{"$f":"'Раздел III'!H131","v":0}]
["скалолазание (ПОДА - лазание на трудность)",125,0,0,null,null,null,0,null,null,null,null,0,null,null,null,0,null,null,null,0,null,null,null,null,{"$f":"'Раздел III'!H132","v":0}]
["триатлон (ПОДА - триатлон)",126,0,0,null,null,null,0,null,null,null,null,0,null,null,null,0,null,null,null,0,null,null,null,null,{"$f":"'Раздел III'!H133","v":0}]
["тхэквондо (ВТФ - ПОДА)",127,0,0,null,null,null,0,null,null,null,null,0,null,null,null,0,null,null,null,0,null,null,null,null,{"$f":"'Раздел III'!H134","v":0}]
["футбол (ПОДА - футбол на электроколясках)",128,0,0,null,null,null,0,null,null,null,null,0,null,null,null,0,null,null,null,0,null,null,null,null,{"$f":"'Раздел III'!H135","v":0}]
["Всего по базовым видам спорта (из строки 01)",129]
["Всего по видам спорта и (или) спортивным дисциплинам, включенным в Паралимпийскую программу",130,16,13,{"$f":"SUM(E57,E60,E62,E68,E70:E78,E80:E83,E85:E89,E92,E94:E95,E97,E102,E105:E111,E114,E119:E120,E130,E132:E133)","v":0},{"$f":"SUM(F57,F60,F62,F68,F70:F78,F80:F83,F85:F89,F92,F94:F95,F97,F102,F105:F111,F114,F119:F120,F130,F132:F133)","v":3},10,3,0,0,3,0,15,0,3,12,0,0,0,0,0,0,0,0,0]
["Всего по видам спорта и (или) спортивным\nдисциплинам, включенным в Сурдлимпийскую программу",131,{"$f":"SUM(D137,H137)","v":2},{"$f":"SUM(E137:G137)","v":2},{"$f":"SUM(E15:E34,E36:E43)","v":0},{"$f":"SUM(F15:F34,F36:F43)","v":0},2,{"$f":"SUM(I137:L137)","v":0},0,0,0,0,{"$f":"SUM(N137:P137)","v":0},0,0,0,{"$f":"SUM(R137:T137)","v":0},0,0,0,{"$f":"SUM(V137:Y137)","v":0},0,0,0,0]
["Ведомственная принадлежность\nорганизаций",132,26,22,{"$f":"SUM(E139:E141)","v":0},{"$f":"SUM(F139:F141)","v":3},19,4,0,0,4,0,23,0,3,20,0,0,0,0,0,0,0,0,0]
["в том числе:\nв сфере физической культуры и спорта",133,26,22,null,3,19,{"$f":"SUM(I139:L139)","v":4},null,null,4,null,{"$f":"SUM(N139:P139)","v":23},null,3,20,{"$f":"SUM(R139:T139)","v":0},null,null,null,{"$f":"SUM(V139:Y139)","v":0}]
["в сфере образования",134,0,0,null,null,null,0,null,null,null,null,0,null,null,null,0,null,null,null,0]
["в сфере труда и социальной защиты",135,0,0,null,null,null,0,null,null,null,null,0,null,null,null,0,null,null,null,0]

{"sheet":"Раздел VII","index":7,"n_rows":139,"n_cols":44,"rows_kept":139,"cut":false,"hidden":false,"merged":[[1,0,2,0],[1,1,2,1],[0,0,0,42],[1,2,1,7],[1,8,1,12],[1,13,1,17],[1,18,1,22],[1,23,1,27],[1,28,1,32],[1,33,1,37],[1,38,1,42]]}
["Раздел VII. Всероссийские спортивные соревнования, единица"]
["Наименование вида спорта,\nспортивной дисциплины","№\nстроки","Всего ",null,null,null,null,null,"Чемпионат России",null,null,null,null,"Первенство России\nсреди юниоров и юниорок",null,null,null,null,"Первенство России\nсреди юношей и девушек",null,null,null,null,"Кубок России",null,null,null,null,"Всероссийская Спартакиада инвалидов",null,null,null,null," Всероссийская Спартакиада между субъектами Российской Федерации среди инвалидов и лиц с ограниченными возможностями здоровья без ограничения верхней границы возраста",null,null,null,null,"Прочие официальные\nвсероссийские соревнования"]
[null,null,"медали\n(1-3 места)",1,2,3,"4-6","участие",1,2,3,"4-6","участие",1,2,3,"4-6","участие",1,2,3,"4-6","участие",1,2,3,"4-6","участие",1,2,3,"4-6","участие",1,2,3,"4-6","участие",1,2,3,"4-6","участие"]
[1,2,3,4,5,6,7,8,9,10,11,12,13,14,15,16,17,18,19,20,21,22,23,24,25,26,27,28,29,30,31,32,33,34,35,36,37,38,39,40,41,42,43]
["Всего (сумма строк 07, 39, 61, 94, 118, 120)","01",{"$f":"SUM(C11,C43,C65,C98,C122,C124)","v":34},{"$f":"SUM(D11,D43,D65,D98,D122,D124)","v":10},9,15,0,0,2,3,2,0,0,1,0,0,0,0,2,1,4,0,0,2,2,1,0,0,3,0,1,0,0,0,0,0,0,0,0,3,7,0,0]
["в том числе по виду организации:\nспортивно-адаптивные школы","02",{"$f":"SUM(D6:F6)","v":0},{"$f":"SUM(I6,N6,S6,X6,AC6,AH6,AM6)","v":0},{"$f":"SUM(J6,O6,T6,Y6,AD6,AI6,AN6)","v":0},0,0,0]
["спортивно-адаптивные школы паралимпийского и (или) сурдлимпийского резерва","03",{"$f":"SUM(D7:F7)","v":0},{"$f":"SUM(I7,N7,S7,X7,AC7,AH7,AM7)","v":0},{"$f":"SUM(J7,O7,T7,Y7,AD7,AI7,AN7)","v":0},{"$f":"SUM(K7,P7,U7,Z7,AE7,AJ7,AO7)","v":0},{"$f":"SUM(L7,Q7,V7,AA7,AF7,AK7,AP7)","v":0},{"$f":"SUM(M7,R7,W7,AB7,AG7,AL7,AQ7)","v":0}]
["региональные центры спортивной подготовки по адаптивным видам спорта","04",0,0,0,0,0,0]
["СШ, СШОР, УОР ","05",34,10,9,15,0,0,2,3,2,null,null,1,null,null,null,null,2,1,4,null,null,2,2,1,null,null,3,null,1,null,null,null,null,null,null,null,null,3,7]
["другие организации","06",0,0,0,0,0,0]
["Всего по виду спорта \n\"Спорт глухих\"","07",0,0,0,0,0,0,{"$f":"SUM(I12:I42)","v":0},{"$f":"SUM(J12:J42)","v":0},0,0,0,0,0,0,0,0,0,0,0,0,0,0,0,0,0,0,0,0,0,0,0,0,0,0,0,0,0,0,0,0,0]
["в том числе по дисциплинам:\nармрестлинг","08",0,0,0,0,0,0,null,null,null,null,null,null,null,null,null,null,null,null,null,null,null,null,null,null,null,null,null,null,null,null,null,null,null,null,null,null,null,null,null,null,null,{"$f":"'Раздел III'!H15","v":0}]
["бадминтон","09",0,0,0,0,0,0,null,null,null,null,null,null,null,null,null,null,null,null,null,null,null,null,null,null,null,null,null,null,null,null,null,null,null,null,null,null,null,null,null,null,null,{"$f":"'Раздел III'!H16","v":0}]
["баскетбол",10,0,0,0,0,0,0,null,null,null,null,null,null,null,null,null,null,null,null,null,null,null,null,null,null,null,null,null,null,null,null,null,null,null,null,null,null,null,null,null,null,null,{"$f":"'Раздел III'!H17","v":0}]
["боулинг",11,0,0,0,0,0,0,null,null,null,null,null,null,null,null,null,null,null,null,null,null,null,null,null,null,null,null,null,null,null,null,null,null,null,null,null,null,null,null,null,null,null,{"$f":"'Раздел III'!H18","v":0}]
["велосипедный спорт - маунтинбайк",12,0,0,0,0,0,0,null,null,null,null,null,null,null,null,null,null,null,null,null,null,null,null,null,null,null,null,null,null,null,null,null,null,null,null,null,null,null,null,null,null,null,{"$f":"'Раздел III'!H19","v":0}]
["велосипедный спорт - шоссе",13,0,0,0,0,0,0,null,null,null,null,null,null,null,null,null,null,null,null,null,null,null,null,null,null,null,null,null,null,null,null,null,null,null,null,null,null,null,null,null,null,null,{"$f":"'Раздел III'!H20","v":0}]
["волейбол",14,0,0,0,0,0,0,null,null,null,null,null,null,null,null,null,null,null,null,null,null,null,null,null,null,null,null,null,null,null,null,null,null,null,null,null,null,null,null,null,null,null,{"$f":"'Раздел III'!H21","v":0}]
["волейбол - пляжный",15,0,0,0,0,0,0,null,null,null,null,null,null,null,null,null,null,null,null,null,null,null,null,null,null,null,null,null,null,null,null,null,null,null,null,null,null,null,null,null,null,null,{"$f":"'Раздел III'!H22","v":0}]
["вольная борьба",16,0,0,0,0,0,0,null,null,null,null,null,null,null,null,null,null,null,null,null,null,null,null,null,null,null,null,null,null,null,null,null,null,null,null,null,null,null,null,null,null,null,{"$f":"'Раздел III'!H23","v":0}]
["гандбол",17,0,0,0,0,0,0,null,null,null,null,null,null,null,null,null,null,null,null,null,null,null,null,null,null,null,null,null,null,null,null,null,null,null,null,null,null,null,null,null,null,null,{"$f":"'Раздел III'!H24","v":0}]
["гольф",18,0,0,0,0,0,0,null,null,null,null,null,null,null,null,null,null,null,null,null,null,null,null,null,null,null,null,null,null,null,null,null,null,null,null,null,null,null,null,null,null,null,{"$f":"'Раздел III'!H25","v":0}]
["горнолыжный спорт",19,0,0,0,0,0,0,null,null,null,null,null,null,null,null,null,null,null,null,null,null,null,null,null,null,null,null,null,null,null,null,null,null,null,null,null,null,null,null,null,null,null,{"$f":"'Раздел III'!H26","v":0}]
["греко-римская борьба",20,0,0,0,0,0,0,null,null,null,null,null,null,null,null,null,null,null,null,null,null,null,null,null,null,null,null,null,null,null,null,null,null,null,null,null,null,null,null,null,null,null,{"$f":"'Раздел III'!H27","v":0}]
["дзюдо",21,0,0,0,0,0,0,null,null,null,null,null,null,null,null,null,null,null,null,null,null,null,null,null,null,null,null,null,null,null,null,null,null,null,null,null,null,null,null,null,null,null,{"$f":"'Раздел III'!H28","v":0}]
["каратэ",22,0,0,0,0,0,0,null,null,null,null,null,null,null,null,null,null,null,null,null,null,null,null,null,null,null,null,null,null,null,null,null,null,null,null,null,null,null,null,null,null,null,{"$f":"'Раздел III'!H29","v":0}]
["кёрлинг",23,0,0,0,0,0,0,null,null,null,null,null,null,null,null,null,null,null,null,null,null,null,null,null,null,null,null,null,null,null,null,null,null,null,null,null,null,null,null,null,null,null,{"$f":"'Раздел III'!H30","v":0}]
["легкая атлетика",24,0,0,0,0,0,0,null,null,null,null,null,null,null,null,null,null,null,null,null,null,null,null,null,null,null,null,null,null,null,null,null,null,null,null,null,null,null,null,null,null,null,{"$f":"'Раздел III'!H31","v":0}]
["лыжные гонки",25,0,0,0,0,0,0,null,null,null,null,null,null,null,null,null,null,null,null,null,null,null,null,null,null,null,null,null,null,null,null,null,null,null,null,null,null,null,null,null,null,null,{"$f":"'Раздел III'!H32","v":0}]
["настольный теннис",26,0,0,0,0,0,0,null,null,null,null,null,null,null,null,null,null,null,null,null,null,null,null,null,null,null,null,null,null,null,null,null,null,null,null,null,null,null,null,null,null,null,{"$f":"'Раздел III'!H33","v":0}]
["плавание",27,0,0,0,0,0,0,null,null,null,null,null,null,null,null,null,null,null,null,null,null,null,null,null,null,null,null,null,null,null,null,null,null,null,null,null,null,null,null,null,null,null,{"$f":"'Раздел III'!H34","v":3}]
["пулевая стрельба",28,0,0,0,0,0,0,null,null,null,null,null,null,null,null,null,null,null,null,null,null,null,null,null,null,null,null,null,null,null,null,null,null,null,null,null,null,null,null,null,null,null,{"$f":"'Раздел III'!H35","v":0}]
["самбо",29,0,0,0,0,0,0,null,null,null,null,null,null,null,null,null,null,null,null,null,null,null,null,null,null,null,null,null,null,null,null,null,null,null,null,null,null,null,null,null,null,null,{"$f":"'Раздел III'!H36","v":0}]
["сноуборд",30,0,0,0,0,0,0,null,null,null,null,null,null,null,null,null,null,null,null,null,null,null,null,null,null,null,null,null,null,null,null,null,null,null,null,null,null,null,null,null,null,null,{"$f":"'Раздел III'!H37","v":0}]
["спортивное ориентирование",31,0,0,0,0,0,0,null,null,null,null,null,null,null,null,null,null,null,null,null,null,null,null,null,null,null,null,null,null,null,null,null,null,null,null,null,null,null,null,null,null,null,{"$f":"'Раздел III'!H38","v":0}]
["теннис",32,0,0,0,0,0,0,null,null,null,null,null,null,null,null,null,null,null,null,null,null,null,null,null,null,null,null,null,null,null,null,null,null,null,null,null,null,null,null,null,null,null,{"$f":"'Раздел III'!H39","v":0}]
["тхэквондо",33,0,0,0,0,0,0,null,null,null,null,null,null,null,null,null,null,null,null,null,null,null,null,null,null,null,null,null,null,null,null,null,null,null,null,null,null,null,null,null,null,null,{"$f":"'Раздел III'!H40","v":0}]
["футбол",34,0,0,0,0,0,0,null,null,null,null,null,null,null,null,null,null,null,null,null,null,null,null,null,null,null,null,null,null,null,null,null,null,null,null,null,null,null,null,null,null,null,{"$f":"'Раздел III'!H41","v":0}]
["футзал",35,0,0,0,0,0,0,null,null,null,null,null,null,null,null,null,null,null,null,null,null,null,null,null,null,null,null,null,null,null,null,null,null,null,null,null,null,null,null,null,null,null,{"$f":"'Раздел III'!H42","v":0}]
["хоккей",36,0,0,0,0,0,0,null,null,null,null,null,null,null,null,null,null,null,null,null,null,null,null,null,null,null,null,null,null,null,null,null,null,null,null,null,null,null,null,null,null,null,{"$f":"'Раздел III'!H43","v":0}]
["шахматы",37,0,0,0,0,0,0,null,null,null,null,null,null,null,null,null,null,null,null,null,null,null,null,null,null,null,null,null,null,null,null,null,null,null,null,null,null,null,null,null,null,null,{"$f":"'Раздел III'!H44","v":0}]
["шашки",38,0,0,0,0,0,0,null,null,null,null,null,null,null,null,null,null,null,null,null,null,null,null,null,null,null,null,null,null,null,null,null,null,null,null,null,null,null,null,null,null,null,{"$f":"'Раздел III'!H45","v":0}]
["Всего по виду спорта \n\"Спорт лиц с интеллектуальными нарушениями\"",39,11,5,4,2,0,0,{"$f":"SUM(I44:I64)","v":0},{"$f":"SUM(J44:J64)","v":2},0,0,0,0,0,0,0,0,1,0,0,0,0,1,2,1,0,0,3,0,1,0,0,0,0,0,0,0,0,0,0,0,0,{"$f":"'Раздел III'!H46","v":114}]
["в том числе по дисциплинам:\nакадемическая гребля ",40,0,0,0,0,0,0,null,null,null,null,null,null,null,null,null,null,null,null,null,null,null,null,null,null,null,null,null,null,null,null,null,null,null,null,null,null,null,null,null,null,null,{"$f":"'Раздел III'!H47","v":0}]
["академическая гребля - индор",41,0,0,0,0,0,0,null,null,null,null,null,null,null,null,null,null,null,null,null,null,null,null,null,null,null,null,null,null,null,null,null,null,null,null,null,null,null,null,null,null,null,{"$f":"'Раздел III'!H48","v":0}]
["бадминтон",42,0,0,0,0,0,0,null,null,null,null,null,null,null,null,null,null,null,null,null,null,null,null,null,null,null,null,null,null,null,null,null,null,null,null,null,null,null,null,null,null,null,{"$f":"'Раздел III'!H49","v":29}]
["баскетбол",43,0,0,0,0,0,0,null,null,null,null,null,null,null,null,null,null,null,null,null,null,null,null,null,null,null,null,null,null,null,null,null,null,null,null,null,null,null,null,null,null,null,{"$f":"'Раздел III'!H50","v":0}]
["баскетбол 3х3",44,0,0,0,0,0,0,null,null,null,null,null,null,null,null,null,null,null,null,null,null,null,null,null,null,null,null,null,null,null,null,null,null,null,null,null,null,null,null,null,null,null,{"$f":"'Раздел III'!H51","v":0}]
["велоспорт-трек",45,0,0,0,0,0,0,null,null,null,null,null,null,null,null,null,null,null,null,null,null,null,null,null,null,null,null,null,null,null,null,null,null,null,null,null,null,null,null,null,null,null,{"$f":"'Раздел III'!H52","v":0}]
["велоспорт-шоссе",46,0,0,0,0,0,0,null,null,null,null,null,null,null,null,null,null,null,null,null,null,null,null,null,null,null,null,null,null,null,null,null,null,null,null,null,null,null,null,null,null,null,{"$f":"'Раздел III'!H53","v":0}]
["гандбол",47,0,0,0,0,0,0,null,null,null,null,null,null,null,null,null,null,null,null,null,null,null,null,null,null,null,null,null,null,null,null,null,null,null,null,null,null,null,null,null,null,null,{"$f":"'Раздел III'!H54","v":0}]
["горнолыжный спорт",48,0,0,0,0,0,0,null,null,null,null,null,null,null,null,null,null,null,null,null,null,null,null,null,null,null,null,null,null,null,null,null,null,null,null,null,null,null,null,null,null,null,{"$f":"'Раздел III'!H55","v":0}]
["дзюдо",49,0,0,0,0,0,0,null,null,null,null,null,null,null,null,null,null,null,null,null,null,null,null,null,null,null,null,null,null,null,null,null,null,null,null,null,null,null,null,null,null,null,{"$f":"'Раздел III'!H56","v":0}]
["конный спорт",50,0,0,0,0,0,0,null,null,null,null,null,null,null,null,null,null,null,null,null,null,null,null,null,null,null,null,null,null,null,null,null,null,null,null,null,null,null,null,null,null,null,{"$f":"'Раздел III'!H57","v":0}]
["легкая атлетика",51,0,0,0,0,0,0,null,null,null,null,null,null,null,null,null,null,null,null,null,null,null,null,null,null,null,null,null,null,null,null,null,null,null,null,null,null,null,null,null,null,null,{"$f":"'Раздел III'!H58","v":0}]
["лыжные гонки",52,0,0,0,0,0,0,null,null,null,null,null,null,null,null,null,null,null,null,null,null,null,null,null,null,null,null,null,null,null,null,null,null,null,null,null,null,null,null,null,null,null,{"$f":"'Раздел III'!H59","v":0}]
["мини-футбол (футзал)",53,0,0,0,0,0,0,null,null,null,null,null,null,null,null,null,null,null,null,null,null,null,null,null,null,null,null,null,null,null,null,null,null,null,null,null,null,null,null,null,null,null,{"$f":"'Раздел III'!H60","v":0}]
["настольный теннис",54,0,0,0,0,0,0,null,null,null,null,null,null,null,null,null,null,null,null,null,null,null,null,null,null,null,null,null,null,null,null,null,null,null,null,null,null,null,null,null,null,null,{"$f":"'Раздел III'!H61","v":0}]
["пауэрлифтинг (троеборье)",55,11,5,4,2,0,0,null,2,null,null,null,null,null,null,null,null,1,null,null,null,null,1,2,1,null,null,3,null,1,null,null,null,null,null,null,null,null,null,null,null,null,{"$f":"'Раздел III'!H62","v":10}]
["плавание",56,0,0,0,0,0,0,null,null,null,null,null,null,null,null,null,null,null,null,null,null,null,null,null,null,null,null,null,null,null,null,null,null,null,null,null,null,null,null,null,null,null,{"$f":"'Раздел III'!H63","v":75}]
["спортивная гимнастика",57,0,0,0,0,0,0,null,null,null,null,null,null,null,null,null,null,null,null,null,null,null,null,null,null,null,null,null,null,null,null,null,null,null,null,null,null,null,null,null,null,null,{"$f":"'Раздел III'!H64","v":0}]
["теннис",58,0,0,0,0,0,0,null,null,null,null,null,null,null,null,null,null,null,null,null,null,null,null,null,null,null,null,null,null,null,null,null,null,null,null,null,null,null,null,null,null,null,{"$f":"'Раздел III'!H65","v":0}]
["тхэквондо (пхумсэ)",59,0,0,0,0,0,0,null,null,null,null,null,null,null,null,null,null,null,null,null,null,null,null,null,null,null,null,null,null,null,null,null,null,null,null,null,null,null,null,null,null,null,{"$f":"'Раздел III'!H66","v":0}]
["футбол",60,0,0,0,0,0,0,null,null,null,null,null,null,null,null,null,null,null,null,null,null,null,null,null,null,null,null,null,null,null,null,null,null,null,null,null,null,null,null,null,null,null,{"$f":"'Раздел III'!H67","v":0}]
["Всего по виду спорта\n\"Спорт лиц с поражением ОДА\"",61,18,3,4,11,0,0,{"$f":"SUM(I66:I97)","v":1},{"$f":"SUM(J66:J97)","v":0},0,0,0,1,0,0,0,0,0,1,4,0,0,1,0,0,0,0,0,0,0,0,0,0,0,0,0,0,0,3,7,0,0,{"$f":"'Раздел III'!H68","v":48}]
["в том числе по дисциплинам:\nакадемическая гребля ",62,0,0,0,0,0,0,null,null,null,null,null,null,null,null,null,null,null,null,null,null,null,null,null,null,null,null,null,null,null,null,null,null,null,null,null,null,null,null,null,null,null,{"$f":"'Раздел III'!H69","v":0}]
["академическая гребля - эргометр",63,0,0,0,0,0,0,null,null,null,null,null,null,null,null,null,null,null,null,null,null,null,null,null,null,null,null,null,null,null,null,null,null,null,null,null,null,null,null,null,null,null,{"$f":"'Раздел III'!H70","v":0}]
["бадминтон",64,15,0,4,11,0,0,null,null,null,null,null,null,null,null,null,null,null,1,4,null,null,null,null,null,null,null,null,null,null,null,null,null,null,null,null,null,null,3,7,null,null,{"$f":"'Раздел III'!H71","v":11}]
["баскетбол на колясках",65,0,0,0,0,0,0,null,null,null,null,null,null,null,null,null,null,null,null,null,null,null,null,null,null,null,null,null,null,null,null,null,null,null,null,null,null,null,null,null,null,null,{"$f":"'Раздел III'!H72","v":0}]
["биатлон",66,0,0,0,0,0,0,null,null,null,null,null,null,null,null,null,null,null,null,null,null,null,null,null,null,null,null,null,null,null,null,null,null,null,null,null,null,null,null,null,null,null,{"$f":"'Раздел III'!H73","v":0}]
["бочча",67,{"$f":"SUM(D71:F71)","v":1},{"$f":"SUM(I71,N71,S71,X71,AC71,AH71,AM71)","v":1},{"$f":"SUM(J71,O71,T71,Y71,AD71,AI71,AN71)","v":0},{"$f":"SUM(K71,P71,U71,Z71,AE71,AJ71,AO71)","v":0},{"$f":"SUM(L71,Q71,V71,AA71,AF71,AK71,AP71)","v":0},{"$f":"SUM(M71,R71,W71,AB71,AG71,AL71,AQ71)","v":0},null,null,null,null,null,1,null,null,null,null,null,null,null,null,null,null,null,null,null,null,null,null,null,null,null,null,null,null,null,null,null,null,null,null,null,{"$f":"'Раздел III'!H74","v":21}]
["велоспорт - трек",68,0,0,0,0,0,0,null,null,null,null,null,null,null,null,null,null,null,null,null,null,null,null,null,null,null,null,null,null,null,null,null,null,null,null,null,null,null,null,null,null,null,{"$f":"'Раздел III'!H75","v":0}]
["велоспорт - шоссе",69,0,0,0,0,0,0,null,null,null,null,null,null,null,null,null,null,null,null,null,null,null,null,null,null,null,null,null,null,null,null,null,null,null,null,null,null,null,null,null,null,null,{"$f":"'Раздел III'!H76","v":0}]
["волейбол сидя",70,0,0,0,0,0,0,null,null,null,null,null,null,null,null,null,null,null,null,null,null,null,null,null,null,null,null,null,null,null,null,null,null,null,null,null,null,null,null,null,null,null,{"$f":"'Раздел III'!H77","v":0}]
["горнолыжный спорт",71,0,0,0,0,0,0,null,null,null,null,null,null,null,null,null,null,null,null,null,null,null,null,null,null,null,null,null,null,null,null,null,null,null,null,null,null,null,null,null,null,null,{"$f":"'Раздел III'!H78","v":0}]
["гребля на байдарках и каноэ",72,0,0,0,0,0,0,null,null,null,null,null,null,null,null,null,null,null,null,null,null,null,null,null,null,null,null,null,null,null,null,null,null,null,null,null,null,null,null,null,null,null,{"$f":"'Раздел III'!H79","v":0}]
["дартс",73,0,0,0,0,0,0,null,null,null,null,null,null,null,null,null,null,null,null,null,null,null,null,null,null,null,null,null,null,null,null,null,null,null,null,null,null,null,null,null,null,null,{"$f":"'Раздел III'!H80","v":0}]
["конный спорт",74,0,0,0,0,0,0,null,null,null,null,null,null,null,null,null,null,null,null,null,null,null,null,null,null,null,null,null,null,null,null,null,null,null,null,null,null,null,null,null,null,null,{"$f":"'Раздел III'!H81","v":0}]
["легкая атлетика",75,0,0,0,0,0,0,null,null,null,null,null,null,null,null,null,null,null,null,null,null,null,null,null,null,null,null,null,null,null,null,null,null,null,null,null,null,null,null,null,null,null,{"$f":"'Раздел III'!H82","v":0}]
["лыжные гонки",76,0,0,0,0,0,0,null,null,null,null,null,null,null,null,null,null,null,null,null,null,null,null,null,null,null,null,null,null,null,null,null,null,null,null,null,null,null,null,null,null,null,{"$f":"'Раздел III'!H83","v":0}]
["настольный теннис",77,0,0,0,0,0,0,null,null,null,null,null,null,null,null,null,null,null,null,null,null,null,null,null,null,null,null,null,null,null,null,null,null,null,null,null,null,null,null,null,null,null,{"$f":"'Раздел III'!H84","v":0}]
["парусный спорт",78,0,0,0,0,0,0,null,null,null,null,null,null,null,null,null,null,null,null,null,null,null,null,null,null,null,null,null,null,null,null,null,null,null,null,null,null,null,null,null,null,null,{"$f":"'Раздел III'!H85","v":0}]
["пауэрлифтинг",79,2,2,0,0,0,0,1,null,null,null,null,null,null,null,null,null,null,null,null,null,null,1,null,null,null,null,null,null,null,null,null,null,null,null,null,null,null,null,null,null,null,{"$f":"'Раздел III'!H86","v":13}]
["плавание",80,0,0,0,0,0,0,null,null,null,null,null,null,null,null,null,null,null,null,null,null,null,null,null,null,null,null,null,null,null,null,null,null,null,null,null,null,null,null,null,null,null,{"$f":"'Раздел III'!H87","v":3}]
["пулевая стрельба",81,0,0,0,0,0,0,null,null,null,null,null,null,null,null,null,null,null,null,null,null,null,null,null,null,null,null,null,null,null,null,null,null,null,null,null,null,null,null,null,null,null,{"$f":"'Раздел III'!H88","v":0}]
["регби на колясках",82,0,0,0,0,0,0,null,null,null,null,null,null,null,null,null,null,null,null,null,null,null,null,null,null,null,null,null,null,null,null,null,null,null,null,null,null,null,null,null,null,null,{"$f":"'Раздел III'!H89","v":0}]
["сноуборд",83,0,0,0,0,0,0,null,null,null,null,null,null,null,null,null,null,null,null,null,null,null,null,null,null,null,null,null,null,null,null,null,null,null,null,null,null,null,null,null,null,null,{"$f":"'Раздел III'!H90","v":0}]
["спортивное ориентирование",84,0,0,0,0,0,0,null,null,null,null,null,null,null,null,null,null,null,null,null,null,null,null,null,null,null,null,null,null,null,null,null,null,null,null,null,null,null,null,null,null,null,{"$f":"'Раздел III'!H91","v":0}]
["стендовая стрельба",85,0,0,0,0,0,0,null,null,null,null,null,null,null,null,null,null,null,null,null,null,null,null,null,null,null,null,null,null,null,null,null,null,null,null,null,null,null,null,null,null,null,{"$f":"'Раздел III'!H92","v":0}]
["стрельба из лука",86,0,0,0,0,0,0,null,null,null,null,null,null,null,null,null,null,null,null,null,null,null,null,null,null,null,null,null,null,null,null,null,null,null,null,null,null,null,null,null,null,null,{"$f":"'Раздел III'!H93","v":0}]
["танцы на колясках",87,0,0,0,0,0,0,null,null,null,null,null,null,null,null,null,null,null,null,null,null,null,null,null,null,null,null,null,null,null,null,null,null,null,null,null,null,null,null,null,null,null,{"$f":"'Раздел III'!H94","v":0}]
["теннис на колясках",88,0,0,0,0,0,0,null,null,null,null,null,null,null,null,null,null,null,null,null,null,null,null,null,null,null,null,null,null,null,null,null,null,null,null,null,null,null,null,null,null,null,{"$f":"'Раздел III'!H95","v":0}]
["фехтование",89,0,0,0,0,0,0,null,null,null,null,null,null,null,null,null,null,null,null,null,null,null,null,null,null,null,null,null,null,null,null,null,null,null,null,null,null,null,null,null,null,null,{"$f":"'Раздел III'!H96","v":0}]
["футбол ампутантов",90,0,0,0,0,0,0,null,null,null,null,null,null,null,null,null,null,null,null,null,null,null,null,null,null,null,null,null,null,null,null,null,null,null,null,null,null,null,null,null,null,null,{"$f":"'Раздел III'!H97","v":0}]
["хоккей - следж",91,0,0,0,0,0,0,null,null,null,null,null,null,null,null,null,null,null,null,null,null,null,null,null,null,null,null,null,null,null,null,null,null,null,null,null,null,null,null,null,null,null,{"$f":"'Раздел III'!H98","v":0}]
["шахматы",92,0,0,0,0,0,0,null,null,null,null,null,null,null,null,null,null,null,null,null,null,null,null,null,null,null,null,null,null,null,null,null,null,null,null,null,null,null,null,null,null,null,{"$f":"'Раздел III'!H99","v":0}]
["шашки",93,0,0,0,0,0,0,null,null,null,null,null,null,null,null,null,null,null,null,null,null,null,null,null,null,null,null,null,null,null,null,null,null,null,null,null,null,null,null,null,null,null,{"$f":"'Раздел III'!H100","v":0}]
["Всего по виду спорта\n \"Спорт слепых\"",94,5,2,1,2,0,0,{"$f":"SUM(I99:I121)","v":1},{"$f":"SUM(J99:J121)","v":1},2,0,0,0,0,0,0,0,1,0,0,0,0,0,0,0,0,0,0,0,0,0,0,0,0,0,0,0,0,0,0,0,0,{"$f":"'Раздел III'!H101","v":4}]
["в том числе по дисциплинам:\nармрестлинг",95,0,0,0,0,0,0,null,null,null,null,null,null,null,null,null,null,null,null,null,null,null,null,null,null,null,null,null,null,null,null,null,null,null,null,null,null,null,null,null,null,null,{"$f":"'Раздел III'!H102","v":0}]
["биатлон",96,0,0,0,0,0,0,null,null,null,null,null,null,null,null,null,null,null,null,null,null,null,null,null,null,null,null,null,null,null,null,null,null,null,null,null,null,null,null,null,null,null,{"$f":"'Раздел III'!H103","v":0}]
["борьба",97,0,0,0,0,0,0,null,null,null,null,null,null,null,null,null,null,null,null,null,null,null,null,null,null,null,null,null,null,null,null,null,null,null,null,null,null,null,null,null,null,null,{"$f":"'Раздел III'!H104","v":0}]
["боулинг",98,0,0,0,0,0,0,null,null,null,null,null,null,null,null,null,null,null,null,null,null,null,null,null,null,null,null,null,null,null,null,null,null,null,null,null,null,null,null,null,null,null,{"$f":"'Раздел III'!H105","v":0}]
["велоспорт-тандем - трек",99,0,0,0,0,0,0,null,null,null,null,null,null,null,null,null,null,null,null,null,null,null,null,null,null,null,null,null,null,null,null,null,null,null,null,null,null,null,null,null,null,null,{"$f":"'Раздел III'!H106","v":0}]
["велоспорт-тандем - шоссе",100,0,0,0,0,0,0,null,null,null,null,null,null,null,null,null,null,null,null,null,null,null,null,null,null,null,null,null,null,null,null,null,null,null,null,null,null,null,null,null,null,null,{"$f":"'Раздел III'!H107","v":0}]
["голбол",101,0,0,0,0,0,0,null,null,null,null,null,null,null,null,null,null,null,null,null,null,null,null,null,null,null,null,null,null,null,null,null,null,null,null,null,null,null,null,null,null,null,{"$f":"'Раздел III'!H108","v":0}]
["горнолыжный спорт",102,0,0,0,0,0,0,null,null,null,null,null,null,null,null,null,null,null,null,null,null,null,null,null,null,null,null,null,null,null,null,null,null,null,null,null,null,null,null,null,null,null,{"$f":"'Раздел III'!H109","v":0}]
["дзюдо",103,0,0,0,0,0,0,null,null,null,null,null,null,null,null,null,null,null,null,null,null,null,null,null,null,null,null,null,null,null,null,null,null,null,null,null,null,null,null,null,null,null,{"$f":"'Раздел III'!H110","v":0}]
["легкая атлетика",104,0,0,0,0,0,0,null,null,null,null,null,null,null,null,null,null,null,null,null,null,null,null,null,null,null,null,null,null,null,null,null,null,null,null,null,null,null,null,null,null,null,{"$f":"'Раздел III'!H111","v":0}]
["лыжные гонки",105,0,0,0,0,0,0,null,null,null,null,null,null,null,null,null,null,null,null,null,null,null,null,null,null,null,null,null,null,null,null,null,null,null,null,null,null,null,null,null,null,null,{"$f":"'Раздел III'!H112","v":0}]
["настольный теннис",106,0,0,0,0,0,0,null,null,null,null,null,null,null,null,null,null,null,null,null,null,null,null,null,null,null,null,null,null,null,null,null,null,null,null,null,null,null,null,null,null,null,{"$f":"'Раздел III'!H113","v":0}]
["пауэрлифтинг",107,5,2,1,2,0,0,1,1,2,null,null,null,null,null,null,null,1,null,null,null,null,null,null,null,null,null,null,null,null,null,null,null,null,null,null,null,null,null,null,null,null,{"$f":"'Раздел III'!H114","v":4}]
["плавание",108,0,0,0,0,0,0,null,null,null,null,null,null,null,null,null,null,null,null,null,null,null,null,null,null,null,null,null,null,null,null,null,null,null,null,null,null,null,null,null,null,null,{"$f":"'Раздел III'!H115","v":0}]
["пулевая стрельба",109,0,0,0,0,0,0,null,null,null,null,null,null,null,null,null,null,null,null,null,null,null,null,null,null,null,null,null,null,null,null,null,null,null,null,null,null,null,null,null,null,null,{"$f":"'Раздел III'!H116","v":0}]
["самбо",110,0,0,0,0,0,0,null,null,null,null,null,null,null,null,null,null,null,null,null,null,null,null,null,null,null,null,null,null,null,null,null,null,null,null,null,null,null,null,null,null,null,{"$f":"'Раздел III'!H117","v":0}]
["спортивный туризм - многоборье",111,0,0,0,0,0,0,null,null,null,null,null,null,null,null,null,null,null,null,null,null,null,null,null,null,null,null,null,null,null,null,null,null,null,null,null,null,null,null,null,null,null,{"$f":"'Раздел III'!H118","v":0}]
["торбол",112,0,0,0,0,0,0,null,null,null,null,null,null,null,null,null,null,null,null,null,null,null,null,null,null,null,null,null,null,null,null,null,null,null,null,null,null,null,null,null,null,null,{"$f":"'Раздел III'!H119","v":0}]
["триатлон",113,0,0,0,0,0,0,null,null,null,null,null,null,null,null,null,null,null,null,null,null,null,null,null,null,null,null,null,null,null,null,null,null,null,null,null,null,null,null,null,null,null,{"$f":"'Раздел III'!H120","v":0}]
["футбол - мини-футбол 5х5 (B1)",114,0,0,0,0,0,0,null,null,null,null,null,null,null,null,null,null,null,null,null,null,null,null,null,null,null,null,null,null,null,null,null,null,null,null,null,null,null,null,null,null,null,{"$f":"'Раздел III'!H121","v":0}]
["футбол - футзал 5х5 (B2, B3)",115,0,0,0,0,0,0,null,null,null,null,null,null,null,null,null,null,null,null,null,null,null,null,null,null,null,null,null,null,null,null,null,null,null,null,null,null,null,null,null,null,null,{"$f":"'Раздел III'!H122","v":0}]
["шахматы",116,0,0,0,0,0,0,null,null,null,null,null,null,null,null,null,null,null,null,null,null,null,null,null,null,null,null,null,null,null,null,null,null,null,null,null,null,null,null,null,null,null,{"$f":"'Раздел III'!H123","v":0}]
["шашки",117,0,0,0,0,0,0,null,null,null,null,null,null,null,null,null,null,null,null,null,null,null,null,null,null,null,null,null,null,null,null,null,null,null,null,null,null,null,null,null,null,null,{"$f":"'Раздел III'!H124","v":0}]
["Всего по виду спорта\n\"Футбол лиц с заболеванием ЦП\"",118,0,0,0,0,0,0,{"$f":"SUM(I123)","v":0},{"$f":"SUM(J123)","v":0},0,0,0,0,0,0,0,0,0,0,0,0,0,0,0,0,0,0,0,0,0,0,0,0,0,0,0,0,0,0,0,0,0,{"$f":"'Раздел III'!H125","v":0}]
["футбол лиц с заболеванием ЦП",119,0,0,0,0,0,0,null,null,null,null,null,null,null,null,null,null,null,null,null,null,null,null,null,null,null,null,null,null,null,null,null,null,null,null,null,null,null,null,null,null,null,{"$f":"'Раздел III'!H126","v":0}]
["Всего по другим видам спорта, спортивным\nдисциплинам",120,0,0,0,0,0,0,{"$f":"SUM(I125:I132)","v":0},{"$f":"SUM(J125:J132)","v":0},0,0,0,0,0,0,0,0,0,0,0,0,0,0,0,0,0,0,0,0,0,0,0,0,0,0,0,0,0,0,0,0,0,{"$f":"'Раздел III'!H127","v":0}]
["в том числе по дисциплинам:\nармрестлинг (ПОДА)",121,0,0,0,0,0,0,null,null,null,null,null,null,null,null,null,null,null,null,null,null,null,null,null,null,null,null,null,null,null,null,null,null,null,null,null,null,null,null,null,null,null,{"$f":"'Раздел III'!H128","v":0}]
["водно-моторный спорт (ПОДА - мотолодка)",122,0,0,0,0,0,0,null,null,null,null,null,null,null,null,null,null,null,null,null,null,null,null,null,null,null,null,null,null,null,null,null,null,null,null,null,null,null,null,null,null,null,{"$f":"'Раздел III'!H129","v":0}]
["каратэ (ПОДА - ката)",123,0,0,0,0,0,0,null,null,null,null,null,null,null,null,null,null,null,null,null,null,null,null,null,null,null,null,null,null,null,null,null,null,null,null,null,null,null,null,null,null,null,{"$f":"'Раздел III'!H130","v":0}]
["кёрлинг (ПОДА - кёрлинг на колясках)",124,0,0,0,0,0,0,null,null,null,null,null,null,null,null,null,null,null,null,null,null,null,null,null,null,null,null,null,null,null,null,null,null,null,null,null,null,null,null,null,null,null,{"$f":"'Раздел III'!H131","v":0}]
["скалолазание (ПОДА - лазание на трудность)",125,0,0,0,0,0,0,null,null,null,null,null,null,null,null,null,null,null,null,null,null,null,null,null,null,null,null,null,null,null,null,null,null,null,null,null,null,null,null,null,null,null,{"$f":"'Раздел III'!H132","v":0}]
["триатлон (ПОДА - триатлон)",126,0,0,0,0,0,0,null,null,null,null,null,null,null,null,null,null,null,null,null,null,null,null,null,null,null,null,null,null,null,null,null,null,null,null,null,null,null,null,null,null,null,{"$f":"'Раздел III'!H133","v":0}]
["тхэквондо (ВТФ - ПОДА)",127,0,0,0,0,0,0,null,null,null,null,null,null,null,null,null,null,null,null,null,null,null,null,null,null,null,null,null,null,null,null,null,null,null,null,null,null,null,null,null,null,null,{"$f":"'Раздел III'!H134","v":0}]
["футбол (ПОДА - футбол на электроколясках)",128,0,0,0,0,0,0,null,null,null,null,null,null,null,null,null,null,null,null,null,null,null,null,null,null,null,null,null,null,null,null,null,null,null,null,null,null,null,null,null,null,null,{"$f":"'Раздел III'!H135","v":0}]
["Всего по базовым видам спорта (из строки 01)",129,0]
["Всего по видам спорта и (или) спортивным дисциплинам, включенным в Паралимпийскую программу",130,18,{"$f":"SUM(D55, D58, D60, D66, D68:D76, D78:D81, D83:D87, D90, D92:D93, D95, D100, D103:D109, D112,D117:D118,D128,D130:D131)","v":3},{"$f":"SUM(E55, E58, E60, E66, E68:E76, E78:E81, E83:E87, E90, E92:E93, E95, E100, E103:E109, E112,E117:E118,E128,E130:E131)","v":4},11,0,0,{"$f":"SUM(I55, I58, I60, I66, I68:I76, I78:I81, I83:I87, I90, I92:I93, I95, I100, I103:I109, I112,I117:I118,I128,I130:I131)","v":1},0,0,0,0,1,0,0,0,0,0,1,4,0,0,1,0,0,0,0,0,0,0,0,0,0,0,0,0,0,0,3,7,0,{"$f":"SUM(AQ55, AQ58, AQ60, AQ66, AQ68:AQ76, AQ78:AQ81, AQ83:AQ87, AQ90, AQ92:AQ93, AQ95, AQ100, AQ103:AQ109, AQ112,AQ117:AQ118,AQ128,AQ130:AQ131)","v":0}]
["Всего по видам спорта и (или) спортивным\nдисциплинам, включенным в Сурдлимпийскую программу",131,{"$f":"SUM(D135:F135)","v":0},{"$f":"SUM(D13:D32, D34:D41)","v":0},{"$f":"SUM(E13:E32, E34:E41)","v":0},0,0,0,{"$f":"SUM(I13:I32, I34:I41)","v":0},0,0,0,0,0,0,0,0,0,0,0,0,0,0,0,0,0,0,0,0,0,0,0,0,0,0,0,0,0,0,0,0,0,0]
["Ведомственная принадлежность\nорганизаций",132,34,{"$f":"SUM(I136,N136,S136,X136,AC136,AH136,AM136)","v":10},{"$f":"SUM(J136,O136,T136,Y136,AD136,AI136,AN136)","v":9},{"$f":"SUM(K136,P136,U136,Z136,AE136,AJ136,AO136)","v":15},{"$f":"SUM(L136,Q136,V136,AA136,AF136,AK136,AP136)","v":0},{"$f":"SUM(M136,R136,W136,AB136,AG136,AL136,AQ136)","v":0},{"$f":"SUM(I137:I139)","v":2},{"$f":"SUM(J137:J139)","v":3},2,0,0,1,0,0,0,0,2,1,4,0,0,2,2,1,0,0,3,0,1,0,0,0,0,0,0,0,0,3,7,0,0]
["в том числе:\nв сфере физической культуры и спорта",133,34,10,9,15,0,0,2,3,2,null,null,1,null,null,null,null,2,1,4,null,null,2,2,1,null,null,3,null,1,null,null,null,null,null,null,null,null,3,7]
["в сфере образования",134,0,0,0,0,0,0]
["в сфере труда и социальной защиты",135,0,0,0,0,0,{"$f":"SUM(M139,R139,W139,AB139,AG139,AL139,AQ139)","v":0}]

{"sheet":"Раздел VIII","index":8,"n_rows":139,"n_cols":44,"rows_kept":139,"cut":false,"hidden":false,"merged":[[0,0,0,41],[1,0,2,0],[1,1,2,1],[1,23,1,27],[1,28,1,32],[1,38,1,42],[1,2,1,7],[1,8,1,12],[1,13,1,17],[1,18,1,22],[1,33,1,37]]}
["Раздел VIII. Международные спортивные соревнования, единица"]
["Наименование вида спорта,\nспортивной дисциплины","№\nстроки","Всего",null,null,null,null,null,"Паралимпийские игры ",null,null,null,null,"Сурдлимпийские игры",null,null,null,null,"Чемпионат мира",null,null,null,null,"Чемпионат Европы ",null,null,null,null,"Первенство Европы",null,null,null,null," Спартакиада стран СНГ среди детей с ограниченными возможностями здоровья",null,null,null,null,"Прочие официальные\nмеждународные соревнования"]
[null,null,"медали\n(1-3 места)",1,2,3,"4-6","участие",1,2,3,"4-6","участие",1,2,3,"4-6","участие",1,2,3,"4-6","участие",1,2,3,"4-6","участие",1,2,3,"4-6","участие",1,2,3,"4-6","участие",1,2,3,"4-6","участие"]
[1,2,3,4,5,6,7,8,9,10,11,12,13,14,15,16,17,18,19,20,21,22,23,24,25,26,27,28,29,30,31,32,33,34,35,36,37,38,39,40,41,42,43]
["Всего (сумма строк 07, 39, 61, 94, 118, 120)","01",{"$f":"SUM(D5:F5)","v":1},{"$f":"SUM(I5,N5,S5,X5,AC5,AH5,AM5)","v":0},{"$f":"SUM(J5,O5,T5,Y5,AD5,AI5,AN5)","v":1},0,0,1,{"$f":"SUM(I11,I43,I65,I98,I122,I124)","v":0},{"$f":"SUM(J11,J43,J65,J98,J122,J124)","v":0},0,0,0,0,0,0,0,0,0,1,0,0,0,0,0,0,0,0,0,0,0,0,0,0,0,0,0,0,0,0,0,0,1]
["в том числе по виду организации:\nспортивно-адаптивные школы","02",{"$f":"SUM(D6:F6)","v":0},{"$f":"SUM(I6,N6,S6,X6,AC6,AH6,AM6)","v":0},{"$f":"SUM(J6,O6,T6,Y6,AD6,AI6,AN6)","v":0},{"$f":"SUM(K6,P6,U6,Z6,AE6,AJ6,AO6)","v":0},{"$f":"SUM(L6,Q6,V6,AA6,AF6,AK6,AP6)","v":0},{"$f":"SUM(M6,R6,W6,AB6,AG6,AL6,AQ6)","v":0}]
["спортивно-адаптивные школы паралимпийского и (или) сурдлимпийского резерва","03",0,0,0,0,0,0]
["региональные центры спортивной подготовки по адаптивным видам спорта","04",0,0,0,0,0,0]
["СШ, СШОР, УОР ","05",1,0,1,0,0,1,null,null,null,null,null,null,null,null,null,null,null,1,null,null,null,null,null,null,null,null,null,null,null,null,null,null,null,null,null,null,null,null,null,null,1]
["другие организации","06",0,0,0,0,0,0]
["Всего по виду спорта \n\"Спорт глухих\"","07",0,0,0,0,0,0,{"$f":"SUM(I12:I42)","v":0},{"$f":"SUM(J12:J42)","v":0},0,0,0,0,0,0,0,0,0,0,0,0,0,0,0,0,0,0,0,0,0,0,0,0,0,0,0,0,0,0,0,0,0]
["в том числе по дисциплинам:\nармрестлинг","08",0,0,0,0,0,0,null,null,null,null,null,null,null,null,null,null,null,null,null,null,null,null,null,null,null,null,null,null,null,null,null,null,null,null,null,null,null,null,null,null,null,{"$f":"'Раздел III'!H15","v":0}]
["бадминтон","09",0,0,0,0,0,0,null,null,null,null,null,null,null,null,null,null,null,null,null,null,null,null,null,null,null,null,null,null,null,null,null,null,null,null,null,null,null,null,null,null,null,{"$f":"'Раздел III'!H16","v":0}]
["баскетбол",10,0,0,0,0,0,0,null,null,null,null,null,null,null,null,null,null,null,null,null,null,null,null,null,null,null,null,null,null,null,null,null,null,null,null,null,null,null,null,null,null,null,{"$f":"'Раздел III'!H17","v":0}]
["боулинг",11,0,0,0,0,0,0,null,null,null,null,null,null,null,null,null,null,null,null,null,null,null,null,null,null,null,null,null,null,null,null,null,null,null,null,null,null,null,null,null,null,null,{"$f":"'Раздел III'!H18","v":0}]
["велосипедный спорт - маунтинбайк",12,0,0,0,0,0,0,null,null,null,null,null,null,null,null,null,null,null,null,null,null,null,null,null,null,null,null,null,null,null,null,null,null,null,null,null,null,null,null,null,null,null,{"$f":"'Раздел III'!H19","v":0}]
["велосипедный спорт - шоссе",13,0,0,0,0,0,0,null,null,null,null,null,null,null,null,null,null,null,null,null,null,null,null,null,null,null,null,null,null,null,null,null,null,null,null,null,null,null,null,null,null,null,{"$f":"'Раздел III'!H20","v":0}]
["волейбол",14,0,0,0,0,0,0,null,null,null,null,null,null,null,null,null,null,null,null,null,null,null,null,null,null,null,null,null,null,null,null,null,null,null,null,null,null,null,null,null,null,null,{"$f":"'Раздел III'!H21","v":0}]
["волейбол - пляжный",15,0,0,0,0,0,0,null,null,null,null,null,null,null,null,null,null,null,null,null,null,null,null,null,null,null,null,null,null,null,null,null,null,null,null,null,null,null,null,null,null,null,{"$f":"'Раздел III'!H22","v":0}]
["вольная борьба",16,0,0,0,0,0,0,null,null,null,null,null,null,null,null,null,null,null,null,null,null,null,null,null,null,null,null,null,null,null,null,null,null,null,null,null,null,null,null,null,null,null,{"$f":"'Раздел III'!H23","v":0}]
["гандбол",17,0,0,0,0,0,0,null,null,null,null,null,null,null,null,null,null,null,null,null,null,null,null,null,null,null,null,null,null,null,null,null,null,null,null,null,null,null,null,null,null,null,{"$f":"'Раздел III'!H24","v":0}]
["гольф",18,0,0,0,0,0,0,null,null,null,null,null,null,null,null,null,null,null,null,null,null,null,null,null,null,null,null,null,null,null,null,null,null,null,null,null,null,null,null,null,null,null,{"$f":"'Раздел III'!H25","v":0}]
["горнолыжный спорт",19,0,0,0,0,0,0,null,null,null,null,null,null,null,null,null,null,null,null,null,null,null,null,null,null,null,null,null,null,null,null,null,null,null,null,null,null,null,null,null,null,null,{"$f":"'Раздел III'!H26","v":0}]
["греко-римская борьба",20,0,0,0,0,0,0,null,null,null,null,null,null,null,null,null,null,null,null,null,null,null,null,null,null,null,null,null,null,null,null,null,null,null,null,null,null,null,null,null,null,null,{"$f":"'Раздел III'!H27","v":0}]
["дзюдо",21,0,0,0,0,0,0,null,null,null,null,null,null,null,null,null,null,null,null,null,null,null,null,null,null,null,null,null,null,null,null,null,null,null,null,null,null,null,null,null,null,null,{"$f":"'Раздел III'!H28","v":0}]
["каратэ",22,0,0,0,0,0,0,null,null,null,null,null,null,null,null,null,null,null,null,null,null,null,null,null,null,null,null,null,null,null,null,null,null,null,null,null,null,null,null,null,null,null,{"$f":"'Раздел III'!H29","v":0}]
["кёрлинг",23,0,0,0,0,0,0,null,null,null,null,null,null,null,null,null,null,null,null,null,null,null,null,null,null,null,null,null,null,null,null,null,null,null,null,null,null,null,null,null,null,null,{"$f":"'Раздел III'!H30","v":0}]
["легкая атлетика",24,0,0,0,0,0,0,null,null,null,null,null,null,null,null,null,null,null,null,null,null,null,null,null,null,null,null,null,null,null,null,null,null,null,null,null,null,null,null,null,null,null,{"$f":"'Раздел III'!H31","v":0}]
["лыжные гонки",25,0,0,0,0,0,0,null,null,null,null,null,null,null,null,null,null,null,null,null,null,null,null,null,null,null,null,null,null,null,null,null,null,null,null,null,null,null,null,null,null,null,{"$f":"'Раздел III'!H32","v":0}]
["настольный теннис",26,0,0,0,0,0,0,null,null,null,null,null,null,null,null,null,null,null,null,null,null,null,null,null,null,null,null,null,null,null,null,null,null,null,null,null,null,null,null,null,null,null,{"$f":"'Раздел III'!H33","v":0}]
["плавание",27,0,0,0,0,0,0,null,null,null,null,null,null,null,null,null,null,null,null,null,null,null,null,null,null,null,null,null,null,null,null,null,null,null,null,null,null,null,null,null,null,null,{"$f":"'Раздел III'!H34","v":3}]
["пулевая стрельба",28,0,0,0,0,0,0,null,null,null,null,null,null,null,null,null,null,null,null,null,null,null,null,null,null,null,null,null,null,null,null,null,null,null,null,null,null,null,null,null,null,null,{"$f":"'Раздел III'!H35","v":0}]
["самбо",29,0,0,0,0,0,0,null,null,null,null,null,null,null,null,null,null,null,null,null,null,null,null,null,null,null,null,null,null,null,null,null,null,null,null,null,null,null,null,null,null,null,{"$f":"'Раздел III'!H36","v":0}]
["сноуборд",30,0,0,0,0,0,0,null,null,null,null,null,null,null,null,null,null,null,null,null,null,null,null,null,null,null,null,null,null,null,null,null,null,null,null,null,null,null,null,null,null,null,{"$f":"'Раздел III'!H37","v":0}]
["спортивное ориентирование",31,0,0,0,0,0,0,null,null,null,null,null,null,null,null,null,null,null,null,null,null,null,null,null,null,null,null,null,null,null,null,null,null,null,null,null,null,null,null,null,null,null,{"$f":"'Раздел III'!H38","v":0}]
["теннис",32,0,0,0,0,0,0,null,null,null,null,null,null,null,null,null,null,null,null,null,null,null,null,null,null,null,null,null,null,null,null,null,null,null,null,null,null,null,null,null,null,null,{"$f":"'Раздел III'!H39","v":0}]
["тхэквондо",33,0,0,0,0,0,0,null,null,null,null,null,null,null,null,null,null,null,null,null,null,null,null,null,null,null,null,null,null,null,null,null,null,null,null,null,null,null,null,null,null,null,{"$f":"'Раздел III'!H40","v":0}]
["футбол",34,0,0,0,0,0,0,null,null,null,null,null,null,null,null,null,null,null,null,null,null,null,null,null,null,null,null,null,null,null,null,null,null,null,null,null,null,null,null,null,null,null,{"$f":"'Раздел III'!H41","v":0}]
["футзал",35,0,0,0,0,0,0,null,null,null,null,null,null,null,null,null,null,null,null,null,null,null,null,null,null,null,null,null,null,null,null,null,null,null,null,null,null,null,null,null,null,null,{"$f":"'Раздел III'!H42","v":0}]
["хоккей",36,0,0,0,0,0,0,null,null,null,null,null,null,null,null,null,null,null,null,null,null,null,null,null,null,null,null,null,null,null,null,null,null,null,null,null,null,null,null,null,null,null,{"$f":"'Раздел III'!H43","v":0}]
["шахматы",37,0,0,0,0,0,0,null,null,null,null,null,null,null,null,null,null,null,null,null,null,null,null,null,null,null,null,null,null,null,null,null,null,null,null,null,null,null,null,null,null,null,{"$f":"'Раздел III'!H44","v":0}]
["шашки",38,0,0,0,0,0,0,null,null,null,null,null,null,null,null,null,null,null,null,null,null,null,null,null,null,null,null,null,null,null,null,null,null,null,null,null,null,null,null,null,null,null,{"$f":"'Раздел III'!H45","v":0}]
["Всего по виду спорта \n\"Спорт лиц с интеллектуальными нарушениями\"",39,0,0,0,0,0,0,{"$f":"SUM(I44:I64)","v":0},{"$f":"SUM(J44:J64)","v":0},0,0,0,0,0,0,0,0,0,0,0,0,0,0,0,0,0,0,0,0,0,0,0,0,0,0,0,0,0,0,0,0,0,{"$f":"'Раздел III'!H46","v":114}]
["в том числе по дисциплинам:\nакадемическая гребля ",40,0,0,0,0,0,0,null,null,null,null,null,null,null,null,null,null,null,null,null,null,null,null,null,null,null,null,null,null,null,null,null,null,null,null,null,null,null,null,null,null,null,{"$f":"'Раздел III'!H47","v":0}]
["академическая гребля - индор",41,0,0,0,0,0,0,null,null,null,null,null,null,null,null,null,null,null,null,null,null,null,null,null,null,null,null,null,null,null,null,null,null,null,null,null,null,null,null,null,null,null,{"$f":"'Раздел III'!H48","v":0}]
["бадминтон",42,0,0,0,0,0,0,null,null,null,null,null,null,null,null,null,null,null,null,null,null,null,null,null,null,null,null,null,null,null,null,null,null,null,null,null,null,null,null,null,null,null,{"$f":"'Раздел III'!H49","v":29}]
["баскетбол",43,0,0,0,0,0,0,null,null,null,null,null,null,null,null,null,null,null,null,null,null,null,null,null,null,null,null,null,null,null,null,null,null,null,null,null,null,null,null,null,null,null,{"$f":"'Раздел III'!H50","v":0}]
["баскетбол 3х3",44,0,0,0,0,0,0,null,null,null,null,null,null,null,null,null,null,null,null,null,null,null,null,null,null,null,null,null,null,null,null,null,null,null,null,null,null,null,null,null,null,null,{"$f":"'Раздел III'!H51","v":0}]
["велоспорт-трек",45,0,0,0,0,0,0,null,null,null,null,null,null,null,null,null,null,null,null,null,null,null,null,null,null,null,null,null,null,null,null,null,null,null,null,null,null,null,null,null,null,null,{"$f":"'Раздел III'!H52","v":0}]
["велоспорт-шоссе",46,0,0,0,0,0,0,null,null,null,null,null,null,null,null,null,null,null,null,null,null,null,null,null,null,null,null,null,null,null,null,null,null,null,null,null,null,null,null,null,null,null,{"$f":"'Раздел III'!H53","v":0}]
["гандбол",47,0,0,0,0,0,0,null,null,null,null,null,null,null,null,null,null,null,null,null,null,null,null,null,null,null,null,null,null,null,null,null,null,null,null,null,null,null,null,null,null,null,{"$f":"'Раздел III'!H54","v":0}]
["горнолыжный спорт",48,0,0,0,0,0,0,null,null,null,null,null,null,null,null,null,null,null,null,null,null,null,null,null,null,null,null,null,null,null,null,null,null,null,null,null,null,null,null,null,null,null,{"$f":"'Раздел III'!H55","v":0}]
["дзюдо",49,0,0,0,0,0,0,null,null,null,null,null,null,null,null,null,null,null,null,null,null,null,null,null,null,null,null,null,null,null,null,null,null,null,null,null,null,null,null,null,null,null,{"$f":"'Раздел III'!H56","v":0}]
["конный спорт",50,0,0,0,0,0,0,null,null,null,null,null,null,null,null,null,null,null,null,null,null,null,null,null,null,null,null,null,null,null,null,null,null,null,null,null,null,null,null,null,null,null,{"$f":"'Раздел III'!H57","v":0}]
["легкая атлетика",51,0,0,0,0,0,0,null,null,null,null,null,null,null,null,null,null,null,null,null,null,null,null,null,null,null,null,null,null,null,null,null,null,null,null,null,null,null,null,null,null,null,{"$f":"'Раздел III'!H58","v":0}]
["лыжные гонки",52,0,0,0,0,0,0,null,null,null,null,null,null,null,null,null,null,null,null,null,null,null,null,null,null,null,null,null,null,null,null,null,null,null,null,null,null,null,null,null,null,null,{"$f":"'Раздел III'!H59","v":0}]
["мини-футбол (футзал)",53,0,0,0,0,0,0,null,null,null,null,null,null,null,null,null,null,null,null,null,null,null,null,null,null,null,null,null,null,null,null,null,null,null,null,null,null,null,null,null,null,null,{"$f":"'Раздел III'!H60","v":0}]
["настольный теннис",54,0,0,0,0,0,0,null,null,null,null,null,null,null,null,null,null,null,null,null,null,null,null,null,null,null,null,null,null,null,null,null,null,null,null,null,null,null,null,null,null,null,{"$f":"'Раздел III'!H61","v":0}]
["пауэрлифтинг (троеборье)",55,0,0,0,0,0,0,null,null,null,null,null,null,null,null,null,null,null,null,null,null,null,null,null,null,null,null,null,null,null,null,null,null,null,null,null,null,null,null,null,null,null,{"$f":"'Раздел III'!H62","v":10}]
["плавание",56,0,0,0,0,0,0,null,null,null,null,null,null,null,null,null,null,null,null,null,null,null,null,null,null,null,null,null,null,null,null,null,null,null,null,null,null,null,null,null,null,null,{"$f":"'Раздел III'!H63","v":75}]
["спортивная гимнастика",57,0,0,0,0,0,0,null,null,null,null,null,null,null,null,null,null,null,null,null,null,null,null,null,null,null,null,null,null,null,null,null,null,null,null,null,null,null,null,null,null,null,{"$f":"'Раздел III'!H64","v":0}]
["теннис",58,0,0,0,0,0,0,null,null,null,null,null,null,null,null,null,null,null,null,null,null,null,null,null,null,null,null,null,null,null,null,null,null,null,null,null,null,null,null,null,null,null,{"$f":"'Раздел III'!H65","v":0}]
["тхэквондо (пхумсэ)",59,0,0,0,0,0,0,null,null,null,null,null,null,null,null,null,null,null,null,null,null,null,null,null,null,null,null,null,null,null,null,null,null,null,null,null,null,null,null,null,null,null,{"$f":"'Раздел III'!H66","v":0}]
["футбол",60,0,0,0,0,0,0,null,null,null,null,null,null,null,null,null,null,null,null,null,null,null,null,null,null,null,null,null,null,null,null,null,null,null,null,null,null,null,null,null,null,null,{"$f":"'Раздел III'!H67","v":0}]
["Всего по виду спорта\n\"Спорт лиц с поражением ОДА\"",61,0,0,0,0,0,1,{"$f":"SUM(I66:I97)","v":0},{"$f":"SUM(J66:J97)","v":0},0,0,0,0,0,0,0,0,0,0,0,0,0,0,0,0,0,0,0,0,0,0,0,0,0,0,0,0,0,0,0,0,1,{"$f":"'Раздел III'!H68","v":48}]
["в том числе по дисциплинам:\nакадемическая гребля ",62,0,0,0,0,0,0,null,null,null,null,null,null,null,null,null,null,null,null,null,null,null,null,null,null,null,null,null,null,null,null,null,null,null,null,null,null,null,null,null,null,null,{"$f":"'Раздел III'!H69","v":0}]
["академическая гребля - эргометр",63,0,0,0,0,0,0,null,null,null,null,null,null,null,null,null,null,null,null,null,null,null,null,null,null,null,null,null,null,null,null,null,null,null,null,null,null,null,null,null,null,null,{"$f":"'Раздел III'!H70","v":0}]
["бадминтон",64,0,0,0,0,0,0,null,null,null,null,null,null,null,null,null,null,null,null,null,null,null,null,null,null,null,null,null,null,null,null,null,null,null,null,null,null,null,null,null,null,null,{"$f":"'Раздел III'!H71","v":11}]
["баскетбол на колясках",65,0,0,0,0,0,0,null,null,null,null,null,null,null,null,null,null,null,null,null,null,null,null,null,null,null,null,null,null,null,null,null,null,null,null,null,null,null,null,null,null,null,{"$f":"'Раздел III'!H72","v":0}]
["биатлон",66,{"$f":"SUM(D70:F70)","v":0},{"$f":"SUM(I70,N70,S70,X70,AC70,AH70,AM70)","v":0},{"$f":"SUM(J70,O70,T70,Y70,AD70,AI70,AN70)","v":0},{"$f":"SUM(K70,P70,U70,Z70,AE70,AJ70,AO70)","v":0},{"$f":"SUM(L70,Q70,V70,AA70,AF70,AK70,AP70)","v":0},{"$f":"SUM(M70,R70,W70,AB70,AG70,AL70,AQ70)","v":0},null,null,null,null,null,null,null,null,null,null,null,null,null,null,null,null,null,null,null,null,null,null,null,null,null,null,null,null,null,null,null,null,null,null,null,{"$f":"'Раздел III'!H73","v":0}]
["бочча",67,0,0,0,0,0,0,null,null,null,null,null,null,null,null,null,null,null,null,null,null,null,null,null,null,null,null,null,null,null,null,null,null,null,null,null,null,null,null,null,null,null,{"$f":"'Раздел III'!H74","v":21}]
["велоспорт - трек",68,0,0,0,0,0,0,null,null,null,null,null,null,null,null,null,null,null,null,null,null,null,null,null,null,null,null,null,null,null,null,null,null,null,null,null,null,null,null,null,null,null,{"$f":"'Раздел III'!H75","v":0}]
["велоспорт - шоссе",69,0,0,0,0,0,0,null,null,null,null,null,null,null,null,null,null,null,null,null,null,null,null,null,null,null,null,null,null,null,null,null,null,null,null,null,null,null,null,null,null,null,{"$f":"'Раздел III'!H76","v":0}]
["волейбол сидя",70,0,0,0,0,0,0,null,null,null,null,null,null,null,null,null,null,null,null,null,null,null,null,null,null,null,null,null,null,null,null,null,null,null,null,null,null,null,null,null,null,null,{"$f":"'Раздел III'!H77","v":0}]
["горнолыжный спорт",71,0,0,0,0,0,0,null,null,null,null,null,null,null,null,null,null,null,null,null,null,null,null,null,null,null,null,null,null,null,null,null,null,null,null,null,null,null,null,null,null,null,{"$f":"'Раздел III'!H78","v":0}]
["гребля на байдарках и каноэ",72,0,0,0,0,0,0,null,null,null,null,null,null,null,null,null,null,null,null,null,null,null,null,null,null,null,null,null,null,null,null,null,null,null,null,null,null,null,null,null,null,null,{"$f":"'Раздел III'!H79","v":0}]
["дартс",73,0,0,0,0,0,0,null,null,null,null,null,null,null,null,null,null,null,null,null,null,null,null,null,null,null,null,null,null,null,null,null,null,null,null,null,null,null,null,null,null,null,{"$f":"'Раздел III'!H80","v":0}]
["конный спорт",74,0,0,0,0,0,0,null,null,null,null,null,null,null,null,null,null,null,null,null,null,null,null,null,null,null,null,null,null,null,null,null,null,null,null,null,null,null,null,null,null,null,{"$f":"'Раздел III'!H81","v":0}]
["легкая атлетика",75,0,0,0,0,0,0,null,null,null,null,null,null,null,null,null,null,null,null,null,null,null,null,null,null,null,null,null,null,null,null,null,null,null,null,null,null,null,null,null,null,null,{"$f":"'Раздел III'!H82","v":0}]
["лыжные гонки",76,0,0,0,0,0,0,null,null,null,null,null,null,null,null,null,null,null,null,null,null,null,null,null,null,null,null,null,null,null,null,null,null,null,null,null,null,null,null,null,null,null,{"$f":"'Раздел III'!H83","v":0}]
["настольный теннис",77,0,0,0,0,0,0,null,null,null,null,null,null,null,null,null,null,null,null,null,null,null,null,null,null,null,null,null,null,null,null,null,null,null,null,null,null,null,null,null,null,null,{"$f":"'Раздел III'!H84","v":0}]
["парусный спорт",78,0,0,0,0,0,0,null,null,null,null,null,null,null,null,null,null,null,null,null,null,null,null,null,null,null,null,null,null,null,null,null,null,null,null,null,null,null,null,null,null,null,{"$f":"'Раздел III'!H85","v":0}]
["пауэрлифтинг",79,0,0,0,0,0,1,null,null,null,null,null,null,null,null,null,null,null,null,null,null,null,null,null,null,null,null,null,null,null,null,null,null,null,null,null,null,null,null,null,null,1,{"$f":"'Раздел III'!H86","v":13}]
["плавание",80,0,0,0,0,0,0,null,null,null,null,null,null,null,null,null,null,null,null,null,null,null,null,null,null,null,null,null,null,null,null,null,null,null,null,null,null,null,null,null,null,null,{"$f":"'Раздел III'!H87","v":3}]
["пулевая стрельба",81,0,0,0,0,0,0,null,null,null,null,null,null,null,null,null,null,null,null,null,null,null,null,null,null,null,null,null,null,null,null,null,null,null,null,null,null,null,null,null,null,null,{"$f":"'Раздел III'!H88","v":0}]
["регби на колясках",82,0,0,0,0,0,0,null,null,null,null,null,null,null,null,null,null,null,null,null,null,null,null,null,null,null,null,null,null,null,null,null,null,null,null,null,null,null,null,null,null,null,{"$f":"'Раздел III'!H89","v":0}]
["сноуборд",83,0,0,0,0,0,0,null,null,null,null,null,null,null,null,null,null,null,null,null,null,null,null,null,null,null,null,null,null,null,null,null,null,null,null,null,null,null,null,null,null,null,{"$f":"'Раздел III'!H90","v":0}]
["спортивное ориентирование",84,0,0,0,0,0,0,null,null,null,null,null,null,null,null,null,null,null,null,null,null,null,null,null,null,null,null,null,null,null,null,null,null,null,null,null,null,null,null,null,null,null,{"$f":"'Раздел III'!H91","v":0}]
["стендовая стрельба",85,0,0,0,0,0,0,null,null,null,null,null,null,null,null,null,null,null,null,null,null,null,null,null,null,null,null,null,null,null,null,null,null,null,null,null,null,null,null,null,null,null,{"$f":"'Раздел III'!H92","v":0}]
["стрельба из лука",86,0,0,0,0,0,0,null,null,null,null,null,null,null,null,null,null,null,null,null,null,null,null,null,null,null,null,null,null,null,null,null,null,null,null,null,null,null,null,null,null,null,{"$f":"'Раздел III'!H93","v":0}]
["танцы на колясках",87,0,0,0,0,0,0,null,null,null,null,null,null,null,null,null,null,null,null,null,null,null,null,null,null,null,null,null,null,null,null,null,null,null,null,null,null,null,null,null,null,null,{"$f":"'Раздел III'!H94","v":0}]
["теннис на колясках",88,0,0,0,0,0,0,null,null,null,null,null,null,null,null,null,null,null,null,null,null,null,null,null,null,null,null,null,null,null,null,null,null,null,null,null,null,null,null,null,null,null,{"$f":"'Раздел III'!H95","v":0}]
["фехтование",89,0,0,0,0,0,0,null,null,null,null,null,null,null,null,null,null,null,null,null,null,null,null,null,null,null,null,null,null,null,null,null,null,null,null,null,null,null,null,null,null,null,{"$f":"'Раздел III'!H96","v":0}]
["футбол ампутантов",90,0,0,0,0,0,0,null,null,null,null,null,null,null,null,null,null,null,null,null,null,null,null,null,null,null,null,null,null,null,null,null,null,null,null,null,null,null,null,null,null,null,{"$f":"'Раздел III'!H97","v":0}]
["хоккей - следж",91,0,0,0,0,0,0,null,null,null,null,null,null,null,null,null,null,null,null,null,null,null,null,null,null,null,null,null,null,null,null,null,null,null,null,null,null,null,null,null,null,null,{"$f":"'Раздел III'!H98","v":0}]
["шахматы",92,0,0,0,0,0,0,null,null,null,null,null,null,null,null,null,null,null,null,null,null,null,null,null,null,null,null,null,null,null,null,null,null,null,null,null,null,null,null,null,null,null,{"$f":"'Раздел III'!H99","v":0}]
["шашки",93,0,0,0,0,0,0,null,null,null,null,null,null,null,null,null,null,null,null,null,null,null,null,null,null,null,null,null,null,null,null,null,null,null,null,null,null,null,null,null,null,null,{"$f":"'Раздел III'!H100","v":0}]
["Всего по виду спорта\n \"Спорт слепых\"",94,1,0,1,0,0,0,{"$f":"SUM(I99:I121)","v":0},{"$f":"SUM(J99:J121)","v":0},0,0,0,0,0,0,0,0,0,1,0,0,0,0,0,0,0,0,0,0,0,0,0,0,0,0,0,0,0,0,0,0,0,{"$f":"'Раздел III'!H101","v":4}]
["в том числе по дисциплинам:\nармрестлинг",95,0,0,0,0,0,0,null,null,null,null,null,null,null,null,null,null,null,null,null,null,null,null,null,null,null,null,null,null,null,null,null,null,null,null,null,null,null,null,null,null,null,{"$f":"'Раздел III'!H102","v":0}]
["биатлон",96,0,0,0,0,0,0,null,null,null,null,null,null,null,null,null,null,null,null,null,null,null,null,null,null,null,null,null,null,null,null,null,null,null,null,null,null,null,null,null,null,null,{"$f":"'Раздел III'!H103","v":0}]
["борьба",97,0,0,0,0,0,0,null,null,null,null,null,null,null,null,null,null,null,null,null,null,null,null,null,null,null,null,null,null,null,null,null,null,null,null,null,null,null,null,null,null,null,{"$f":"'Раздел III'!H104","v":0}]
["боулинг",98,0,0,0,0,0,0,null,null,null,null,null,null,null,null,null,null,null,null,null,null,null,null,null,null,null,null,null,null,null,null,null,null,null,null,null,null,null,null,null,null,null,{"$f":"'Раздел III'!H105","v":0}]
["велоспорт-тандем - трек",99,0,0,0,0,0,0,null,null,null,null,null,null,null,null,null,null,null,null,null,null,null,null,null,null,null,null,null,null,null,null,null,null,null,null,null,null,null,null,null,null,null,{"$f":"'Раздел III'!H106","v":0}]
["велоспорт-тандем - шоссе",100,0,0,0,0,0,0,null,null,null,null,null,null,null,null,null,null,null,null,null,null,null,null,null,null,null,null,null,null,null,null,null,null,null,null,null,null,null,null,null,null,null,{"$f":"'Раздел III'!H107","v":0}]
["голбол",101,0,0,0,0,0,0,null,null,null,null,null,null,null,null,null,null,null,null,null,null,null,null,null,null,null,null,null,null,null,null,null,null,null,null,null,null,null,null,null,null,null,{"$f":"'Раздел III'!H108","v":0}]
["горнолыжный спорт",102,0,0,0,0,0,0,null,null,null,null,null,null,null,null,null,null,null,null,null,null,null,null,null,null,null,null,null,null,null,null,null,null,null,null,null,null,null,null,null,null,null,{"$f":"'Раздел III'!H109","v":0}]
["дзюдо",103,0,0,0,0,0,0,null,null,null,null,null,null,null,null,null,null,null,null,null,null,null,null,null,null,null,null,null,null,null,null,null,null,null,null,null,null,null,null,null,null,null,{"$f":"'Раздел III'!H110","v":0}]
["легкая атлетика",104,0,0,0,0,0,0,null,null,null,null,null,null,null,null,null,null,null,null,null,null,null,null,null,null,null,null,null,null,null,null,null,null,null,null,null,null,null,null,null,null,null,{"$f":"'Раздел III'!H111","v":0}]
["лыжные гонки",105,0,0,0,0,0,0,null,null,null,null,null,null,null,null,null,null,null,null,null,null,null,null,null,null,null,null,null,null,null,null,null,null,null,null,null,null,null,null,null,null,null,{"$f":"'Раздел III'!H112","v":0}]
["настольный теннис",106,0,0,0,0,0,0,null,null,null,null,null,null,null,null,null,null,null,null,null,null,null,null,null,null,null,null,null,null,null,null,null,null,null,null,null,null,null,null,null,null,null,{"$f":"'Раздел III'!H113","v":0}]
["пауэрлифтинг",107,1,0,1,0,0,0,null,null,null,null,null,null,null,null,null,null,null,1,null,null,null,null,null,null,null,null,null,null,null,null,null,null,null,null,null,null,null,null,null,null,null,{"$f":"'Раздел III'!H114","v":4}]
["плавание",108,0,0,0,0,0,0,null,null,null,null,null,null,null,null,null,null,null,null,null,null,null,null,null,null,null,null,null,null,null,null,null,null,null,null,null,null,null,null,null,null,null,{"$f":"'Раздел III'!H115","v":0}]
["пулевая стрельба",109,0,0,0,0,0,0,null,null,null,null,null,null,null,null,null,null,null,null,null,null,null,null,null,null,null,null,null,null,null,null,null,null,null,null,null,null,null,null,null,null,null,{"$f":"'Раздел III'!H116","v":0}]
["самбо",110,0,0,0,0,0,0,null,null,null,null,null,null,null,null,null,null,null,null,null,null,null,null,null,null,null,null,null,null,null,null,null,null,null,null,null,null,null,null,null,null,null,{"$f":"'Раздел III'!H117","v":0}]
["спортивный туризм - многоборье",111,0,0,0,0,0,0,null,null,null,null,null,null,null,null,null,null,null,null,null,null,null,null,null,null,null,null,null,null,null,null,null,null,null,null,null,null,null,null,null,null,null,{"$f":"'Раздел III'!H118","v":0}]
["торбол",112,0,0,0,0,0,0,null,null,null,null,null,null,null,null,null,null,null,null,null,null,null,null,null,null,null,null,null,null,null,null,null,null,null,null,null,null,null,null,null,null,null,{"$f":"'Раздел III'!H119","v":0}]
["триатлон",113,0,0,0,0,0,0,null,null,null,null,null,null,null,null,null,null,null,null,null,null,null,null,null,null,null,null,null,null,null,null,null,null,null,null,null,null,null,null,null,null,null,{"$f":"'Раздел III'!H120","v":0}]
["футбол - мини-футбол 5х5 (B1)",114,0,0,0,0,0,0,null,null,null,null,null,null,null,null,null,null,null,null,null,null,null,null,null,null,null,null,null,null,null,null,null,null,null,null,null,null,null,null,null,null,null,{"$f":"'Раздел III'!H121","v":0}]
["футбол - футзал 5х5 (B2, B3)",115,0,0,0,0,0,0,null,null,null,null,null,null,null,null,null,null,null,null,null,null,null,null,null,null,null,null,null,null,null,null,null,null,null,null,null,null,null,null,null,null,null,{"$f":"'Раздел III'!H122","v":0}]
["шахматы",116,0,0,0,0,0,0,null,null,null,null,null,null,null,null,null,null,null,null,null,null,null,null,null,null,null,null,null,null,null,null,null,null,null,null,null,null,null,null,null,null,null,{"$f":"'Раздел III'!H123","v":0}]
["шашки",117,0,0,0,0,0,0,null,null,null,null,null,null,null,null,null,null,null,null,null,null,null,null,null,null,null,null,null,null,null,null,null,null,null,null,null,null,null,null,null,null,null,{"$f":"'Раздел III'!H124","v":0}]
["Всего по виду спорта\n\"Футбол лиц с заболеванием ЦП\"",118,0,0,0,0,0,0,{"$f":"SUM(I123)","v":0},{"$f":"SUM(J123)","v":0},0,0,0,0,0,0,0,0,0,0,0,0,0,0,0,0,0,0,0,0,0,0,0,0,0,0,0,0,0,0,0,0,0,{"$f":"'Раздел III'!H125","v":0}]
["футбол лиц с заболеванием ЦП",119,0,0,0,0,0,0,null,null,null,null,null,null,null,null,null,null,null,null,null,null,null,null,null,null,null,null,null,null,null,null,null,null,null,null,null,null,null,null,null,null,null,{"$f":"'Раздел III'!H126","v":0}]
["Всего по другим видам спорта, спортивным\nдисциплинам",120,0,0,0,0,0,0,{"$f":"SUM(I125:I132)","v":0},{"$f":"SUM(J125:J132)","v":0},0,0,0,0,0,0,0,0,0,0,0,0,0,0,0,0,0,0,0,0,0,0,0,0,0,0,0,0,0,0,0,0,0,{"$f":"'Раздел III'!H127","v":0}]
["в том числе по дисциплинам:\nармрестлинг (ПОДА)",121,0,0,0,0,0,0,null,null,null,null,null,null,null,null,null,null,null,null,null,null,null,null,null,null,null,null,null,null,null,null,null,null,null,null,null,null,null,null,null,null,null,{"$f":"'Раздел III'!H128","v":0}]
["водно-моторный спорт (ПОДА - мотолодка)",122,0,0,0,0,0,0,null,null,null,null,null,null,null,null,null,null,null,null,null,null,null,null,null,null,null,null,null,null,null,null,null,null,null,null,null,null,null,null,null,null,null,{"$f":"'Раздел III'!H129","v":0}]
["каратэ (ПОДА - ката)",123,0,0,0,0,0,0,null,null,null,null,null,null,null,null,null,null,null,null,null,null,null,null,null,null,null,null,null,null,null,null,null,null,null,null,null,null,null,null,null,null,null,{"$f":"'Раздел III'!H130","v":0}]
["кёрлинг (ПОДА - кёрлинг на колясках)",124,0,0,0,0,0,0,null,null,null,null,null,null,null,null,null,null,null,null,null,null,null,null,null,null,null,null,null,null,null,null,null,null,null,null,null,null,null,null,null,null,null,{"$f":"'Раздел III'!H131","v":0}]
["скалолазание (ПОДА - лазание на трудность)",125,0,0,0,0,0,0,null,null,null,null,null,null,null,null,null,null,null,null,null,null,null,null,null,null,null,null,null,null,null,null,null,null,null,null,null,null,null,null,null,null,null,{"$f":"'Раздел III'!H132","v":0}]
["триатлон (ПОДА - триатлон)",126,0,0,0,0,0,0,null,null,null,null,null,null,null,null,null,null,null,null,null,null,null,null,null,null,null,null,null,null,null,null,null,null,null,null,null,null,null,null,null,null,null,{"$f":"'Раздел III'!H133","v":0}]
["тхэквондо (ВТФ - ПОДА)",127,0,0,0,0,0,0,null,null,null,null,null,null,null,null,null,null,null,null,null,null,null,null,null,null,null,null,null,null,null,null,null,null,null,null,null,null,null,null,null,null,null,{"$f":"'Раздел III'!H134","v":0}]
["футбол (ПОДА - футбол на электроколясках)",128,0,0,0,0,0,0,null,null,null,null,null,null,null,null,null,null,null,null,null,null,null,null,null,null,null,null,null,null,null,null,null,null,null,null,null,null,null,null,null,null,null,{"$f":"'Раздел III'!H135","v":0}]
["Всего по базовым видам спорта (из строки 01)",129]
["Всего по видам спорта и (или) спортивным дисциплинам, включенным в Паралимпийскую программу",130,{"$f":"SUM(D134:F134)","v":0},{"$f":"SUM(I134,N134,S134,X134,AC134,AH134,AM134)","v":0},{"$f":"SUM(J134,O134,T134,Y134,AD134,AI134,AN134)","v":0},{"$f":"SUM(K134,P134,U134,Z134,AE134,AJ134,AO134)","v":0},{"$f":"SUM(L134,Q134,V134,AA134,AF134,AK134,AP134)","v":0},{"$f":"SUM(M134,R134,W134,AB134,AG134,AL134,AQ134)","v":1},{"$f":"SUM(I55, I58, I60, I66, I68:I76, I78:I81, I83:I87, I90, I92:I93, I95, I100, I103:I109, I112,I117:I118,I128,I130:I131)","v":0},{"$f":"SUM(J55, J58, J60, J66, J68:J76, J78:J81, J83:J87, J90, J92:J93, J95, J100, J103:J109, J112,J117:J118,J128,J130:J131)","v":0},0,0,0,0,0,0,0,0,0,0,0,0,0,0,0,0,0,0,0,0,0,0,0,0,0,0,0,0,0,0,0,0,1]
["Всего по видам спорта и (или) спортивным\nдисциплинам, включенным в Сурдлимпийскую программу",131,0,0,0,0,0,0,{"$f":"SUM(I13:I32, I34:I41)","v":0},{"$f":"SUM(J13:J32, J34:J41)","v":0},0,0,0,0,0,0,0,0,0,0,0,0,0,0,0,0,0,0,0,0,0,0,0,0,0,0,0,0,0,0,0,0,0]
["Ведомственная принадлежность\nорганизаций",132,1,0,1,0,0,1,{"$f":"SUM(I137:I139)","v":0},{"$f":"SUM(J137:J139)","v":0},0,0,0,0,0,0,0,0,0,1,0,0,0,0,0,0,0,0,0,0,0,0,0,0,0,0,0,0,0,0,0,0,1]
["в том числе:\nв сфере физической культуры и спорта",133,1,0,1,0,0,1,null,null,null,null,null,null,null,null,null,null,null,1,null,null,null,null,null,null,null,null,null,null,null,null,null,null,null,null,null,null,null,null,null,null,1]
["в сфере образования",134,0,0,0,0,0,0]
["в сфере труда и социальной защиты",135,0,0,0,0,0,{"$f":"SUM(M139,R139,W139,AB139,AG139,AL139,AQ139)","v":0}]

{"sheet":"Раздел IX","index":9,"n_rows":18,"n_cols":13,"rows_kept":18,"cut":false,"hidden":false,"merged":[[3,9,4,9],[3,10,4,10],[0,0,0,12],[1,0,4,0],[1,1,4,1],[1,2,2,3],[1,4,1,12],[2,4,2,7],[2,8,2,10],[2,11,2,12],[3,2,4,2],[3,3,4,3],[3,11,4,11],[3,12,4,12],[3,4,4,4],[3,5,4,5],[3,6,3,7],[3,8,4,8]]}
["Раздел IX. Кадровый состав в сфере адаптивной физической культуры и спорта, человек"]
["Наименование должности","№ \nстроки","Численность работников",null,"из них имеют (из гр. 4):"]
[null,null,null,null,"\nпрофессиональное образование",null,null,null,"квалификационную категорию",null,null,"почетные звания"]
[null,null,"Всего","в том числе по основному месту работы ","высшее","среднее","в том числе:\nобразование по специальности\n\"Адаптивная физическая культура\nи спорт\" ",null,"высшую","первую","вторую","Заслуженный тренер России","Заслуженный работник физической культуры Российской Федерации"]
[null,null,null,null,null,null,"высшее","среднее"]
[1,2,3,4,5,6,7,8,9,10,11,12,13]
["Итого","01",{"$f":"SUM(C8:C11,C13:C14,C18)","v":0},{"$f":"SUM(D8:D11,D13:D14,D18)","v":0},0,0,0,0,0,0,0,0,0]
["Директор (руководитель)","02"]
["Заместители директора","03"]
["Тренеры (РЦСП)","04"]
["Спортсмены, спортсмены-инструкторы","05"]
["из них:\nпроходящие дополнительные образовательные программы спортивной подготовки в организациях, реализующих дополнительные образовательные программы спортивной подготовки","06"]
["Инструкторы – методисты по АФК (включая старшего)","07"]
["Медицинские работники:","08",{"$f":"SUM(C15:C17)","v":0},{"$f":"SUM(D15:D17)","v":0},0,0,0,0,0,0,0,0,0]
["в том числе:\nврачи","09"]
["средний медицинский персонал","10"]
["младший медицинский персонал","11"]
["Прочий персонал","12"]

{"sheet":"Раздел X","index":10,"n_rows":25,"n_cols":8,"rows_kept":25,"cut":false,"hidden":false,"merged":[[17,0,21,0],[0,0,0,7],[1,0,4,0],[1,1,4,1],[1,2,1,5],[1,6,4,6],[1,7,4,7],[2,2,4,2],[2,3,2,5],[3,3,4,3],[3,4,3,5]]}
["Раздел X. Финансирование организаций по адаптивной физической культуре и спорту, входящих в систему спортивной подготовки, тысяча рублей "]
["Статьи расходов","№ строки","Фактически выделено бюджетных средств",null,null,null,"Получено из внебюджетных источников","Всего израсходовано на развитие организаций по адаптивной физической культуре и спорту, входящих в систему спортивной подготовки "]
[null,null,"Всего","в том числе (из гр. 3)"]
[null,null,null,"из федерального бюджета","из консолидированного бюджета субъекта\nРоссийской Федерации"]
[null,null,null,null,"бюджет субъекта Российской Федерации","бюджет муниципального образования"]
[1,2,3,4,5,6,7,8]
["Всего расходов","01",{"$f":"SUM(C8:C15)","v":17233.099999999999},{"$f":"SUM(D8:D15)","v":0},772.4,16460.7,0,{"$f":"SUM(H8:H15)","v":17233.099999999999}]
["  в том числе:\n  организация и проведение спортивных\n  мероприятий среди инвалидов","02",{"$f":"SUM(D8:F8)","v":404.1},null,null,404.1,null,{"$f":"SUM(C8,G8)","v":404.1}]
["  организация и проведение физкультурных\n  и массовых спортивных мероприятий\n  среди инвалидов","03",{"$f":"SUM(D9:F9)","v":0},null,null,null,null,{"$f":"SUM(C9,G9)","v":0}]
["  приобретение спортивного оборудования,\n  инвентаря и экипировки","04",1403.1,null,772.4,630.70000000000005,null,1403.1]
["  капитальный ремонт спортивных\n  сооружений","05",0,null,null,null,null,0]
["  инвестиции на реконструкцию\n  и строительство спортивных сооружений","06",0,null,null,null,null,0]
["  заработная плата работников","07",9504.4,null,null,9504.4,null,9504.4]
["  содержание спортивных сооружений,\n  доступных для занятий с инвалидами","08",965.7,null,null,965.7,null,965.7]
["  прочие расходы","09",4955.8,null,null,4955.8,null,4955.8]
[]
[]
["Должностное лицо, ответственное\nза предоставление первичных статистических\nи (или) административных данных (лицо,\nуполномоченное предоставлять первичные\nстатистические и (или) административные\nданные от имени юридического лица"]
[]
[]
[null,null,null,"Директор",null,"Белянкин С.Г."]
[null,null,null,"(должность)",null,"(Ф.И.О.)",null,"(подпись)"]
[]
[null,null,null,"8-3466-456547",null,"info@olimpia-nv.ru",null,"«__»____20__ года"]
[null,null,null,"(номер контактного телефона)",null,"(электронная почта)",null,"(дата составления документа)"]